Publisher Label,Publisher URI,"Directorate code","Directorate","Service code","Service","Revenue or capital code","Revenue capital","Cost centre","Cost centre description","Bvsub Category","Bvsub description","Bvsum code","Bvsum description","Account code","Account description","Transaction No","Period","Transaction Date","Amount","Classification code","Classification description","Supplier ID","Supplier description","Company registration number","Company registration number Uri","VAT registration number"
"London Borough of Redbridge","http://opendatacommunities.org/doc/london-borough-council/redbridge","9BNONBVO","Outside the BVACOP Objective Structure","9CNONBVO","Outside the BVACOP Objective Structure","REV","Revenue","R0026","Council Tax Collection Fund","05-THIRD","Third Party Payments","05E","Government departments","6752","Precepts","60114603","201103",22/02/2010 00:00:00,2799905,"48583","Local Government","REDACTED DATA","GREATER LONDON AUTHORITY","",,""
"London Borough of Redbridge","http://opendatacommunities.org/doc/london-borough-council/redbridge","9BNONBVO","Outside the BVACOP Objective Structure","9CNONBVO","Outside the BVACOP Objective Structure","BAL","Balance Sheet","B0133","LBR Teachers Pension","99-NONBV","Capital, Balance Sheet and Control","50Q","Other Balances & Reserves","9910","Personal Accounts - Income","70015132","201103",30/06/2010 00:00:00,1661634,"56860","Pensions","REDACTED DATA","TEACHERS PENSION AGENCY","",,""
"London Borough of Redbridge","http://opendatacommunities.org/doc/london-borough-council/redbridge","9BNONBVO","Outside the BVACOP Objective Structure","9CNONBVO","Outside the BVACOP Objective Structure","BAL","Balance Sheet","B0187","TP Opted out Schools","99-NONBV","Capital, Balance Sheet and Control","50Q","Other Balances & Reserves","9910","Personal Accounts - Income","70015132","201103",30/06/2010 00:00:00,137677,"56860","Pensions","REDACTED DATA","TEACHERS PENSION AGENCY","",,""
"London Borough of Redbridge","http://opendatacommunities.org/doc/london-borough-council/redbridge","9BNONBVO","Outside the BVACOP Objective Structure","9CNONBVO","Outside the BVACOP Objective Structure","BAL","Balance Sheet","B0216","Little Heath Teachers Super","99-NONBV","Capital, Balance Sheet and Control","50Q","Other Balances & Reserves","9910","Personal Accounts - Income","70015132","201103",30/06/2010 00:00:00,21833,"56860","Pensions","REDACTED DATA","TEACHERS PENSION AGENCY","",,""
"London Borough of Redbridge","http://opendatacommunities.org/doc/london-borough-council/redbridge","9BNONBVO","Outside the BVACOP Objective Structure","9CNONBVO","Outside the BVACOP Objective Structure","BAL","Balance Sheet","B0133","LBR Teachers Pension","99-NONBV","Capital, Balance Sheet and Control","50Q","Other Balances & Reserves","9910","Personal Accounts - Income","70013995","201103",01/06/2010 00:00:00,1653237,"56860","Pensions","REDACTED DATA","TEACHERS PENSION AGENCY","",,""
"London Borough of Redbridge","http://opendatacommunities.org/doc/london-borough-council/redbridge","9BNONBVO","Outside the BVACOP Objective Structure","9CNONBVO","Outside the BVACOP Objective Structure","BAL","Balance Sheet","B0187","TP Opted out Schools","99-NONBV","Capital, Balance Sheet and Control","50Q","Other Balances & Reserves","9910","Personal Accounts - Income","70013995","201103",01/06/2010 00:00:00,138668,"56860","Pensions","REDACTED DATA","TEACHERS PENSION AGENCY","",,""
"London Borough of Redbridge","http://opendatacommunities.org/doc/london-borough-council/redbridge","9BNONBVO","Outside the BVACOP Objective Structure","9CNONBVO","Outside the BVACOP Objective Structure","BAL","Balance Sheet","B0216","Little Heath Teachers Super","99-NONBV","Capital, Balance Sheet and Control","50Q","Other Balances & Reserves","9910","Personal Accounts - Income","70013995","201103",01/06/2010 00:00:00,22123,"56860","Pensions","REDACTED DATA","TEACHERS PENSION AGENCY","",,""
"London Borough of Redbridge","http://opendatacommunities.org/doc/london-borough-council/redbridge","4BTRAFMGT&RS","Traffic Management & Road Safety","4CPUBLICTRAN","Public Transport","REV","Revenue","R5810","Concessionary Travel","06-TRANSFER","Transfer Payments","06C","Housing Benefits","7100","Concessionary Fares","70013984","201103",10/05/2010 00:00:00,1765967,"48583","Local Government","REDACTED DATA","TRANSPORT TRADING LIMITED","3914810","http://opencorporates.com/companies/gb/3914810",""
"London Borough of Redbridge","http://opendatacommunities.org/doc/london-borough-council/redbridge","9BNONBVO","Outside the BVACOP Objective Structure","9CNONBVO","Outside the BVACOP Objective Structure","CAP","Capital","C1864","Frenford Relocation","99-NONBV","Capital, Balance Sheet and Control","50E","Capital - Contract Payments","9150","Main Contract","70014988","201103",22/06/2010 00:00:00,689651,"21555","Construction Contractors - General","REDACTED DATA","MANSELL CONSTRUCTION SERVICES LIMITED","1197246","http://opencorporates.com/companies/gb/1197246","217967235"
"London Borough of Redbridge","http://opendatacommunities.org/doc/london-borough-council/redbridge","9BNONBVO","Outside the BVACOP Objective Structure","9CNONBVO","Outside the BVACOP Objective Structure","CAP","Capital","C1864","Frenford Relocation","99-NONBV","Capital, Balance Sheet and Control","50E","Capital - Contract Payments","9150","Main Contract","70014989","201103",22/06/2010 00:00:00,597525,"21555","Construction Contractors - General","REDACTED DATA","MANSELL CONSTRUCTION SERVICES LIMITED","1197246","http://opencorporates.com/companies/gb/1197246","217967235"
"London Borough of Redbridge","http://opendatacommunities.org/doc/london-borough-council/redbridge","9BNONBVO","Outside the BVACOP Objective Structure","9CNONBVO","Outside the BVACOP Objective Structure","BAL","Balance Sheet","B0116","6th Form Funding","99-NONBV","Capital, Balance Sheet and Control","50Q","Other Balances & Reserves","9912","Personal Accounts - Expenditure","70014413","201103",01/06/2010 00:00:00,676111,"67330","Schools & Colleges - Further Education","REDACTED DATA","REDBRIDGE COLLEGE OF F.E A/C","3604104","http://opencorporates.com/companies/gb/3604104","791445900"
"London Borough of Redbridge","http://opendatacommunities.org/doc/london-borough-council/redbridge","9BNONBVO","Outside the BVACOP Objective Structure","9CNONBVO","Outside the BVACOP Objective Structure","REV","Revenue","R5131","Repairs and Maintenance - MFS","02-PREMISES","Premises","02A","Repairs, alteration and maintenance of buildings","3027","Miscellaneous Maintenance","70014308","201103",01/06/2010 00:00:00,528154,"61961","Property Maintenance & Repairs","REDACTED DATA","MORRISONS FACILITIES SERVICES LTD","120550","http://opencorporates.com/companies/gb/120550","297280913"
"London Borough of Redbridge","http://opendatacommunities.org/doc/london-borough-council/redbridge","9BNONBVO","Outside the BVACOP Objective Structure","9CNONBVO","Outside the BVACOP Objective Structure","BAL","Balance Sheet","B0118","Housing Subsidy","99-NONBV","Capital, Balance Sheet and Control","50Q","Other Balances & Reserves","9912","Personal Accounts - Expenditure","70014503","201103",03/06/2010 00:00:00,580010,"16580","Central Government","REDACTED DATA","COMMUNITIES & LOCAL GOVERNMENT","",,"888848043"
"London Borough of Redbridge","http://opendatacommunities.org/doc/london-borough-council/redbridge","3BINDSCHFUND","Individual School Funds","3CDELSECOND","Delegated Individual Secondary School Budgets","REV","Revenue","R3614","Mayfield School","99-NONBV","Capital, Balance Sheet and Control","99B","Accounting & Control","7451","LMS Bank Accounts Pilot","70014191","201103",09/06/2010 00:00:00,462985,"67981","Schools - Local Authority","REDACTED DATA","MAYFIELD SCHOOL","",,""
"London Borough of Redbridge","http://opendatacommunities.org/doc/london-borough-council/redbridge","9BNONBVO","Outside the BVACOP Objective Structure","9CNONBVO","Outside the BVACOP Objective Structure","CAP","Capital","C1535","Churchfields Junior School","99-NONBV","Capital, Balance Sheet and Control","50E","Capital - Contract Payments","9150","Main Contract","60113059","201103",07/06/2010 00:00:00,366567,"21555","Construction Contractors - General","REDACTED DATA","MULALLEY & CO LTD","1534913","http://opencorporates.com/companies/gb/1534913","345717150"
"London Borough of Redbridge","http://opendatacommunities.org/doc/london-borough-council/redbridge","2BENVIRONMEN","Environmental Services","2CWASTECOLLN","Waste Collection","REV","Revenue","R6151","MRS - Household Waste","05-THIRD","Third Party Payments","05H","Private contractors","6915","Contractor Payments","60112323","201103",31/05/2010 00:00:00,182800,"83380","Waste Disposal Services","REDACTED DATA","MRS ENVIRONMENTAL SERVICES LTD","2175295","http://opencorporates.com/companies/gb/2175295","524394641"
"London Borough of Redbridge","http://opendatacommunities.org/doc/london-borough-council/redbridge","2BENVIRONMEN","Environmental Services","2CWASTECOLLN","Waste Collection","REV","Revenue","R6211","Kerbside Collection","05-THIRD","Third Party Payments","05H","Private contractors","6915","Contractor Payments","60112323","201103",31/05/2010 00:00:00,113138,"83380","Waste Disposal Services","REDACTED DATA","MRS ENVIRONMENTAL SERVICES LTD","2175295","http://opencorporates.com/companies/gb/2175295","524394641"
"London Borough of Redbridge","http://opendatacommunities.org/doc/london-borough-council/redbridge","2BENVIRONMEN","Environmental Services","2CWASTECOLLN","Waste Collection","REV","Revenue","R6152","MRS - Commercial Waste","05-THIRD","Third Party Payments","05H","Private contractors","6915","Contractor Payments","60112323","201103",31/05/2010 00:00:00,28533,"83380","Waste Disposal Services","REDACTED DATA","MRS ENVIRONMENTAL SERVICES LTD","2175295","http://opencorporates.com/companies/gb/2175295","524394641"
"London Borough of Redbridge","http://opendatacommunities.org/doc/london-borough-council/redbridge","2BENVIRONMEN","Environmental Services","2CWASTECOLLN","Waste Collection","REV","Revenue","R6206","Recycling - Flats","05-THIRD","Third Party Payments","05H","Private contractors","6915","Contractor Payments","60112323","201103",31/05/2010 00:00:00,11111,"83380","Waste Disposal Services","REDACTED DATA","MRS ENVIRONMENTAL SERVICES LTD","2175295","http://opencorporates.com/companies/gb/2175295","524394641"
"London Borough of Redbridge","http://opendatacommunities.org/doc/london-borough-council/redbridge","2BENVIRONMEN","Environmental Services","2CWASTECOLLN","Waste Collection","REV","Revenue","R6215","Garden Waste Collection Service","05-THIRD","Third Party Payments","05H","Private contractors","6915","Contractor Payments","60112323","201103",31/05/2010 00:00:00,6597,"83380","Waste Disposal Services","REDACTED DATA","MRS ENVIRONMENTAL SERVICES LTD","2175295","http://opencorporates.com/companies/gb/2175295","524394641"
"London Borough of Redbridge","http://opendatacommunities.org/doc/london-borough-council/redbridge","2BENVIRONMEN","Environmental Services","2CWASTECOLLN","Waste Collection","REV","Revenue","R6150","Garden Waste","05-THIRD","Third Party Payments","05H","Private contractors","6915","Contractor Payments","60112323","201103",31/05/2010 00:00:00,3853,"83380","Waste Disposal Services","REDACTED DATA","MRS ENVIRONMENTAL SERVICES LTD","2175295","http://opencorporates.com/companies/gb/2175295","524394641"
"London Borough of Redbridge","http://opendatacommunities.org/doc/london-borough-council/redbridge","5BGFHOUSING","General Fund Housing","5CHOUSADVICE","Housing Advice","REV","Revenue","R5530","HAC Temporary Accomodation","05-THIRD","Third Party Payments","05H","Private contractors","6916","Leasing Payments To Landlords","70014024","201103",01/05/2010 00:00:00,313386,"47846","Letting Agents","REDACTED DATA","OMEGA LETTINGS LTD","3662604","http://opencorporates.com/companies/gb/3662604","735892103"
"London Borough of Redbridge","http://opendatacommunities.org/doc/london-borough-council/redbridge","5BGFHOUSING","General Fund Housing","5CHOUSADVICE","Housing Advice","REV","Revenue","R5530","HAC Temporary Accomodation","05-THIRD","Third Party Payments","05H","Private contractors","6916","Leasing Payments To Landlords","70014024","201103",01/05/2010 00:00:00,60230,"47846","Letting Agents","REDACTED DATA","OMEGA LETTINGS LTD","3662604","http://opencorporates.com/companies/gb/3662604","735892103"
"London Borough of Redbridge","http://opendatacommunities.org/doc/london-borough-council/redbridge","5BGFHOUSING","General Fund Housing","5CHOUSADVICE","Housing Advice","REV","Revenue","R5530","HAC Temporary Accomodation","05-THIRD","Third Party Payments","05H","Private contractors","6916","Leasing Payments To Landlords","70014829","201103",01/06/2010 00:00:00,304846,"47846","Letting Agents","REDACTED DATA","OMEGA LETTINGS LTD","3662604","http://opencorporates.com/companies/gb/3662604","735892103"
"London Borough of Redbridge","http://opendatacommunities.org/doc/london-borough-council/redbridge","5BGFHOUSING","General Fund Housing","5CHOUSADVICE","Housing Advice","REV","Revenue","R5530","HAC Temporary Accomodation","05-THIRD","Third Party Payments","05H","Private contractors","6916","Leasing Payments To Landlords","70014829","201103",01/06/2010 00:00:00,43484,"47846","Letting Agents","REDACTED DATA","OMEGA LETTINGS LTD","3662604","http://opencorporates.com/companies/gb/3662604","735892103"
"London Borough of Redbridge","http://opendatacommunities.org/doc/london-borough-council/redbridge","3BINDSCHFUND","Individual School Funds","3CDELSECOND","Delegated Individual Secondary School Budgets","REV","Revenue","R3603","The Chadwell Heath Foundation School","99-NONBV","Capital, Balance Sheet and Control","99B","Accounting & Control","7451","LMS Bank Accounts Pilot","70014199","201103",07/06/2010 00:00:00,350375,"67981","Schools - Local Authority","REDACTED DATA","CHADWELL HEATH FOUNDATION SCHOOL","",,""
"London Borough of Redbridge","http://opendatacommunities.org/doc/london-borough-council/redbridge","6BADULTSOCIA","Adult Social Care","6COLDINCMENT","Older People (65 or over) incl. Older Mentally Ill","REV","Revenue","R4435","Sanctuary Care Residential Contracts","05-THIRD","Third Party Payments","05G","Other establishments","6851","Housing Association Payments","70014547","201103",01/06/2010 00:00:00,87349,"53350","Nursing Homes","REDACTED DATA","SANCTUARY CARE (ENTERPRISE HOUSE)","4231521","http://opencorporates.com/companies/gb/4231521","732012487"
"London Borough of Redbridge","http://opendatacommunities.org/doc/london-borough-council/redbridge","6BADULTSOCIA","Adult Social Care","6COLDINCMENT","Older People (65 or over) incl. Older Mentally Ill","REV","Revenue","R4435","Sanctuary Care Residential Contracts","05-THIRD","Third Party Payments","05G","Other establishments","6851","Housing Association Payments","70014547","201103",01/06/2010 00:00:00,81522,"53350","Nursing Homes","REDACTED DATA","SANCTUARY CARE (ENTERPRISE HOUSE)","4231521","http://opencorporates.com/companies/gb/4231521","732012487"
"London Borough of Redbridge","http://opendatacommunities.org/doc/london-borough-council/redbridge","6BADULTSOCIA","Adult Social Care","6COLDINCMENT","Older People (65 or over) incl. Older Mentally Ill","REV","Revenue","R4435","Sanctuary Care Residential Contracts","05-THIRD","Third Party Payments","05G","Other establishments","6851","Housing Association Payments","70014547","201103",01/06/2010 00:00:00,59387,"53350","Nursing Homes","REDACTED DATA","SANCTUARY CARE (ENTERPRISE HOUSE)","4231521","http://opencorporates.com/companies/gb/4231521","732012487"
"London Borough of Redbridge","http://opendatacommunities.org/doc/london-borough-council/redbridge","6BADULTSOCIA","Adult Social Care","6COLDINCMENT","Older People (65 or over) incl. Older Mentally Ill","REV","Revenue","R4435","Sanctuary Care Residential Contracts","05-THIRD","Third Party Payments","05G","Other establishments","6851","Housing Association Payments","70014547","201103",01/06/2010 00:00:00,59038,"53350","Nursing Homes","REDACTED DATA","SANCTUARY CARE (ENTERPRISE HOUSE)","4231521","http://opencorporates.com/companies/gb/4231521","732012487"
"London Borough of Redbridge","http://opendatacommunities.org/doc/london-borough-council/redbridge","6BADULTSOCIA","Adult Social Care","6COLDINCMENT","Older People (65 or over) incl. Older Mentally Ill","REV","Revenue","R4435","Sanctuary Care Residential Contracts","05-THIRD","Third Party Payments","05G","Other establishments","6851","Housing Association Payments","70014547","201103",01/06/2010 00:00:00,57437,"53350","Nursing Homes","REDACTED DATA","SANCTUARY CARE (ENTERPRISE HOUSE)","4231521","http://opencorporates.com/companies/gb/4231521","732012487"
"London Borough of Redbridge","http://opendatacommunities.org/doc/london-borough-council/redbridge","5BGFHOUSING","General Fund Housing","5CHOUSADVICE","Housing Advice","REV","Revenue","R5530","HAC Temporary Accomodation","05-THIRD","Third Party Payments","05H","Private contractors","6916","Leasing Payments To Landlords","70014830","201103",01/06/2010 00:00:00,260683,"47846","Letting Agents","REDACTED DATA","FINEFAIR CONSULTANCY (LEASING)","",,""
"London Borough of Redbridge","http://opendatacommunities.org/doc/london-borough-council/redbridge","5BGFHOUSING","General Fund Housing","5CHOUSADVICE","Housing Advice","REV","Revenue","R5530","HAC Temporary Accomodation","05-THIRD","Third Party Payments","05H","Private contractors","6916","Leasing Payments To Landlords","70014830","201103",01/06/2010 00:00:00,33525,"47846","Letting Agents","REDACTED DATA","FINEFAIR CONSULTANCY (LEASING)","",,""
"London Borough of Redbridge","http://opendatacommunities.org/doc/london-borough-council/redbridge","5BGFHOUSING","General Fund Housing","5CHOUSADVICE","Housing Advice","REV","Revenue","R5530","HAC Temporary Accomodation","05-THIRD","Third Party Payments","05H","Private contractors","6916","Leasing Payments To Landlords","70014451","201103",01/06/2010 00:00:00,251989,"47846","Letting Agents","REDACTED DATA","THEORI INVESTMENTS LIMITED","4048450","http://opencorporates.com/companies/gb/4048450","773898950"
"London Borough of Redbridge","http://opendatacommunities.org/doc/london-borough-council/redbridge","5BGFHOUSING","General Fund Housing","5CHOUSADVICE","Housing Advice","REV","Revenue","R5530","HAC Temporary Accomodation","05-THIRD","Third Party Payments","05H","Private contractors","6916","Leasing Payments To Landlords","70014451","201103",01/06/2010 00:00:00,32718,"47846","Letting Agents","REDACTED DATA","THEORI INVESTMENTS LIMITED","4048450","http://opencorporates.com/companies/gb/4048450","773898950"
"London Borough of Redbridge","http://opendatacommunities.org/doc/london-borough-council/redbridge","9BNONBVO","Outside the BVACOP Objective Structure","9CNONBVO","Outside the BVACOP Objective Structure","CAP","Capital","C1638","Building Schools for the Future","99-NONBV","Capital, Balance Sheet and Control","50E","Capital - Contract Payments","9150","Main Contract","60113490","201103",07/06/2010 00:00:00,221757,"21555","Construction Contractors - General","REDACTED DATA","WILLMOTT DIXON CONSTRUCTION LTD","768173","http://opencorporates.com/companies/gb/768173","197737796"
"London Borough of Redbridge","http://opendatacommunities.org/doc/london-borough-council/redbridge","9BNONBVO","Outside the BVACOP Objective Structure","9CNONBVO","Outside the BVACOP Objective Structure","REV","Revenue","R0027","General Fund Corporate Items","05-THIRD","Third Party Payments","05B","Joint authorities","6600","East London Waste Authority-Precept","70013479","201103",28/04/2010 00:00:00,200582,"79500","Trade Assoc & Regulatory Bodies","REDACTED DATA","ELWA LTD.","",,"805224756"
"London Borough of Redbridge","http://opendatacommunities.org/doc/london-borough-council/redbridge","3BINDSCHFUND","Individual School Funds","3CDELSPECIAL","Delegated Individual Special School Budgets","REV","Revenue","R3323","Little Heath Foundation School","99-NONBV","Capital, Balance Sheet and Control","99B","Accounting & Control","7451","LMS Bank Accounts Pilot","70014192","201103",09/06/2010 00:00:00,234436,"67981","Schools - Local Authority","REDACTED DATA","LITTLE HEATH SCHOOL A/C","",,""
"London Borough of Redbridge","http://opendatacommunities.org/doc/london-borough-council/redbridge","2BPLAN&DEVEL","Planning & Development Services","2CCOMMDEVT","Community Development","REV","Revenue","R9854","Voluntary Sector Support","05-THIRD","Third Party Payments","05C","Other local authorities","6651","London Council Grants Scheme","60115246","201103",28/06/2010 00:00:00,222532,"48583","Local Government","REDACTED DATA","CITY OF LONDON(LONDON COUNCILS)","",,"766069205"
"London Borough of Redbridge","http://opendatacommunities.org/doc/london-borough-council/redbridge","3BLEACENTFND","LEA Centrally Held School Funds","3CASSURACCES","Assuring Access to Schools","REV","Revenue","R3859","PFI Sch LEA Liability","04-SUPPLIES","Supplies And Services","04I","PFI and Public Private Partnership Schemes","6000","PFI - Unitary Payment","60112600","201103",01/06/2010 00:00:00,181682,"21557","Construction Management","REDACTED DATA","NU SCHOOLS FOR REDBRIDGE LTD","",,"858914279"
"London Borough of Redbridge","http://opendatacommunities.org/doc/london-borough-council/redbridge","3BINDSCHFUND","Individual School Funds","3CDELSECOND","Delegated Individual Secondary School Budgets","REV","Revenue","R3631","Ilford Ursuline High School","99-NONBV","Capital, Balance Sheet and Control","99B","Accounting & Control","7451","LMS Bank Accounts Pilot","70014190","201103",09/06/2010 00:00:00,209905,"67981","Schools - Local Authority","REDACTED DATA","URSULINE HIGH SCHOOL","",,""
"London Borough of Redbridge","http://opendatacommunities.org/doc/london-borough-council/redbridge","3BLEACENTFND","LEA Centrally Held School Funds","3CSCHSTRATMG","Schools Strategic Management","REV","Revenue","R3001","Bldgs and Dev Branch","01-EMPLOYEES","Employees","01A","Direct employee expenses","4","Agency Staff - Pay","3138206","201103",10/06/2010 00:00:00,3194,"31230","Employment & Recruitment Agencies","REDACTED DATA","ADECCO UK LIMITED","",,"232347975"
"London Borough of Redbridge","http://opendatacommunities.org/doc/london-borough-council/redbridge","3BLEACENTFND","LEA Centrally Held School Funds","3CSCHSTRATMG","Schools Strategic Management","REV","Revenue","R3001","Bldgs and Dev Branch","01-EMPLOYEES","Employees","01A","Direct employee expenses","4","Agency Staff - Pay","3138206","201103",10/06/2010 00:00:00,2950,"31230","Employment & Recruitment Agencies","REDACTED DATA","ADECCO UK LIMITED","",,"232347975"
"London Borough of Redbridge","http://opendatacommunities.org/doc/london-borough-council/redbridge","3BLEACENTFND","LEA Centrally Held School Funds","3CSCHSTRATMG","Schools Strategic Management","REV","Revenue","R3001","Bldgs and Dev Branch","01-EMPLOYEES","Employees","01A","Direct employee expenses","4","Agency Staff - Pay","3138206","201103",10/06/2010 00:00:00,2521,"31230","Employment & Recruitment Agencies","REDACTED DATA","ADECCO UK LIMITED","",,"232347975"
"London Borough of Redbridge","http://opendatacommunities.org/doc/london-borough-council/redbridge","3BLEACENTFND","LEA Centrally Held School Funds","3CSCHSTRATMG","Schools Strategic Management","REV","Revenue","R3001","Bldgs and Dev Branch","01-EMPLOYEES","Employees","01A","Direct employee expenses","4","Agency Staff - Pay","3138206","201103",10/06/2010 00:00:00,2353,"31230","Employment & Recruitment Agencies","REDACTED DATA","ADECCO UK LIMITED","",,"232347975"
"London Borough of Redbridge","http://opendatacommunities.org/doc/london-borough-council/redbridge","3BLEACENTFND","LEA Centrally Held School Funds","3CSCHSTRATMG","Schools Strategic Management","REV","Revenue","R3001","Bldgs and Dev Branch","01-EMPLOYEES","Employees","01A","Direct employee expenses","4","Agency Staff - Pay","3138206","201103",10/06/2010 00:00:00,1900,"31230","Employment & Recruitment Agencies","REDACTED DATA","ADECCO UK LIMITED","",,"232347975"
"London Borough of Redbridge","http://opendatacommunities.org/doc/london-borough-council/redbridge","3BLEACENTFND","LEA Centrally Held School Funds","3CSCHSTRATMG","Schools Strategic Management","REV","Revenue","R3001","Bldgs and Dev Branch","01-EMPLOYEES","Employees","01A","Direct employee expenses","4","Agency Staff - Pay","3138206","201103",10/06/2010 00:00:00,1633,"31230","Employment & Recruitment Agencies","REDACTED DATA","ADECCO UK LIMITED","",,"232347975"
"London Borough of Redbridge","http://opendatacommunities.org/doc/london-borough-council/redbridge","3BLEACENTFND","LEA Centrally Held School Funds","3CSCHSTRATMG","Schools Strategic Management","REV","Revenue","R3001","Bldgs and Dev Branch","01-EMPLOYEES","Employees","01A","Direct employee expenses","4","Agency Staff - Pay","3138206","201103",10/06/2010 00:00:00,1500,"31230","Employment & Recruitment Agencies","REDACTED DATA","ADECCO UK LIMITED","",,"232347975"
"London Borough of Redbridge","http://opendatacommunities.org/doc/london-borough-council/redbridge","3BNONSCHFUND","Non-School Funding","","","REV","Revenue","R2065","Childrens Centre Ethnic Diversity","01-EMPLOYEES","Employees","01A","Direct employee expenses","4","Agency Staff - Pay","3138206","201103",10/06/2010 00:00:00,893,"31230","Employment & Recruitment Agencies","REDACTED DATA","ADECCO UK LIMITED","",,"232347975"
"London Borough of Redbridge","http://opendatacommunities.org/doc/london-borough-council/redbridge","3BNONSCHFUND","Non-School Funding","","","REV","Revenue","R2065","Childrens Centre Ethnic Diversity","01-EMPLOYEES","Employees","01A","Direct employee expenses","4","Agency Staff - Pay","3138206","201103",10/06/2010 00:00:00,842,"31230","Employment & Recruitment Agencies","REDACTED DATA","ADECCO UK LIMITED","",,"232347975"
"London Borough of Redbridge","http://opendatacommunities.org/doc/london-borough-council/redbridge","3BNONSCHFUND","Non-School Funding","","","REV","Revenue","R2041","South Childrens Centre","01-EMPLOYEES","Employees","01A","Direct employee expenses","4","Agency Staff - Pay","3138206","201103",10/06/2010 00:00:00,823,"31230","Employment & Recruitment Agencies","REDACTED DATA","ADECCO UK LIMITED","",,"232347975"
"London Borough of Redbridge","http://opendatacommunities.org/doc/london-borough-council/redbridge","2BPLAN&DEVEL","Planning & Development Services","2CCOMMDEVT","Community Development","REV","Revenue","R9855","Safer Communities Core Budget","01-EMPLOYEES","Employees","01A","Direct employee expenses","4","Agency Staff - Pay","3138206","201103",10/06/2010 00:00:00,785,"31230","Employment & Recruitment Agencies","REDACTED DATA","ADECCO UK LIMITED","",,"232347975"
"London Borough of Redbridge","http://opendatacommunities.org/doc/london-borough-council/redbridge","3BNONSCHFUND","Non-School Funding","","","REV","Revenue","R2034","Childminding Team DSG","01-EMPLOYEES","Employees","01A","Direct employee expenses","4","Agency Staff - Pay","3138206","201103",10/06/2010 00:00:00,774,"31230","Employment & Recruitment Agencies","REDACTED DATA","ADECCO UK LIMITED","",,"232347975"
"London Borough of Redbridge","http://opendatacommunities.org/doc/london-borough-council/redbridge","3BNONSCHFUND","Non-School Funding","","","REV","Revenue","R2034","Childminding Team DSG","01-EMPLOYEES","Employees","01A","Direct employee expenses","4","Agency Staff - Pay","3138206","201103",10/06/2010 00:00:00,774,"31230","Employment & Recruitment Agencies","REDACTED DATA","ADECCO UK LIMITED","",,"232347975"
"London Borough of Redbridge","http://opendatacommunities.org/doc/london-borough-council/redbridge","3BNONSCHFUND","Non-School Funding","","","REV","Revenue","R2034","Childminding Team DSG","01-EMPLOYEES","Employees","01A","Direct employee expenses","4","Agency Staff - Pay","3138206","201103",10/06/2010 00:00:00,774,"31230","Employment & Recruitment Agencies","REDACTED DATA","ADECCO UK LIMITED","",,"232347975"
"London Borough of Redbridge","http://opendatacommunities.org/doc/london-borough-council/redbridge","3BNONSCHFUND","Non-School Funding","","","REV","Revenue","R2041","South Childrens Centre","01-EMPLOYEES","Employees","01A","Direct employee expenses","4","Agency Staff - Pay","3138206","201103",10/06/2010 00:00:00,766,"31230","Employment & Recruitment Agencies","REDACTED DATA","ADECCO UK LIMITED","",,"232347975"
"London Borough of Redbridge","http://opendatacommunities.org/doc/london-borough-council/redbridge","2BCULTUR&REL","Cultural & Related Services","2COPENSPACES","Open Spaces","REV","Revenue","R6313","Parks Operational","01-EMPLOYEES","Employees","01A","Direct employee expenses","4","Agency Staff - Pay","3138206","201103",10/06/2010 00:00:00,758,"31230","Employment & Recruitment Agencies","REDACTED DATA","ADECCO UK LIMITED","",,"232347975"
"London Borough of Redbridge","http://opendatacommunities.org/doc/london-borough-council/redbridge","2BPLAN&DEVEL","Planning & Development Services","2CCOMMDEVT","Community Development","REV","Revenue","R9855","Safer Communities Core Budget","01-EMPLOYEES","Employees","01A","Direct employee expenses","4","Agency Staff - Pay","3138206","201103",10/06/2010 00:00:00,753,"31230","Employment & Recruitment Agencies","REDACTED DATA","ADECCO UK LIMITED","",,"232347975"
"London Borough of Redbridge","http://opendatacommunities.org/doc/london-borough-council/redbridge","2BCULTUR&REL","Cultural & Related Services","2COPENSPACES","Open Spaces","REV","Revenue","R6313","Parks Operational","01-EMPLOYEES","Employees","01A","Direct employee expenses","4","Agency Staff - Pay","3138206","201103",10/06/2010 00:00:00,748,"31230","Employment & Recruitment Agencies","REDACTED DATA","ADECCO UK LIMITED","",,"232347975"
"London Borough of Redbridge","http://opendatacommunities.org/doc/london-borough-council/redbridge","3BNONSCHFUND","Non-School Funding","","","REV","Revenue","R2041","South Childrens Centre","01-EMPLOYEES","Employees","01A","Direct employee expenses","4","Agency Staff - Pay","3138206","201103",10/06/2010 00:00:00,738,"31230","Employment & Recruitment Agencies","REDACTED DATA","ADECCO UK LIMITED","",,"232347975"
"London Borough of Redbridge","http://opendatacommunities.org/doc/london-borough-council/redbridge","2BPLAN&DEVEL","Planning & Development Services","2CCOMMDEVT","Community Development","REV","Revenue","R9855","Safer Communities Core Budget","01-EMPLOYEES","Employees","01A","Direct employee expenses","4","Agency Staff - Pay","3138206","201103",10/06/2010 00:00:00,734,"31230","Employment & Recruitment Agencies","REDACTED DATA","ADECCO UK LIMITED","",,"232347975"
"London Borough of Redbridge","http://opendatacommunities.org/doc/london-borough-council/redbridge","2BPLAN&DEVEL","Planning & Development Services","2CCOMMDEVT","Community Development","REV","Revenue","R9855","Safer Communities Core Budget","01-EMPLOYEES","Employees","01A","Direct employee expenses","4","Agency Staff - Pay","3138206","201103",10/06/2010 00:00:00,717,"31230","Employment & Recruitment Agencies","REDACTED DATA","ADECCO UK LIMITED","",,"232347975"
"London Borough of Redbridge","http://opendatacommunities.org/doc/london-borough-council/redbridge","5BGFHOUSING","General Fund Housing","","","REV","Revenue","R5529","HAC Assessment","01-EMPLOYEES","Employees","01A","Direct employee expenses","4","Agency Staff - Pay","3138206","201103",10/06/2010 00:00:00,709,"31230","Employment & Recruitment Agencies","REDACTED DATA","ADECCO UK LIMITED","",,"232347975"
"London Borough of Redbridge","http://opendatacommunities.org/doc/london-borough-council/redbridge","5BGFHOUSING","General Fund Housing","","","REV","Revenue","R5529","HAC Assessment","01-EMPLOYEES","Employees","01A","Direct employee expenses","4","Agency Staff - Pay","3138206","201103",10/06/2010 00:00:00,697,"31230","Employment & Recruitment Agencies","REDACTED DATA","ADECCO UK LIMITED","",,"232347975"
"London Borough of Redbridge","http://opendatacommunities.org/doc/london-borough-council/redbridge","5BGFHOUSING","General Fund Housing","5CHOUSADVICE","Housing Advice","REV","Revenue","R5530","HAC Temporary Accomodation","01-EMPLOYEES","Employees","01A","Direct employee expenses","4","Agency Staff - Pay","3138206","201103",10/06/2010 00:00:00,684,"31230","Employment & Recruitment Agencies","REDACTED DATA","ADECCO UK LIMITED","",,"232347975"
"London Borough of Redbridge","http://opendatacommunities.org/doc/london-borough-council/redbridge","5BGFHOUSING","General Fund Housing","","","REV","Revenue","R5529","HAC Assessment","01-EMPLOYEES","Employees","01A","Direct employee expenses","4","Agency Staff - Pay","3138206","201103",10/06/2010 00:00:00,679,"31230","Employment & Recruitment Agencies","REDACTED DATA","ADECCO UK LIMITED","",,"232347975"
"London Borough of Redbridge","http://opendatacommunities.org/doc/london-borough-council/redbridge","6BADULTSOCIA","Adult Social Care","6CSUPPSERMGT","Support Service & Management Costs","REV","Revenue","R4433","Care First Team","01-EMPLOYEES","Employees","01A","Direct employee expenses","4","Agency Staff - Pay","3138206","201103",10/06/2010 00:00:00,668,"31230","Employment & Recruitment Agencies","REDACTED DATA","ADECCO UK LIMITED","",,"232347975"
"London Borough of Redbridge","http://opendatacommunities.org/doc/london-borough-council/redbridge","5BGFHOUSING","General Fund Housing","5CHOUSADVICE","Housing Advice","REV","Revenue","R5530","HAC Temporary Accomodation","01-EMPLOYEES","Employees","01A","Direct employee expenses","4","Agency Staff - Pay","3138206","201103",10/06/2010 00:00:00,664,"31230","Employment & Recruitment Agencies","REDACTED DATA","ADECCO UK LIMITED","",,"232347975"
"London Borough of Redbridge","http://opendatacommunities.org/doc/london-borough-council/redbridge","5BGFHOUSING","General Fund Housing","5CHOUSADVICE","Housing Advice","REV","Revenue","R5530","HAC Temporary Accomodation","01-EMPLOYEES","Employees","01A","Direct employee expenses","4","Agency Staff - Pay","3138206","201103",10/06/2010 00:00:00,664,"31230","Employment & Recruitment Agencies","REDACTED DATA","ADECCO UK LIMITED","",,"232347975"
"London Borough of Redbridge","http://opendatacommunities.org/doc/london-borough-council/redbridge","3BNONSCHFUND","Non-School Funding","","","REV","Revenue","R2065","Childrens Centre Ethnic Diversity","01-EMPLOYEES","Employees","01A","Direct employee expenses","4","Agency Staff - Pay","3138206","201103",10/06/2010 00:00:00,657,"31230","Employment & Recruitment Agencies","REDACTED DATA","ADECCO UK LIMITED","",,"232347975"
"London Borough of Redbridge","http://opendatacommunities.org/doc/london-borough-council/redbridge","5BGFHOUSING","General Fund Housing","5CHOUSADVICE","Housing Advice","REV","Revenue","R5530","HAC Temporary Accomodation","01-EMPLOYEES","Employees","01A","Direct employee expenses","4","Agency Staff - Pay","3138206","201103",10/06/2010 00:00:00,653,"31230","Employment & Recruitment Agencies","REDACTED DATA","ADECCO UK LIMITED","",,"232347975"
"London Borough of Redbridge","http://opendatacommunities.org/doc/london-borough-council/redbridge","2BPLAN&DEVEL","Planning & Development Services","2CCOMMDEVT","Community Development","REV","Revenue","R9855","Safer Communities Core Budget","01-EMPLOYEES","Employees","01A","Direct employee expenses","4","Agency Staff - Pay","3138206","201103",10/06/2010 00:00:00,643,"31230","Employment & Recruitment Agencies","REDACTED DATA","ADECCO UK LIMITED","",,"232347975"
"London Borough of Redbridge","http://opendatacommunities.org/doc/london-borough-council/redbridge","5BGFHOUSING","General Fund Housing","5CHOUSADVICE","Housing Advice","REV","Revenue","R5530","HAC Temporary Accomodation","01-EMPLOYEES","Employees","01A","Direct employee expenses","4","Agency Staff - Pay","3138206","201103",10/06/2010 00:00:00,633,"31230","Employment & Recruitment Agencies","REDACTED DATA","ADECCO UK LIMITED","",,"232347975"
"London Borough of Redbridge","http://opendatacommunities.org/doc/london-borough-council/redbridge","1BOTHEROPI&E","Other Operating Income & Expenditure","","","REV","Revenue","R1430","Single Status","01-EMPLOYEES","Employees","01A","Direct employee expenses","4","Agency Staff - Pay","3138206","201103",10/06/2010 00:00:00,620,"31230","Employment & Recruitment Agencies","REDACTED DATA","ADECCO UK LIMITED","",,"232347975"
"London Borough of Redbridge","http://opendatacommunities.org/doc/london-borough-council/redbridge","2BPLAN&DEVEL","Planning & Development Services","2CECONDEVT","Economic Development","REV","Revenue","R9873","Regeneration Support","01-EMPLOYEES","Employees","01A","Direct employee expenses","4","Agency Staff - Pay","3138206","201103",10/06/2010 00:00:00,620,"31230","Employment & Recruitment Agencies","REDACTED DATA","ADECCO UK LIMITED","",,"232347975"
"London Borough of Redbridge","http://opendatacommunities.org/doc/london-borough-council/redbridge","5BGFHOUSING","General Fund Housing","5CHOUSADVICE","Housing Advice","REV","Revenue","R5530","HAC Temporary Accomodation","01-EMPLOYEES","Employees","01A","Direct employee expenses","4","Agency Staff - Pay","3138206","201103",10/06/2010 00:00:00,613,"31230","Employment & Recruitment Agencies","REDACTED DATA","ADECCO UK LIMITED","",,"232347975"
"London Borough of Redbridge","http://opendatacommunities.org/doc/london-borough-council/redbridge","5BGFHOUSING","General Fund Housing","","","REV","Revenue","R5529","HAC Assessment","01-EMPLOYEES","Employees","01A","Direct employee expenses","4","Agency Staff - Pay","3138206","201103",10/06/2010 00:00:00,606,"31230","Employment & Recruitment Agencies","REDACTED DATA","ADECCO UK LIMITED","",,"232347975"
"London Borough of Redbridge","http://opendatacommunities.org/doc/london-borough-council/redbridge","2BPLAN&DEVEL","Planning & Development Services","2CECONDEVT","Economic Development","REV","Revenue","R9873","Regeneration Support","01-EMPLOYEES","Employees","01A","Direct employee expenses","4","Agency Staff - Pay","3138206","201103",10/06/2010 00:00:00,602,"31230","Employment & Recruitment Agencies","REDACTED DATA","ADECCO UK LIMITED","",,"232347975"
"London Borough of Redbridge","http://opendatacommunities.org/doc/london-borough-council/redbridge","2BPLAN&DEVEL","Planning & Development Services","2CECONDEVT","Economic Development","REV","Revenue","R9873","Regeneration Support","01-EMPLOYEES","Employees","01A","Direct employee expenses","4","Agency Staff - Pay","3138206","201103",10/06/2010 00:00:00,602,"31230","Employment & Recruitment Agencies","REDACTED DATA","ADECCO UK LIMITED","",,"232347975"
"London Borough of Redbridge","http://opendatacommunities.org/doc/london-borough-council/redbridge","5BGFHOUSING","General Fund Housing","5CHOUSADVICE","Housing Advice","REV","Revenue","R5530","HAC Temporary Accomodation","01-EMPLOYEES","Employees","01A","Direct employee expenses","4","Agency Staff - Pay","3138206","201103",10/06/2010 00:00:00,602,"31230","Employment & Recruitment Agencies","REDACTED DATA","ADECCO UK LIMITED","",,"232347975"
"London Borough of Redbridge","http://opendatacommunities.org/doc/london-borough-council/redbridge","3BLEACENTFND","LEA Centrally Held School Funds","","","REV","Revenue","R2006","SEN Assessment Team DSG","01-EMPLOYEES","Employees","01A","Direct employee expenses","4","Agency Staff - Pay","3138206","201103",10/06/2010 00:00:00,599,"31230","Employment & Recruitment Agencies","REDACTED DATA","ADECCO UK LIMITED","",,"232347975"
"London Borough of Redbridge","http://opendatacommunities.org/doc/london-borough-council/redbridge","5BGFHOUSING","General Fund Housing","","","REV","Revenue","R5500","Housing Advice Centre","01-EMPLOYEES","Employees","01A","Direct employee expenses","4","Agency Staff - Pay","3138206","201103",10/06/2010 00:00:00,599,"31230","Employment & Recruitment Agencies","REDACTED DATA","ADECCO UK LIMITED","",,"232347975"
"London Borough of Redbridge","http://opendatacommunities.org/doc/london-borough-council/redbridge","5BGFHOUSING","General Fund Housing","","","REV","Revenue","R5500","Housing Advice Centre","01-EMPLOYEES","Employees","01A","Direct employee expenses","4","Agency Staff - Pay","3138206","201103",10/06/2010 00:00:00,592,"31230","Employment & Recruitment Agencies","REDACTED DATA","ADECCO UK LIMITED","",,"232347975"
"London Borough of Redbridge","http://opendatacommunities.org/doc/london-borough-council/redbridge","5BGFHOUSING","General Fund Housing","","","REV","Revenue","R5500","Housing Advice Centre","01-EMPLOYEES","Employees","01A","Direct employee expenses","4","Agency Staff - Pay","3138206","201103",10/06/2010 00:00:00,587,"31230","Employment & Recruitment Agencies","REDACTED DATA","ADECCO UK LIMITED","",,"232347975"
"London Borough of Redbridge","http://opendatacommunities.org/doc/london-borough-council/redbridge","5BGFHOUSING","General Fund Housing","5CHOUSADVICE","Housing Advice","REV","Revenue","R5530","HAC Temporary Accomodation","01-EMPLOYEES","Employees","01A","Direct employee expenses","4","Agency Staff - Pay","3138206","201103",10/06/2010 00:00:00,586,"31230","Employment & Recruitment Agencies","REDACTED DATA","ADECCO UK LIMITED","",,"232347975"
"London Borough of Redbridge","http://opendatacommunities.org/doc/london-borough-council/redbridge","3BLEACENTFND","LEA Centrally Held School Funds","","","REV","Revenue","R2006","SEN Assessment Team DSG","01-EMPLOYEES","Employees","01A","Direct employee expenses","4","Agency Staff - Pay","3138206","201103",10/06/2010 00:00:00,582,"31230","Employment & Recruitment Agencies","REDACTED DATA","ADECCO UK LIMITED","",,"232347975"
"London Borough of Redbridge","http://opendatacommunities.org/doc/london-borough-council/redbridge","5BGFHOUSING","General Fund Housing","5CHOUSADVICE","Housing Advice","REV","Revenue","R5530","HAC Temporary Accomodation","01-EMPLOYEES","Employees","01A","Direct employee expenses","4","Agency Staff - Pay","3138206","201103",10/06/2010 00:00:00,582,"31230","Employment & Recruitment Agencies","REDACTED DATA","ADECCO UK LIMITED","",,"232347975"
"London Borough of Redbridge","http://opendatacommunities.org/doc/london-borough-council/redbridge","5BGFHOUSING","General Fund Housing","5CHOUSADVICE","Housing Advice","REV","Revenue","R5530","HAC Temporary Accomodation","01-EMPLOYEES","Employees","01A","Direct employee expenses","4","Agency Staff - Pay","3138206","201103",10/06/2010 00:00:00,578,"31230","Employment & Recruitment Agencies","REDACTED DATA","ADECCO UK LIMITED","",,"232347975"
"London Borough of Redbridge","http://opendatacommunities.org/doc/london-borough-council/redbridge","1BOTHEROPI&E","Other Operating Income & Expenditure","1CTRADSURDEF","Trading Account Surpluses & Deficits","REV","Revenue","R9595","Pub.Hall-Common Exps","01-EMPLOYEES","Employees","01A","Direct employee expenses","4","Agency Staff - Pay","3138206","201103",10/06/2010 00:00:00,575,"31230","Employment & Recruitment Agencies","REDACTED DATA","ADECCO UK LIMITED","",,"232347975"
"London Borough of Redbridge","http://opendatacommunities.org/doc/london-borough-council/redbridge","5BGFHOUSING","General Fund Housing","5CHOUSADVICE","Housing Advice","REV","Revenue","R5530","HAC Temporary Accomodation","01-EMPLOYEES","Employees","01A","Direct employee expenses","4","Agency Staff - Pay","3138206","201103",10/06/2010 00:00:00,571,"31230","Employment & Recruitment Agencies","REDACTED DATA","ADECCO UK LIMITED","",,"232347975"
"London Borough of Redbridge","http://opendatacommunities.org/doc/london-borough-council/redbridge","5BGFHOUSING","General Fund Housing","","","REV","Revenue","R5500","Housing Advice Centre","01-EMPLOYEES","Employees","01A","Direct employee expenses","4","Agency Staff - Pay","3138206","201103",10/06/2010 00:00:00,562,"31230","Employment & Recruitment Agencies","REDACTED DATA","ADECCO UK LIMITED","",,"232347975"
"London Borough of Redbridge","http://opendatacommunities.org/doc/london-borough-council/redbridge","1BOTHEROPI&E","Other Operating Income & Expenditure","","","REV","Revenue","R1430","Single Status","01-EMPLOYEES","Employees","01A","Direct employee expenses","4","Agency Staff - Pay","3138206","201103",10/06/2010 00:00:00,561,"31230","Employment & Recruitment Agencies","REDACTED DATA","ADECCO UK LIMITED","",,"232347975"
"London Borough of Redbridge","http://opendatacommunities.org/doc/london-borough-council/redbridge","5BGFHOUSING","General Fund Housing","5CHOUSADVICE","Housing Advice","REV","Revenue","R5530","HAC Temporary Accomodation","01-EMPLOYEES","Employees","01A","Direct employee expenses","4","Agency Staff - Pay","3138206","201103",10/06/2010 00:00:00,559,"31230","Employment & Recruitment Agencies","REDACTED DATA","ADECCO UK LIMITED","",,"232347975"
"London Borough of Redbridge","http://opendatacommunities.org/doc/london-borough-council/redbridge","5BGFHOUSING","General Fund Housing","","","REV","Revenue","R5500","Housing Advice Centre","01-EMPLOYEES","Employees","01A","Direct employee expenses","4","Agency Staff - Pay","3138206","201103",10/06/2010 00:00:00,558,"31230","Employment & Recruitment Agencies","REDACTED DATA","ADECCO UK LIMITED","",,"232347975"
"London Borough of Redbridge","http://opendatacommunities.org/doc/london-borough-council/redbridge","5BGFHOUSING","General Fund Housing","5CHOUSADVICE","Housing Advice","REV","Revenue","R5530","HAC Temporary Accomodation","01-EMPLOYEES","Employees","01A","Direct employee expenses","4","Agency Staff - Pay","3138206","201103",10/06/2010 00:00:00,557,"31230","Employment & Recruitment Agencies","REDACTED DATA","ADECCO UK LIMITED","",,"232347975"
"London Borough of Redbridge","http://opendatacommunities.org/doc/london-borough-council/redbridge","6BSOCIALSERV","Social Services","","","REV","Revenue","R2140","CQ and F - Safeguarding and Care Planning Soc Care","01-EMPLOYEES","Employees","01A","Direct employee expenses","4","Agency Staff - Pay","3138206","201103",10/06/2010 00:00:00,554,"31230","Employment & Recruitment Agencies","REDACTED DATA","ADECCO UK LIMITED","",,"232347975"
"London Borough of Redbridge","http://opendatacommunities.org/doc/london-borough-council/redbridge","5BGFHOUSING","General Fund Housing","5CHOUSADVICE","Housing Advice","REV","Revenue","R5530","HAC Temporary Accomodation","01-EMPLOYEES","Employees","01A","Direct employee expenses","4","Agency Staff - Pay","3138206","201103",10/06/2010 00:00:00,554,"31230","Employment & Recruitment Agencies","REDACTED DATA","ADECCO UK LIMITED","",,"232347975"
"London Borough of Redbridge","http://opendatacommunities.org/doc/london-borough-council/redbridge","5BGFHOUSING","General Fund Housing","5CHOUSADVICE","Housing Advice","REV","Revenue","R5530","HAC Temporary Accomodation","01-EMPLOYEES","Employees","01A","Direct employee expenses","4","Agency Staff - Pay","3138206","201103",10/06/2010 00:00:00,553,"31230","Employment & Recruitment Agencies","REDACTED DATA","ADECCO UK LIMITED","",,"232347975"
"London Borough of Redbridge","http://opendatacommunities.org/doc/london-borough-council/redbridge","5BGFHOUSING","General Fund Housing","","","REV","Revenue","R5500","Housing Advice Centre","01-EMPLOYEES","Employees","01A","Direct employee expenses","4","Agency Staff - Pay","3138206","201103",10/06/2010 00:00:00,553,"31230","Employment & Recruitment Agencies","REDACTED DATA","ADECCO UK LIMITED","",,"232347975"
"London Borough of Redbridge","http://opendatacommunities.org/doc/london-borough-council/redbridge","5BGFHOUSING","General Fund Housing","5CHOUSADVICE","Housing Advice","REV","Revenue","R5530","HAC Temporary Accomodation","01-EMPLOYEES","Employees","01A","Direct employee expenses","4","Agency Staff - Pay","3138206","201103",10/06/2010 00:00:00,545,"31230","Employment & Recruitment Agencies","REDACTED DATA","ADECCO UK LIMITED","",,"232347975"
"London Borough of Redbridge","http://opendatacommunities.org/doc/london-borough-council/redbridge","5BGFHOUSING","General Fund Housing","5CHOUSADVICE","Housing Advice","REV","Revenue","R5530","HAC Temporary Accomodation","01-EMPLOYEES","Employees","01A","Direct employee expenses","4","Agency Staff - Pay","3138206","201103",10/06/2010 00:00:00,543,"31230","Employment & Recruitment Agencies","REDACTED DATA","ADECCO UK LIMITED","",,"232347975"
"London Borough of Redbridge","http://opendatacommunities.org/doc/london-borough-council/redbridge","3BLEACENTFND","LEA Centrally Held School Funds","","","REV","Revenue","R2006","SEN Assessment Team DSG","01-EMPLOYEES","Employees","01A","Direct employee expenses","4","Agency Staff - Pay","3138206","201103",10/06/2010 00:00:00,542,"31230","Employment & Recruitment Agencies","REDACTED DATA","ADECCO UK LIMITED","",,"232347975"
"London Borough of Redbridge","http://opendatacommunities.org/doc/london-borough-council/redbridge","5BGFHOUSING","General Fund Housing","5CHOUSADVICE","Housing Advice","REV","Revenue","R5530","HAC Temporary Accomodation","01-EMPLOYEES","Employees","01A","Direct employee expenses","4","Agency Staff - Pay","3138206","201103",10/06/2010 00:00:00,542,"31230","Employment & Recruitment Agencies","REDACTED DATA","ADECCO UK LIMITED","",,"232347975"
"London Borough of Redbridge","http://opendatacommunities.org/doc/london-borough-council/redbridge","4BTRANSPORT","Transport Planning, Policy & Strategy","4CMANGT&SUPP","Management & Support Services","REV","Revenue","R7000","Highways Executive","01-EMPLOYEES","Employees","01A","Direct employee expenses","4","Agency Staff - Pay","3138206","201103",10/06/2010 00:00:00,540,"31230","Employment & Recruitment Agencies","REDACTED DATA","ADECCO UK LIMITED","",,"232347975"
"London Borough of Redbridge","http://opendatacommunities.org/doc/london-borough-council/redbridge","3BLEACENTFND","LEA Centrally Held School Funds","3CFACILIMPRO","Facilitating School Improvement","REV","Revenue","R3240","Advisers/Inspectors","01-EMPLOYEES","Employees","01A","Direct employee expenses","4","Agency Staff - Pay","3138206","201103",10/06/2010 00:00:00,537,"31230","Employment & Recruitment Agencies","REDACTED DATA","ADECCO UK LIMITED","",,"232347975"
"London Borough of Redbridge","http://opendatacommunities.org/doc/london-borough-council/redbridge","5BGFHOUSING","General Fund Housing","","","REV","Revenue","R5500","Housing Advice Centre","01-EMPLOYEES","Employees","01A","Direct employee expenses","4","Agency Staff - Pay","3138206","201103",10/06/2010 00:00:00,535,"31230","Employment & Recruitment Agencies","REDACTED DATA","ADECCO UK LIMITED","",,"232347975"
"London Borough of Redbridge","http://opendatacommunities.org/doc/london-borough-council/redbridge","4BTRANSPORT","Transport Planning, Policy & Strategy","4CMANGT&SUPP","Management & Support Services","REV","Revenue","R7000","Highways Executive","01-EMPLOYEES","Employees","01A","Direct employee expenses","4","Agency Staff - Pay","3138206","201103",10/06/2010 00:00:00,533,"31230","Employment & Recruitment Agencies","REDACTED DATA","ADECCO UK LIMITED","",,"232347975"
"London Borough of Redbridge","http://opendatacommunities.org/doc/london-borough-council/redbridge","5BGFHOUSING","General Fund Housing","5CHOUSADVICE","Housing Advice","REV","Revenue","R5530","HAC Temporary Accomodation","01-EMPLOYEES","Employees","01A","Direct employee expenses","4","Agency Staff - Pay","3138206","201103",10/06/2010 00:00:00,526,"31230","Employment & Recruitment Agencies","REDACTED DATA","ADECCO UK LIMITED","",,"232347975"
"London Borough of Redbridge","http://opendatacommunities.org/doc/london-borough-council/redbridge","6BSOCIALSERV","Social Services","","","REV","Revenue","R2140","CQ and F - Safeguarding and Care Planning Soc Care","01-EMPLOYEES","Employees","01A","Direct employee expenses","4","Agency Staff - Pay","3138206","201103",10/06/2010 00:00:00,526,"31230","Employment & Recruitment Agencies","REDACTED DATA","ADECCO UK LIMITED","",,"232347975"
"London Borough of Redbridge","http://opendatacommunities.org/doc/london-borough-council/redbridge","2BPLAN&DEVEL","Planning & Development Services","2CCOMMDEVT","Community Development","REV","Revenue","R9855","Safer Communities Core Budget","01-EMPLOYEES","Employees","01A","Direct employee expenses","4","Agency Staff - Pay","3138206","201103",10/06/2010 00:00:00,525,"31230","Employment & Recruitment Agencies","REDACTED DATA","ADECCO UK LIMITED","",,"232347975"
"London Borough of Redbridge","http://opendatacommunities.org/doc/london-borough-council/redbridge","6BSOCIALSERV","Social Services","","","REV","Revenue","R2110","SEN and CD - Business and Finance Social Care","01-EMPLOYEES","Employees","01A","Direct employee expenses","4","Agency Staff - Pay","3138206","201103",10/06/2010 00:00:00,524,"31230","Employment & Recruitment Agencies","REDACTED DATA","ADECCO UK LIMITED","",,"232347975"
"London Borough of Redbridge","http://opendatacommunities.org/doc/london-borough-council/redbridge","5BGFHOUSING","General Fund Housing","","","REV","Revenue","R5529","HAC Assessment","01-EMPLOYEES","Employees","01A","Direct employee expenses","4","Agency Staff - Pay","3138206","201103",10/06/2010 00:00:00,521,"31230","Employment & Recruitment Agencies","REDACTED DATA","ADECCO UK LIMITED","",,"232347975"
"London Borough of Redbridge","http://opendatacommunities.org/doc/london-borough-council/redbridge","1BOTHEROPI&E","Other Operating Income & Expenditure","1CTRADSURDEF","Trading Account Surpluses & Deficits","REV","Revenue","R9595","Pub.Hall-Common Exps","01-EMPLOYEES","Employees","01A","Direct employee expenses","4","Agency Staff - Pay","3138206","201103",10/06/2010 00:00:00,520,"31230","Employment & Recruitment Agencies","REDACTED DATA","ADECCO UK LIMITED","",,"232347975"
"London Borough of Redbridge","http://opendatacommunities.org/doc/london-borough-council/redbridge","3BLEACENTFND","LEA Centrally Held School Funds","3CFACILIMPRO","Facilitating School Improvement","REV","Revenue","R3240","Advisers/Inspectors","01-EMPLOYEES","Employees","01A","Direct employee expenses","4","Agency Staff - Pay","3138206","201103",10/06/2010 00:00:00,519,"31230","Employment & Recruitment Agencies","REDACTED DATA","ADECCO UK LIMITED","",,"232347975"
"London Borough of Redbridge","http://opendatacommunities.org/doc/london-borough-council/redbridge","2BCULTUR&REL","Cultural & Related Services","2COPENSPACES","Open Spaces","REV","Revenue","R6313","Parks Operational","01-EMPLOYEES","Employees","01A","Direct employee expenses","4","Agency Staff - Pay","3138206","201103",10/06/2010 00:00:00,518,"31230","Employment & Recruitment Agencies","REDACTED DATA","ADECCO UK LIMITED","",,"232347975"
"London Borough of Redbridge","http://opendatacommunities.org/doc/london-borough-council/redbridge","2BCULTUR&REL","Cultural & Related Services","2COPENSPACES","Open Spaces","REV","Revenue","R6313","Parks Operational","01-EMPLOYEES","Employees","01A","Direct employee expenses","4","Agency Staff - Pay","3138206","201103",10/06/2010 00:00:00,518,"31230","Employment & Recruitment Agencies","REDACTED DATA","ADECCO UK LIMITED","",,"232347975"
"London Borough of Redbridge","http://opendatacommunities.org/doc/london-borough-council/redbridge","6BADULTSOCIA","Adult Social Care","6CSUPPSERMGT","Support Service & Management Costs","REV","Revenue","R4433","Care First Team","01-EMPLOYEES","Employees","01A","Direct employee expenses","4","Agency Staff - Pay","3138206","201103",10/06/2010 00:00:00,516,"31230","Employment & Recruitment Agencies","REDACTED DATA","ADECCO UK LIMITED","",,"232347975"
"London Borough of Redbridge","http://opendatacommunities.org/doc/london-borough-council/redbridge","2BPLAN&DEVEL","Planning & Development Services","2CECONDEVT","Economic Development","REV","Revenue","R9873","Regeneration Support","01-EMPLOYEES","Employees","01A","Direct employee expenses","4","Agency Staff - Pay","3138206","201103",10/06/2010 00:00:00,514,"31230","Employment & Recruitment Agencies","REDACTED DATA","ADECCO UK LIMITED","",,"232347975"
"London Borough of Redbridge","http://opendatacommunities.org/doc/london-borough-council/redbridge","5BGFHOUSING","General Fund Housing","5CHOUSADVICE","Housing Advice","REV","Revenue","R5530","HAC Temporary Accomodation","01-EMPLOYEES","Employees","01A","Direct employee expenses","4","Agency Staff - Pay","3138206","201103",10/06/2010 00:00:00,513,"31230","Employment & Recruitment Agencies","REDACTED DATA","ADECCO UK LIMITED","",,"232347975"
"London Borough of Redbridge","http://opendatacommunities.org/doc/london-borough-council/redbridge","2BPLAN&DEVEL","Planning & Development Services","2CCOMMDEVT","Community Development","REV","Revenue","R9855","Safer Communities Core Budget","01-EMPLOYEES","Employees","01A","Direct employee expenses","4","Agency Staff - Pay","3138206","201103",10/06/2010 00:00:00,510,"31230","Employment & Recruitment Agencies","REDACTED DATA","ADECCO UK LIMITED","",,"232347975"
"London Borough of Redbridge","http://opendatacommunities.org/doc/london-borough-council/redbridge","5BGFHOUSING","General Fund Housing","","","REV","Revenue","R5529","HAC Assessment","01-EMPLOYEES","Employees","01A","Direct employee expenses","4","Agency Staff - Pay","3138206","201103",10/06/2010 00:00:00,510,"31230","Employment & Recruitment Agencies","REDACTED DATA","ADECCO UK LIMITED","",,"232347975"
"London Borough of Redbridge","http://opendatacommunities.org/doc/london-borough-council/redbridge","5BGFHOUSING","General Fund Housing","5CHOUSADVICE","Housing Advice","REV","Revenue","R5530","HAC Temporary Accomodation","01-EMPLOYEES","Employees","01A","Direct employee expenses","4","Agency Staff - Pay","3138206","201103",10/06/2010 00:00:00,509,"31230","Employment & Recruitment Agencies","REDACTED DATA","ADECCO UK LIMITED","",,"232347975"
"London Borough of Redbridge","http://opendatacommunities.org/doc/london-borough-council/redbridge","2BCULTUR&REL","Cultural & Related Services","2COPENSPACES","Open Spaces","REV","Revenue","R6313","Parks Operational","01-EMPLOYEES","Employees","01A","Direct employee expenses","4","Agency Staff - Pay","3138206","201103",10/06/2010 00:00:00,506,"31230","Employment & Recruitment Agencies","REDACTED DATA","ADECCO UK LIMITED","",,"232347975"
"London Borough of Redbridge","http://opendatacommunities.org/doc/london-borough-council/redbridge","2BCULTUR&REL","Cultural & Related Services","2COPENSPACES","Open Spaces","REV","Revenue","R6313","Parks Operational","01-EMPLOYEES","Employees","01A","Direct employee expenses","4","Agency Staff - Pay","3138206","201103",10/06/2010 00:00:00,500,"31230","Employment & Recruitment Agencies","REDACTED DATA","ADECCO UK LIMITED","",,"232347975"
"London Borough of Redbridge","http://opendatacommunities.org/doc/london-borough-council/redbridge","2BCULTUR&REL","Cultural & Related Services","2COPENSPACES","Open Spaces","REV","Revenue","R6313","Parks Operational","01-EMPLOYEES","Employees","01A","Direct employee expenses","4","Agency Staff - Pay","3138206","201103",10/06/2010 00:00:00,500,"31230","Employment & Recruitment Agencies","REDACTED DATA","ADECCO UK LIMITED","",,"232347975"
"London Borough of Redbridge","http://opendatacommunities.org/doc/london-borough-council/redbridge","6BSOCIALSERV","Social Services","","","REV","Revenue","R2110","SEN and CD - Business and Finance Social Care","01-EMPLOYEES","Employees","01A","Direct employee expenses","4","Agency Staff - Pay","3138206","201103",10/06/2010 00:00:00,500,"31230","Employment & Recruitment Agencies","REDACTED DATA","ADECCO UK LIMITED","",,"232347975"
"London Borough of Redbridge","http://opendatacommunities.org/doc/london-borough-council/redbridge","3BNONSCHFUND","Non-School Funding","","","REV","Revenue","R2041","South Childrens Centre","01-EMPLOYEES","Employees","01A","Direct employee expenses","4","Agency Staff - Pay","3138206","201103",10/06/2010 00:00:00,491,"31230","Employment & Recruitment Agencies","REDACTED DATA","ADECCO UK LIMITED","",,"232347975"
"London Borough of Redbridge","http://opendatacommunities.org/doc/london-borough-council/redbridge","3BLEACENTFND","LEA Centrally Held School Funds","3CSCHSTRATMG","Schools Strategic Management","REV","Revenue","R3007","Client and Resources","01-EMPLOYEES","Employees","01A","Direct employee expenses","4","Agency Staff - Pay","3138206","201103",10/06/2010 00:00:00,491,"31230","Employment & Recruitment Agencies","REDACTED DATA","ADECCO UK LIMITED","",,"232347975"
"London Borough of Redbridge","http://opendatacommunities.org/doc/london-borough-council/redbridge","6BSOCIALSERV","Social Services","","","REV","Revenue","R2140","CQ and F - Safeguarding and Care Planning Soc Care","01-EMPLOYEES","Employees","01A","Direct employee expenses","4","Agency Staff - Pay","3138206","201103",10/06/2010 00:00:00,487,"31230","Employment & Recruitment Agencies","REDACTED DATA","ADECCO UK LIMITED","",,"232347975"
"London Borough of Redbridge","http://opendatacommunities.org/doc/london-borough-council/redbridge","5BGFHOUSING","General Fund Housing","5CHOUSADVICE","Housing Advice","REV","Revenue","R5530","HAC Temporary Accomodation","01-EMPLOYEES","Employees","01A","Direct employee expenses","4","Agency Staff - Pay","3138206","201103",10/06/2010 00:00:00,487,"31230","Employment & Recruitment Agencies","REDACTED DATA","ADECCO UK LIMITED","",,"232347975"
"London Borough of Redbridge","http://opendatacommunities.org/doc/london-borough-council/redbridge","3BLEACENTFND","LEA Centrally Held School Funds","3CSCHSTRATMG","Schools Strategic Management","REV","Revenue","R3271","Teachers Centre Deleg","01-EMPLOYEES","Employees","01A","Direct employee expenses","4","Agency Staff - Pay","3138206","201103",10/06/2010 00:00:00,486,"31230","Employment & Recruitment Agencies","REDACTED DATA","ADECCO UK LIMITED","",,"232347975"
"London Borough of Redbridge","http://opendatacommunities.org/doc/london-borough-council/redbridge","1BOTHEROPI&E","Other Operating Income & Expenditure","","","REV","Revenue","R1430","Single Status","01-EMPLOYEES","Employees","01A","Direct employee expenses","4","Agency Staff - Pay","3138206","201103",10/06/2010 00:00:00,485,"31230","Employment & Recruitment Agencies","REDACTED DATA","ADECCO UK LIMITED","",,"232347975"
"London Borough of Redbridge","http://opendatacommunities.org/doc/london-borough-council/redbridge","1BOTHEROPI&E","Other Operating Income & Expenditure","","","REV","Revenue","R1430","Single Status","01-EMPLOYEES","Employees","01A","Direct employee expenses","4","Agency Staff - Pay","3138206","201103",10/06/2010 00:00:00,485,"31230","Employment & Recruitment Agencies","REDACTED DATA","ADECCO UK LIMITED","",,"232347975"
"London Borough of Redbridge","http://opendatacommunities.org/doc/london-borough-council/redbridge","5BGFHOUSING","General Fund Housing","","","REV","Revenue","R5529","HAC Assessment","01-EMPLOYEES","Employees","01A","Direct employee expenses","4","Agency Staff - Pay","3138206","201103",10/06/2010 00:00:00,482,"31230","Employment & Recruitment Agencies","REDACTED DATA","ADECCO UK LIMITED","",,"232347975"
"London Borough of Redbridge","http://opendatacommunities.org/doc/london-borough-council/redbridge","5BGFHOUSING","General Fund Housing","","","REV","Revenue","R5501","Housing Service Admin","01-EMPLOYEES","Employees","01A","Direct employee expenses","4","Agency Staff - Pay","3138206","201103",10/06/2010 00:00:00,480,"31230","Employment & Recruitment Agencies","REDACTED DATA","ADECCO UK LIMITED","",,"232347975"
"London Borough of Redbridge","http://opendatacommunities.org/doc/london-borough-council/redbridge","4BTRANSPORT","Transport Planning, Policy & Strategy","4CMANGT&SUPP","Management & Support Services","REV","Revenue","R7000","Highways Executive","01-EMPLOYEES","Employees","01A","Direct employee expenses","4","Agency Staff - Pay","3138206","201103",10/06/2010 00:00:00,480,"31230","Employment & Recruitment Agencies","REDACTED DATA","ADECCO UK LIMITED","",,"232347975"
"London Borough of Redbridge","http://opendatacommunities.org/doc/london-borough-council/redbridge","1BOTHEROPI&E","Other Operating Income & Expenditure","1CTRADSURDEF","Trading Account Surpluses & Deficits","REV","Revenue","R9252","IT Services","01-EMPLOYEES","Employees","01A","Direct employee expenses","4","Agency Staff - Pay","3138206","201103",10/06/2010 00:00:00,480,"31230","Employment & Recruitment Agencies","REDACTED DATA","ADECCO UK LIMITED","",,"232347975"
"London Borough of Redbridge","http://opendatacommunities.org/doc/london-borough-council/redbridge","5BGFHOUSING","General Fund Housing","5CHOUSADVICE","Housing Advice","REV","Revenue","R5530","HAC Temporary Accomodation","01-EMPLOYEES","Employees","01A","Direct employee expenses","4","Agency Staff - Pay","3138206","201103",10/06/2010 00:00:00,480,"31230","Employment & Recruitment Agencies","REDACTED DATA","ADECCO UK LIMITED","",,"232347975"
"London Borough of Redbridge","http://opendatacommunities.org/doc/london-borough-council/redbridge","3BNONSCHFUND","Non-School Funding","","","REV","Revenue","R2047","Sure Start Centre DSG","01-EMPLOYEES","Employees","01A","Direct employee expenses","4","Agency Staff - Pay","3138206","201103",10/06/2010 00:00:00,472,"31230","Employment & Recruitment Agencies","REDACTED DATA","ADECCO UK LIMITED","",,"232347975"
"London Borough of Redbridge","http://opendatacommunities.org/doc/london-borough-council/redbridge","3BLEACENTFND","LEA Centrally Held School Funds","3CFACILIMPRO","Facilitating School Improvement","REV","Revenue","R3240","Advisers/Inspectors","01-EMPLOYEES","Employees","01A","Direct employee expenses","4","Agency Staff - Pay","3138206","201103",10/06/2010 00:00:00,472,"31230","Employment & Recruitment Agencies","REDACTED DATA","ADECCO UK LIMITED","",,"232347975"
"London Borough of Redbridge","http://opendatacommunities.org/doc/london-borough-council/redbridge","2BPLAN&DEVEL","Planning & Development Services","2CCOMMDEVT","Community Development","REV","Revenue","R9855","Safer Communities Core Budget","01-EMPLOYEES","Employees","01A","Direct employee expenses","4","Agency Staff - Pay","3138206","201103",10/06/2010 00:00:00,471,"31230","Employment & Recruitment Agencies","REDACTED DATA","ADECCO UK LIMITED","",,"232347975"
"London Borough of Redbridge","http://opendatacommunities.org/doc/london-borough-council/redbridge","5BGFHOUSING","General Fund Housing","","","REV","Revenue","R5529","HAC Assessment","01-EMPLOYEES","Employees","01A","Direct employee expenses","4","Agency Staff - Pay","3138206","201103",10/06/2010 00:00:00,471,"31230","Employment & Recruitment Agencies","REDACTED DATA","ADECCO UK LIMITED","",,"232347975"
"London Borough of Redbridge","http://opendatacommunities.org/doc/london-borough-council/redbridge","2BCULTUR&REL","Cultural & Related Services","2COPENSPACES","Open Spaces","REV","Revenue","R6313","Parks Operational","01-EMPLOYEES","Employees","01A","Direct employee expenses","4","Agency Staff - Pay","3138206","201103",10/06/2010 00:00:00,469,"31230","Employment & Recruitment Agencies","REDACTED DATA","ADECCO UK LIMITED","",,"232347975"
"London Borough of Redbridge","http://opendatacommunities.org/doc/london-borough-council/redbridge","1BOTHEROPI&E","Other Operating Income & Expenditure","1CELECTIONS","Elections","REV","Revenue","R9362","Electoral Registration","01-EMPLOYEES","Employees","01A","Direct employee expenses","4","Agency Staff - Pay","3138206","201103",10/06/2010 00:00:00,468,"31230","Employment & Recruitment Agencies","REDACTED DATA","ADECCO UK LIMITED","",,"232347975"
"London Borough of Redbridge","http://opendatacommunities.org/doc/london-borough-council/redbridge","5BGFHOUSING","General Fund Housing","","","REV","Revenue","R5501","Housing Service Admin","01-EMPLOYEES","Employees","01A","Direct employee expenses","4","Agency Staff - Pay","3138206","201103",10/06/2010 00:00:00,467,"31230","Employment & Recruitment Agencies","REDACTED DATA","ADECCO UK LIMITED","",,"232347975"
"London Borough of Redbridge","http://opendatacommunities.org/doc/london-borough-council/redbridge","1BOTHEROPI&E","Other Operating Income & Expenditure","1CTRADSURDEF","Trading Account Surpluses & Deficits","REV","Revenue","R9595","Pub.Hall-Common Exps","01-EMPLOYEES","Employees","01A","Direct employee expenses","4","Agency Staff - Pay","3138206","201103",10/06/2010 00:00:00,465,"31230","Employment & Recruitment Agencies","REDACTED DATA","ADECCO UK LIMITED","",,"232347975"
"London Borough of Redbridge","http://opendatacommunities.org/doc/london-borough-council/redbridge","3BLEACENTFND","LEA Centrally Held School Funds","","","REV","Revenue","R2006","SEN Assessment Team DSG","01-EMPLOYEES","Employees","01A","Direct employee expenses","4","Agency Staff - Pay","3138206","201103",10/06/2010 00:00:00,465,"31230","Employment & Recruitment Agencies","REDACTED DATA","ADECCO UK LIMITED","",,"232347975"
"London Borough of Redbridge","http://opendatacommunities.org/doc/london-borough-council/redbridge","5BGFHOUSING","General Fund Housing","","","REV","Revenue","R5500","Housing Advice Centre","01-EMPLOYEES","Employees","01A","Direct employee expenses","4","Agency Staff - Pay","3138206","201103",10/06/2010 00:00:00,465,"31230","Employment & Recruitment Agencies","REDACTED DATA","ADECCO UK LIMITED","",,"232347975"
"London Borough of Redbridge","http://opendatacommunities.org/doc/london-borough-council/redbridge","5BGFHOUSING","General Fund Housing","5CHOUSADVICE","Housing Advice","REV","Revenue","R5530","HAC Temporary Accomodation","01-EMPLOYEES","Employees","01A","Direct employee expenses","4","Agency Staff - Pay","3138206","201103",10/06/2010 00:00:00,465,"31230","Employment & Recruitment Agencies","REDACTED DATA","ADECCO UK LIMITED","",,"232347975"
"London Borough of Redbridge","http://opendatacommunities.org/doc/london-borough-council/redbridge","4BTRANSPORT","Transport Planning, Policy & Strategy","4CMANGT&SUPP","Management & Support Services","REV","Revenue","R7000","Highways Executive","01-EMPLOYEES","Employees","01A","Direct employee expenses","4","Agency Staff - Pay","3138206","201103",10/06/2010 00:00:00,464,"31230","Employment & Recruitment Agencies","REDACTED DATA","ADECCO UK LIMITED","",,"232347975"
"London Borough of Redbridge","http://opendatacommunities.org/doc/london-borough-council/redbridge","3BNONSCHFUND","Non-School Funding","","","REV","Revenue","R2041","South Childrens Centre","01-EMPLOYEES","Employees","01A","Direct employee expenses","4","Agency Staff - Pay","3138206","201103",10/06/2010 00:00:00,464,"31230","Employment & Recruitment Agencies","REDACTED DATA","ADECCO UK LIMITED","",,"232347975"
"London Borough of Redbridge","http://opendatacommunities.org/doc/london-borough-council/redbridge","3BLEACENTFND","LEA Centrally Held School Funds","3CSCHSTRATMG","Schools Strategic Management","REV","Revenue","R3007","Client and Resources","01-EMPLOYEES","Employees","01A","Direct employee expenses","4","Agency Staff - Pay","3138206","201103",10/06/2010 00:00:00,464,"31230","Employment & Recruitment Agencies","REDACTED DATA","ADECCO UK LIMITED","",,"232347975"
"London Borough of Redbridge","http://opendatacommunities.org/doc/london-borough-council/redbridge","2BPLAN&DEVEL","Planning & Development Services","","","REV","Revenue","R6510","Dev Control Tech","01-EMPLOYEES","Employees","01A","Direct employee expenses","4","Agency Staff - Pay","3138206","201103",10/06/2010 00:00:00,461,"31230","Employment & Recruitment Agencies","REDACTED DATA","ADECCO UK LIMITED","",,"232347975"
"London Borough of Redbridge","http://opendatacommunities.org/doc/london-borough-council/redbridge","3BLEACENTFND","LEA Centrally Held School Funds","3CFACILIMPRO","Facilitating School Improvement","REV","Revenue","R3240","Advisers/Inspectors","01-EMPLOYEES","Employees","01A","Direct employee expenses","4","Agency Staff - Pay","3138206","201103",10/06/2010 00:00:00,461,"31230","Employment & Recruitment Agencies","REDACTED DATA","ADECCO UK LIMITED","",,"232347975"
"London Borough of Redbridge","http://opendatacommunities.org/doc/london-borough-council/redbridge","1BOTHEROPI&E","Other Operating Income & Expenditure","1CTRADSURDEF","Trading Account Surpluses & Deficits","REV","Revenue","R9252","IT Services","01-EMPLOYEES","Employees","01A","Direct employee expenses","4","Agency Staff - Pay","3138206","201103",10/06/2010 00:00:00,457,"31230","Employment & Recruitment Agencies","REDACTED DATA","ADECCO UK LIMITED","",,"232347975"
"London Borough of Redbridge","http://opendatacommunities.org/doc/london-borough-council/redbridge","6BSOCIALSERV","Social Services","","","REV","Revenue","R2110","SEN and CD - Business and Finance Social Care","01-EMPLOYEES","Employees","01A","Direct employee expenses","4","Agency Staff - Pay","3138206","201103",10/06/2010 00:00:00,457,"31230","Employment & Recruitment Agencies","REDACTED DATA","ADECCO UK LIMITED","",,"232347975"
"London Borough of Redbridge","http://opendatacommunities.org/doc/london-borough-council/redbridge","1BOTHEROPI&E","Other Operating Income & Expenditure","1CTRADSURDEF","Trading Account Surpluses & Deficits","REV","Revenue","R9460","Human Resources misc","01-EMPLOYEES","Employees","01A","Direct employee expenses","4","Agency Staff - Pay","3138206","201103",10/06/2010 00:00:00,456,"31230","Employment & Recruitment Agencies","REDACTED DATA","ADECCO UK LIMITED","",,"232347975"
"London Borough of Redbridge","http://opendatacommunities.org/doc/london-borough-council/redbridge","1BOTHEROPI&E","Other Operating Income & Expenditure","1CTRADSURDEF","Trading Account Surpluses & Deficits","REV","Revenue","R9460","Human Resources misc","01-EMPLOYEES","Employees","01A","Direct employee expenses","4","Agency Staff - Pay","3138206","201103",10/06/2010 00:00:00,456,"31230","Employment & Recruitment Agencies","REDACTED DATA","ADECCO UK LIMITED","",,"232347975"
"London Borough of Redbridge","http://opendatacommunities.org/doc/london-borough-council/redbridge","1BOTHEROPI&E","Other Operating Income & Expenditure","1CTRADSURDEF","Trading Account Surpluses & Deficits","REV","Revenue","R9460","Human Resources misc","01-EMPLOYEES","Employees","01A","Direct employee expenses","4","Agency Staff - Pay","3138206","201103",10/06/2010 00:00:00,456,"31230","Employment & Recruitment Agencies","REDACTED DATA","ADECCO UK LIMITED","",,"232347975"
"London Borough of Redbridge","http://opendatacommunities.org/doc/london-borough-council/redbridge","1BOTHEROPI&E","Other Operating Income & Expenditure","1CTRADSURDEF","Trading Account Surpluses & Deficits","REV","Revenue","R9460","Human Resources misc","01-EMPLOYEES","Employees","01A","Direct employee expenses","4","Agency Staff - Pay","3138206","201103",10/06/2010 00:00:00,456,"31230","Employment & Recruitment Agencies","REDACTED DATA","ADECCO UK LIMITED","",,"232347975"
"London Borough of Redbridge","http://opendatacommunities.org/doc/london-borough-council/redbridge","9BNONBVO","Outside the BVACOP Objective Structure","9CNONBVO","Outside the BVACOP Objective Structure","REV","Revenue","R7602","Routine Sweeping DSO","01-EMPLOYEES","Employees","01A","Direct employee expenses","4","Agency Staff - Pay","3138206","201103",10/06/2010 00:00:00,455,"31230","Employment & Recruitment Agencies","REDACTED DATA","ADECCO UK LIMITED","",,"232347975"
"London Borough of Redbridge","http://opendatacommunities.org/doc/london-borough-council/redbridge","2BCULTUR&REL","Cultural & Related Services","2COPENSPACES","Open Spaces","REV","Revenue","R6313","Parks Operational","01-EMPLOYEES","Employees","01A","Direct employee expenses","4","Agency Staff - Pay","3138206","201103",10/06/2010 00:00:00,454,"31230","Employment & Recruitment Agencies","REDACTED DATA","ADECCO UK LIMITED","",,"232347975"
"London Borough of Redbridge","http://opendatacommunities.org/doc/london-borough-council/redbridge","2BCULTUR&REL","Cultural & Related Services","2COPENSPACES","Open Spaces","REV","Revenue","R6313","Parks Operational","01-EMPLOYEES","Employees","01A","Direct employee expenses","4","Agency Staff - Pay","3138206","201103",10/06/2010 00:00:00,454,"31230","Employment & Recruitment Agencies","REDACTED DATA","ADECCO UK LIMITED","",,"232347975"
"London Borough of Redbridge","http://opendatacommunities.org/doc/london-borough-council/redbridge","2BCULTUR&REL","Cultural & Related Services","2COPENSPACES","Open Spaces","REV","Revenue","R6313","Parks Operational","01-EMPLOYEES","Employees","01A","Direct employee expenses","4","Agency Staff - Pay","3138206","201103",10/06/2010 00:00:00,454,"31230","Employment & Recruitment Agencies","REDACTED DATA","ADECCO UK LIMITED","",,"232347975"
"London Borough of Redbridge","http://opendatacommunities.org/doc/london-borough-council/redbridge","2BCULTUR&REL","Cultural & Related Services","2COPENSPACES","Open Spaces","REV","Revenue","R6313","Parks Operational","01-EMPLOYEES","Employees","01A","Direct employee expenses","4","Agency Staff - Pay","3138206","201103",10/06/2010 00:00:00,454,"31230","Employment & Recruitment Agencies","REDACTED DATA","ADECCO UK LIMITED","",,"232347975"
"London Borough of Redbridge","http://opendatacommunities.org/doc/london-borough-council/redbridge","2BCULTUR&REL","Cultural & Related Services","2COPENSPACES","Open Spaces","REV","Revenue","R6313","Parks Operational","01-EMPLOYEES","Employees","01A","Direct employee expenses","4","Agency Staff - Pay","3138206","201103",10/06/2010 00:00:00,454,"31230","Employment & Recruitment Agencies","REDACTED DATA","ADECCO UK LIMITED","",,"232347975"
"London Borough of Redbridge","http://opendatacommunities.org/doc/london-borough-council/redbridge","3BNONSCHFUND","Non-School Funding","","","REV","Revenue","R2047","Sure Start Centre DSG","01-EMPLOYEES","Employees","01A","Direct employee expenses","4","Agency Staff - Pay","3138206","201103",10/06/2010 00:00:00,452,"31230","Employment & Recruitment Agencies","REDACTED DATA","ADECCO UK LIMITED","",,"232347975"
"London Borough of Redbridge","http://opendatacommunities.org/doc/london-borough-council/redbridge","5BGFHOUSING","General Fund Housing","5CHOUSADVICE","Housing Advice","REV","Revenue","R5530","HAC Temporary Accomodation","01-EMPLOYEES","Employees","01A","Direct employee expenses","4","Agency Staff - Pay","3138206","201103",10/06/2010 00:00:00,451,"31230","Employment & Recruitment Agencies","REDACTED DATA","ADECCO UK LIMITED","",,"232347975"
"London Borough of Redbridge","http://opendatacommunities.org/doc/london-borough-council/redbridge","5BGFHOUSING","General Fund Housing","","","REV","Revenue","R5500","Housing Advice Centre","01-EMPLOYEES","Employees","01A","Direct employee expenses","4","Agency Staff - Pay","3138206","201103",10/06/2010 00:00:00,448,"31230","Employment & Recruitment Agencies","REDACTED DATA","ADECCO UK LIMITED","",,"232347975"
"London Borough of Redbridge","http://opendatacommunities.org/doc/london-borough-council/redbridge","5BGFHOUSING","General Fund Housing","","","REV","Revenue","R5500","Housing Advice Centre","01-EMPLOYEES","Employees","01A","Direct employee expenses","4","Agency Staff - Pay","3138206","201103",10/06/2010 00:00:00,447,"31230","Employment & Recruitment Agencies","REDACTED DATA","ADECCO UK LIMITED","",,"232347975"
"London Borough of Redbridge","http://opendatacommunities.org/doc/london-borough-council/redbridge","1BOTHEROPI&E","Other Operating Income & Expenditure","1CTRADSURDEF","Trading Account Surpluses & Deficits","REV","Revenue","R9252","IT Services","01-EMPLOYEES","Employees","01A","Direct employee expenses","4","Agency Staff - Pay","3138206","201103",10/06/2010 00:00:00,447,"31230","Employment & Recruitment Agencies","REDACTED DATA","ADECCO UK LIMITED","",,"232347975"
"London Borough of Redbridge","http://opendatacommunities.org/doc/london-borough-council/redbridge","3BNONSCHFUND","Non-School Funding","","","REV","Revenue","R2041","South Childrens Centre","01-EMPLOYEES","Employees","01A","Direct employee expenses","4","Agency Staff - Pay","3138206","201103",10/06/2010 00:00:00,445,"31230","Employment & Recruitment Agencies","REDACTED DATA","ADECCO UK LIMITED","",,"232347975"
"London Borough of Redbridge","http://opendatacommunities.org/doc/london-borough-council/redbridge","1BOTHEROPI&E","Other Operating Income & Expenditure","1CTRADSURDEF","Trading Account Surpluses & Deficits","REV","Revenue","R9595","Pub.Hall-Common Exps","01-EMPLOYEES","Employees","01A","Direct employee expenses","4","Agency Staff - Pay","3138206","201103",10/06/2010 00:00:00,442,"31230","Employment & Recruitment Agencies","REDACTED DATA","ADECCO UK LIMITED","",,"232347975"
"London Borough of Redbridge","http://opendatacommunities.org/doc/london-borough-council/redbridge","2BCULTUR&REL","Cultural & Related Services","2COPENSPACES","Open Spaces","REV","Revenue","R6313","Parks Operational","01-EMPLOYEES","Employees","01A","Direct employee expenses","4","Agency Staff - Pay","3138206","201103",10/06/2010 00:00:00,441,"31230","Employment & Recruitment Agencies","REDACTED DATA","ADECCO UK LIMITED","",,"232347975"
"London Borough of Redbridge","http://opendatacommunities.org/doc/london-borough-council/redbridge","1BCENTRALPUB","Central Services to the Public","","","REV","Revenue","R5753","Cashiers","01-EMPLOYEES","Employees","01A","Direct employee expenses","4","Agency Staff - Pay","3138206","201103",10/06/2010 00:00:00,439,"31230","Employment & Recruitment Agencies","REDACTED DATA","ADECCO UK LIMITED","",,"232347975"
"London Borough of Redbridge","http://opendatacommunities.org/doc/london-borough-council/redbridge","4BTRANSPORT","Transport Planning, Policy & Strategy","4CMANGT&SUPP","Management & Support Services","REV","Revenue","R7000","Highways Executive","01-EMPLOYEES","Employees","01A","Direct employee expenses","4","Agency Staff - Pay","3138206","201103",10/06/2010 00:00:00,439,"31230","Employment & Recruitment Agencies","REDACTED DATA","ADECCO UK LIMITED","",,"232347975"
"London Borough of Redbridge","http://opendatacommunities.org/doc/london-borough-council/redbridge","1BOTHEROPI&E","Other Operating Income & Expenditure","1CTRADSURDEF","Trading Account Surpluses & Deficits","REV","Revenue","R9460","Human Resources misc","01-EMPLOYEES","Employees","01A","Direct employee expenses","4","Agency Staff - Pay","3138206","201103",10/06/2010 00:00:00,438,"31230","Employment & Recruitment Agencies","REDACTED DATA","ADECCO UK LIMITED","",,"232347975"
"London Borough of Redbridge","http://opendatacommunities.org/doc/london-borough-council/redbridge","1BOTHEROPI&E","Other Operating Income & Expenditure","1CTRADSURDEF","Trading Account Surpluses & Deficits","REV","Revenue","R9460","Human Resources misc","01-EMPLOYEES","Employees","01A","Direct employee expenses","4","Agency Staff - Pay","3138206","201103",10/06/2010 00:00:00,438,"31230","Employment & Recruitment Agencies","REDACTED DATA","ADECCO UK LIMITED","",,"232347975"
"London Borough of Redbridge","http://opendatacommunities.org/doc/london-borough-council/redbridge","5BGFHOUSING","General Fund Housing","","","REV","Revenue","R5529","HAC Assessment","01-EMPLOYEES","Employees","01A","Direct employee expenses","4","Agency Staff - Pay","3138206","201103",10/06/2010 00:00:00,438,"31230","Employment & Recruitment Agencies","REDACTED DATA","ADECCO UK LIMITED","",,"232347975"
"London Borough of Redbridge","http://opendatacommunities.org/doc/london-borough-council/redbridge","2BCULTUR&REL","Cultural & Related Services","2COPENSPACES","Open Spaces","REV","Revenue","R6313","Parks Operational","01-EMPLOYEES","Employees","01A","Direct employee expenses","4","Agency Staff - Pay","3138206","201103",10/06/2010 00:00:00,438,"31230","Employment & Recruitment Agencies","REDACTED DATA","ADECCO UK LIMITED","",,"232347975"
"London Borough of Redbridge","http://opendatacommunities.org/doc/london-borough-council/redbridge","2BCULTUR&REL","Cultural & Related Services","2COPENSPACES","Open Spaces","REV","Revenue","R6313","Parks Operational","01-EMPLOYEES","Employees","01A","Direct employee expenses","4","Agency Staff - Pay","3138206","201103",10/06/2010 00:00:00,438,"31230","Employment & Recruitment Agencies","REDACTED DATA","ADECCO UK LIMITED","",,"232347975"
"London Borough of Redbridge","http://opendatacommunities.org/doc/london-borough-council/redbridge","2BCULTUR&REL","Cultural & Related Services","2COPENSPACES","Open Spaces","REV","Revenue","R6313","Parks Operational","01-EMPLOYEES","Employees","01A","Direct employee expenses","4","Agency Staff - Pay","3138206","201103",10/06/2010 00:00:00,438,"31230","Employment & Recruitment Agencies","REDACTED DATA","ADECCO UK LIMITED","",,"232347975"
"London Borough of Redbridge","http://opendatacommunities.org/doc/london-borough-council/redbridge","2BCULTUR&REL","Cultural & Related Services","2COPENSPACES","Open Spaces","REV","Revenue","R6313","Parks Operational","01-EMPLOYEES","Employees","01A","Direct employee expenses","4","Agency Staff - Pay","3138206","201103",10/06/2010 00:00:00,438,"31230","Employment & Recruitment Agencies","REDACTED DATA","ADECCO UK LIMITED","",,"232347975"
"London Borough of Redbridge","http://opendatacommunities.org/doc/london-borough-council/redbridge","2BCULTUR&REL","Cultural & Related Services","2COPENSPACES","Open Spaces","REV","Revenue","R6313","Parks Operational","01-EMPLOYEES","Employees","01A","Direct employee expenses","4","Agency Staff - Pay","3138206","201103",10/06/2010 00:00:00,438,"31230","Employment & Recruitment Agencies","REDACTED DATA","ADECCO UK LIMITED","",,"232347975"
"London Borough of Redbridge","http://opendatacommunities.org/doc/london-borough-council/redbridge","1BOTHEROPI&E","Other Operating Income & Expenditure","1CTRADSURDEF","Trading Account Surpluses & Deficits","REV","Revenue","R9460","Human Resources misc","01-EMPLOYEES","Employees","01A","Direct employee expenses","4","Agency Staff - Pay","3138206","201103",10/06/2010 00:00:00,437,"31230","Employment & Recruitment Agencies","REDACTED DATA","ADECCO UK LIMITED","",,"232347975"
"London Borough of Redbridge","http://opendatacommunities.org/doc/london-borough-council/redbridge","3BNONSCHFUND","Non-School Funding","","","REV","Revenue","R2041","South Childrens Centre","01-EMPLOYEES","Employees","01A","Direct employee expenses","4","Agency Staff - Pay","3138206","201103",10/06/2010 00:00:00,436,"31230","Employment & Recruitment Agencies","REDACTED DATA","ADECCO UK LIMITED","",,"232347975"
"London Borough of Redbridge","http://opendatacommunities.org/doc/london-borough-council/redbridge","5BGFHOUSING","General Fund Housing","","","REV","Revenue","R5501","Housing Service Admin","01-EMPLOYEES","Employees","01A","Direct employee expenses","4","Agency Staff - Pay","3138206","201103",10/06/2010 00:00:00,435,"31230","Employment & Recruitment Agencies","REDACTED DATA","ADECCO UK LIMITED","",,"232347975"
"London Borough of Redbridge","http://opendatacommunities.org/doc/london-borough-council/redbridge","2BPLAN&DEVEL","Planning & Development Services","","","REV","Revenue","R6510","Dev Control Tech","01-EMPLOYEES","Employees","01A","Direct employee expenses","4","Agency Staff - Pay","3138206","201103",10/06/2010 00:00:00,433,"31230","Employment & Recruitment Agencies","REDACTED DATA","ADECCO UK LIMITED","",,"232347975"
"London Borough of Redbridge","http://opendatacommunities.org/doc/london-borough-council/redbridge","1BOTHEROPI&E","Other Operating Income & Expenditure","1CTRADSURDEF","Trading Account Surpluses & Deficits","REV","Revenue","R9003","One Stop Shop","01-EMPLOYEES","Employees","01A","Direct employee expenses","4","Agency Staff - Pay","3138206","201103",10/06/2010 00:00:00,433,"31230","Employment & Recruitment Agencies","REDACTED DATA","ADECCO UK LIMITED","",,"232347975"
"London Borough of Redbridge","http://opendatacommunities.org/doc/london-borough-council/redbridge","4BTRANSPORT","Transport Planning, Policy & Strategy","4CMANGT&SUPP","Management & Support Services","REV","Revenue","R7000","Highways Executive","01-EMPLOYEES","Employees","01A","Direct employee expenses","4","Agency Staff - Pay","3138206","201103",10/06/2010 00:00:00,433,"31230","Employment & Recruitment Agencies","REDACTED DATA","ADECCO UK LIMITED","",,"232347975"
"London Borough of Redbridge","http://opendatacommunities.org/doc/london-borough-council/redbridge","3BLEACENTFND","LEA Centrally Held School Funds","3CSCHSTRATMG","Schools Strategic Management","REV","Revenue","R3007","Client and Resources","01-EMPLOYEES","Employees","01A","Direct employee expenses","4","Agency Staff - Pay","3138206","201103",10/06/2010 00:00:00,432,"31230","Employment & Recruitment Agencies","REDACTED DATA","ADECCO UK LIMITED","",,"232347975"
"London Borough of Redbridge","http://opendatacommunities.org/doc/london-borough-council/redbridge","1BOTHEROPI&E","Other Operating Income & Expenditure","1CTRADSURDEF","Trading Account Surpluses & Deficits","REV","Revenue","R9460","Human Resources misc","01-EMPLOYEES","Employees","01A","Direct employee expenses","4","Agency Staff - Pay","3138206","201103",10/06/2010 00:00:00,432,"31230","Employment & Recruitment Agencies","REDACTED DATA","ADECCO UK LIMITED","",,"232347975"
"London Borough of Redbridge","http://opendatacommunities.org/doc/london-borough-council/redbridge","5BGFHOUSING","General Fund Housing","","","REV","Revenue","R5529","HAC Assessment","01-EMPLOYEES","Employees","01A","Direct employee expenses","4","Agency Staff - Pay","3138206","201103",10/06/2010 00:00:00,429,"31230","Employment & Recruitment Agencies","REDACTED DATA","ADECCO UK LIMITED","",,"232347975"
"London Borough of Redbridge","http://opendatacommunities.org/doc/london-borough-council/redbridge","1BCENTRALPUB","Central Services to the Public","","","REV","Revenue","R5770","Income Assessment","01-EMPLOYEES","Employees","01A","Direct employee expenses","4","Agency Staff - Pay","3138206","201103",10/06/2010 00:00:00,427,"31230","Employment & Recruitment Agencies","REDACTED DATA","ADECCO UK LIMITED","",,"232347975"
"London Borough of Redbridge","http://opendatacommunities.org/doc/london-borough-council/redbridge","6BSOCIALSERV","Social Services","","","REV","Revenue","R2110","SEN and CD - Business and Finance Social Care","01-EMPLOYEES","Employees","01A","Direct employee expenses","4","Agency Staff - Pay","3138206","201103",10/06/2010 00:00:00,426,"31230","Employment & Recruitment Agencies","REDACTED DATA","ADECCO UK LIMITED","",,"232347975"
"London Borough of Redbridge","http://opendatacommunities.org/doc/london-borough-council/redbridge","1BOTHEROPI&E","Other Operating Income & Expenditure","1CTRADSURDEF","Trading Account Surpluses & Deficits","REV","Revenue","R9152","Financial Services","01-EMPLOYEES","Employees","01A","Direct employee expenses","4","Agency Staff - Pay","3138206","201103",10/06/2010 00:00:00,426,"31230","Employment & Recruitment Agencies","REDACTED DATA","ADECCO UK LIMITED","",,"232347975"
"London Borough of Redbridge","http://opendatacommunities.org/doc/london-borough-council/redbridge","3BLEACENTFND","LEA Centrally Held School Funds","3CSCHSTRATMG","Schools Strategic Management","REV","Revenue","R3507","Sch Admissions Sectio","01-EMPLOYEES","Employees","01A","Direct employee expenses","4","Agency Staff - Pay","3138206","201103",10/06/2010 00:00:00,426,"31230","Employment & Recruitment Agencies","REDACTED DATA","ADECCO UK LIMITED","",,"232347975"
"London Borough of Redbridge","http://opendatacommunities.org/doc/london-borough-council/redbridge","1BCENTRALPUB","Central Services to the Public","","","REV","Revenue","R5754","Income","01-EMPLOYEES","Employees","01A","Direct employee expenses","4","Agency Staff - Pay","3138206","201103",10/06/2010 00:00:00,426,"31230","Employment & Recruitment Agencies","REDACTED DATA","ADECCO UK LIMITED","",,"232347975"
"London Borough of Redbridge","http://opendatacommunities.org/doc/london-borough-council/redbridge","1BOTHEROPI&E","Other Operating Income & Expenditure","1CTRADSURDEF","Trading Account Surpluses & Deficits","REV","Revenue","R9460","Human Resources misc","01-EMPLOYEES","Employees","01A","Direct employee expenses","4","Agency Staff - Pay","3138206","201103",10/06/2010 00:00:00,426,"31230","Employment & Recruitment Agencies","REDACTED DATA","ADECCO UK LIMITED","",,"232347975"
"London Borough of Redbridge","http://opendatacommunities.org/doc/london-borough-council/redbridge","1BOTHEROPI&E","Other Operating Income & Expenditure","1CTRADSURDEF","Trading Account Surpluses & Deficits","REV","Revenue","R9460","Human Resources misc","01-EMPLOYEES","Employees","01A","Direct employee expenses","4","Agency Staff - Pay","3138206","201103",10/06/2010 00:00:00,426,"31230","Employment & Recruitment Agencies","REDACTED DATA","ADECCO UK LIMITED","",,"232347975"
"London Borough of Redbridge","http://opendatacommunities.org/doc/london-borough-council/redbridge","3BNONSCHFUND","Non-School Funding","","","REV","Revenue","R2041","South Childrens Centre","01-EMPLOYEES","Employees","01A","Direct employee expenses","4","Agency Staff - Pay","3138206","201103",10/06/2010 00:00:00,425,"31230","Employment & Recruitment Agencies","REDACTED DATA","ADECCO UK LIMITED","",,"232347975"
"London Borough of Redbridge","http://opendatacommunities.org/doc/london-borough-council/redbridge","3BNONSCHFUND","Non-School Funding","","","REV","Revenue","R2047","Sure Start Centre DSG","01-EMPLOYEES","Employees","01A","Direct employee expenses","4","Agency Staff - Pay","3138206","201103",10/06/2010 00:00:00,424,"31230","Employment & Recruitment Agencies","REDACTED DATA","ADECCO UK LIMITED","",,"232347975"
"London Borough of Redbridge","http://opendatacommunities.org/doc/london-borough-council/redbridge","1BCENTRALPUB","Central Services to the Public","","","REV","Revenue","R5753","Cashiers","01-EMPLOYEES","Employees","01A","Direct employee expenses","4","Agency Staff - Pay","3138206","201103",10/06/2010 00:00:00,421,"31230","Employment & Recruitment Agencies","REDACTED DATA","ADECCO UK LIMITED","",,"232347975"
"London Borough of Redbridge","http://opendatacommunities.org/doc/london-borough-council/redbridge","5BGFHOUSING","General Fund Housing","","","REV","Revenue","R5500","Housing Advice Centre","01-EMPLOYEES","Employees","01A","Direct employee expenses","4","Agency Staff - Pay","3138206","201103",10/06/2010 00:00:00,420,"31230","Employment & Recruitment Agencies","REDACTED DATA","ADECCO UK LIMITED","",,"232347975"
"London Borough of Redbridge","http://opendatacommunities.org/doc/london-borough-council/redbridge","3BNONSCHFUND","Non-School Funding","","","REV","Revenue","R2041","South Childrens Centre","01-EMPLOYEES","Employees","01A","Direct employee expenses","4","Agency Staff - Pay","3138206","201103",10/06/2010 00:00:00,418,"31230","Employment & Recruitment Agencies","REDACTED DATA","ADECCO UK LIMITED","",,"232347975"
"London Borough of Redbridge","http://opendatacommunities.org/doc/london-borough-council/redbridge","4BTRANSPORT","Transport Planning, Policy & Strategy","4CMANGT&SUPP","Management & Support Services","REV","Revenue","R7000","Highways Executive","01-EMPLOYEES","Employees","01A","Direct employee expenses","4","Agency Staff - Pay","3138206","201103",10/06/2010 00:00:00,418,"31230","Employment & Recruitment Agencies","REDACTED DATA","ADECCO UK LIMITED","",,"232347975"
"London Borough of Redbridge","http://opendatacommunities.org/doc/london-borough-council/redbridge","3BOPTIONHLDG","Optional Holding Accounts","3CYOUTH","Youth Service","REV","Revenue","R3367","Youth Crime Prevention Team","01-EMPLOYEES","Employees","01A","Direct employee expenses","4","Agency Staff - Pay","3138206","201103",10/06/2010 00:00:00,416,"31230","Employment & Recruitment Agencies","REDACTED DATA","ADECCO UK LIMITED","",,"232347975"
"London Borough of Redbridge","http://opendatacommunities.org/doc/london-borough-council/redbridge","1BCENTRALPUB","Central Services to the Public","","","REV","Revenue","R5770","Income Assessment","01-EMPLOYEES","Employees","01A","Direct employee expenses","4","Agency Staff - Pay","3138206","201103",10/06/2010 00:00:00,415,"31230","Employment & Recruitment Agencies","REDACTED DATA","ADECCO UK LIMITED","",,"232347975"
"London Borough of Redbridge","http://opendatacommunities.org/doc/london-borough-council/redbridge","5BGFHOUSING","General Fund Housing","","","REV","Revenue","R5529","HAC Assessment","01-EMPLOYEES","Employees","01A","Direct employee expenses","4","Agency Staff - Pay","3138206","201103",10/06/2010 00:00:00,415,"31230","Employment & Recruitment Agencies","REDACTED DATA","ADECCO UK LIMITED","",,"232347975"
"London Borough of Redbridge","http://opendatacommunities.org/doc/london-borough-council/redbridge","2BCULTUR&REL","Cultural & Related Services","2COPENSPACES","Open Spaces","REV","Revenue","R6313","Parks Operational","01-EMPLOYEES","Employees","01A","Direct employee expenses","4","Agency Staff - Pay","3138206","201103",10/06/2010 00:00:00,415,"31230","Employment & Recruitment Agencies","REDACTED DATA","ADECCO UK LIMITED","",,"232347975"
"London Borough of Redbridge","http://opendatacommunities.org/doc/london-borough-council/redbridge","3BNONSCHFUND","Non-School Funding","","","REV","Revenue","R2041","South Childrens Centre","01-EMPLOYEES","Employees","01A","Direct employee expenses","4","Agency Staff - Pay","3138206","201103",10/06/2010 00:00:00,414,"31230","Employment & Recruitment Agencies","REDACTED DATA","ADECCO UK LIMITED","",,"232347975"
"London Borough of Redbridge","http://opendatacommunities.org/doc/london-borough-council/redbridge","5BGFHOUSING","General Fund Housing","","","REV","Revenue","R5529","HAC Assessment","01-EMPLOYEES","Employees","01A","Direct employee expenses","4","Agency Staff - Pay","3138206","201103",10/06/2010 00:00:00,411,"31230","Employment & Recruitment Agencies","REDACTED DATA","ADECCO UK LIMITED","",,"232347975"
"London Borough of Redbridge","http://opendatacommunities.org/doc/london-borough-council/redbridge","6BSOCIALSERV","Social Services","","","REV","Revenue","R2140","CQ and F - Safeguarding and Care Planning Soc Care","01-EMPLOYEES","Employees","01A","Direct employee expenses","4","Agency Staff - Pay","3138206","201103",10/06/2010 00:00:00,410,"31230","Employment & Recruitment Agencies","REDACTED DATA","ADECCO UK LIMITED","",,"232347975"
"London Borough of Redbridge","http://opendatacommunities.org/doc/london-borough-council/redbridge","1BCENTRALPUB","Central Services to the Public","","","REV","Revenue","R5753","Cashiers","01-EMPLOYEES","Employees","01A","Direct employee expenses","4","Agency Staff - Pay","3138206","201103",10/06/2010 00:00:00,410,"31230","Employment & Recruitment Agencies","REDACTED DATA","ADECCO UK LIMITED","",,"232347975"
"London Borough of Redbridge","http://opendatacommunities.org/doc/london-borough-council/redbridge","1BOTHEROPI&E","Other Operating Income & Expenditure","1CTRADSURDEF","Trading Account Surpluses & Deficits","REV","Revenue","R9356","Business Support (Legal)","01-EMPLOYEES","Employees","01A","Direct employee expenses","4","Agency Staff - Pay","3138206","201103",10/06/2010 00:00:00,409,"31230","Employment & Recruitment Agencies","REDACTED DATA","ADECCO UK LIMITED","",,"232347975"
"London Borough of Redbridge","http://opendatacommunities.org/doc/london-borough-council/redbridge","2BPLAN&DEVEL","Planning & Development Services","","","REV","Revenue","R6510","Dev Control Tech","01-EMPLOYEES","Employees","01A","Direct employee expenses","4","Agency Staff - Pay","3138206","201103",10/06/2010 00:00:00,404,"31230","Employment & Recruitment Agencies","REDACTED DATA","ADECCO UK LIMITED","",,"232347975"
"London Borough of Redbridge","http://opendatacommunities.org/doc/london-borough-council/redbridge","1BOTHEROPI&E","Other Operating Income & Expenditure","1CELECTIONS","Elections","REV","Revenue","R9362","Electoral Registration","01-EMPLOYEES","Employees","01A","Direct employee expenses","4","Agency Staff - Pay","3138206","201103",10/06/2010 00:00:00,404,"31230","Employment & Recruitment Agencies","REDACTED DATA","ADECCO UK LIMITED","",,"232347975"
"London Borough of Redbridge","http://opendatacommunities.org/doc/london-borough-council/redbridge","3BNONSCHFUND","Non-School Funding","","","REV","Revenue","R2041","South Childrens Centre","01-EMPLOYEES","Employees","01A","Direct employee expenses","4","Agency Staff - Pay","3138206","201103",10/06/2010 00:00:00,403,"31230","Employment & Recruitment Agencies","REDACTED DATA","ADECCO UK LIMITED","",,"232347975"
"London Borough of Redbridge","http://opendatacommunities.org/doc/london-borough-council/redbridge","1BOTHEROPI&E","Other Operating Income & Expenditure","1CTRADSURDEF","Trading Account Surpluses & Deficits","REV","Revenue","R9152","Financial Services","01-EMPLOYEES","Employees","01A","Direct employee expenses","4","Agency Staff - Pay","3138206","201103",10/06/2010 00:00:00,402,"31230","Employment & Recruitment Agencies","REDACTED DATA","ADECCO UK LIMITED","",,"232347975"
"London Borough of Redbridge","http://opendatacommunities.org/doc/london-borough-council/redbridge","2BCULTUR&REL","Cultural & Related Services","2COPENSPACES","Open Spaces","REV","Revenue","R6313","Parks Operational","01-EMPLOYEES","Employees","01A","Direct employee expenses","4","Agency Staff - Pay","3138206","201103",10/06/2010 00:00:00,400,"31230","Employment & Recruitment Agencies","REDACTED DATA","ADECCO UK LIMITED","",,"232347975"
"London Borough of Redbridge","http://opendatacommunities.org/doc/london-borough-council/redbridge","3BNONSCHFUND","Non-School Funding","","","REV","Revenue","R2041","South Childrens Centre","01-EMPLOYEES","Employees","01A","Direct employee expenses","4","Agency Staff - Pay","3138206","201103",10/06/2010 00:00:00,398,"31230","Employment & Recruitment Agencies","REDACTED DATA","ADECCO UK LIMITED","",,"232347975"
"London Borough of Redbridge","http://opendatacommunities.org/doc/london-borough-council/redbridge","1BOTHEROPI&E","Other Operating Income & Expenditure","1CTRADSURDEF","Trading Account Surpluses & Deficits","REV","Revenue","R9460","Human Resources misc","01-EMPLOYEES","Employees","01A","Direct employee expenses","4","Agency Staff - Pay","3138206","201103",10/06/2010 00:00:00,397,"31230","Employment & Recruitment Agencies","REDACTED DATA","ADECCO UK LIMITED","",,"232347975"
"London Borough of Redbridge","http://opendatacommunities.org/doc/london-borough-council/redbridge","1BOTHEROPI&E","Other Operating Income & Expenditure","1CTRADSURDEF","Trading Account Surpluses & Deficits","REV","Revenue","R9460","Human Resources misc","01-EMPLOYEES","Employees","01A","Direct employee expenses","4","Agency Staff - Pay","3138206","201103",10/06/2010 00:00:00,397,"31230","Employment & Recruitment Agencies","REDACTED DATA","ADECCO UK LIMITED","",,"232347975"
"London Borough of Redbridge","http://opendatacommunities.org/doc/london-borough-council/redbridge","1BOTHEROPI&E","Other Operating Income & Expenditure","1CTRADSURDEF","Trading Account Surpluses & Deficits","REV","Revenue","R9460","Human Resources misc","01-EMPLOYEES","Employees","01A","Direct employee expenses","4","Agency Staff - Pay","3138206","201103",10/06/2010 00:00:00,397,"31230","Employment & Recruitment Agencies","REDACTED DATA","ADECCO UK LIMITED","",,"232347975"
"London Borough of Redbridge","http://opendatacommunities.org/doc/london-borough-council/redbridge","3BNONSCHFUND","Non-School Funding","","","REV","Revenue","R2041","South Childrens Centre","01-EMPLOYEES","Employees","01A","Direct employee expenses","4","Agency Staff - Pay","3138206","201103",10/06/2010 00:00:00,396,"31230","Employment & Recruitment Agencies","REDACTED DATA","ADECCO UK LIMITED","",,"232347975"
"London Borough of Redbridge","http://opendatacommunities.org/doc/london-borough-council/redbridge","1BOTHEROPI&E","Other Operating Income & Expenditure","1CELECTIONS","Elections","REV","Revenue","R9362","Electoral Registration","01-EMPLOYEES","Employees","01A","Direct employee expenses","4","Agency Staff - Pay","3138206","201103",10/06/2010 00:00:00,396,"31230","Employment & Recruitment Agencies","REDACTED DATA","ADECCO UK LIMITED","",,"232347975"
"London Borough of Redbridge","http://opendatacommunities.org/doc/london-borough-council/redbridge","1BCENTRALPUB","Central Services to the Public","","","REV","Revenue","R5753","Cashiers","01-EMPLOYEES","Employees","01A","Direct employee expenses","4","Agency Staff - Pay","3138206","201103",10/06/2010 00:00:00,393,"31230","Employment & Recruitment Agencies","REDACTED DATA","ADECCO UK LIMITED","",,"232347975"
"London Borough of Redbridge","http://opendatacommunities.org/doc/london-borough-council/redbridge","1BOTHEROPI&E","Other Operating Income & Expenditure","1CTRADSURDEF","Trading Account Surpluses & Deficits","REV","Revenue","R9003","One Stop Shop","01-EMPLOYEES","Employees","01A","Direct employee expenses","4","Agency Staff - Pay","3138206","201103",10/06/2010 00:00:00,393,"31230","Employment & Recruitment Agencies","REDACTED DATA","ADECCO UK LIMITED","",,"232347975"
"London Borough of Redbridge","http://opendatacommunities.org/doc/london-borough-council/redbridge","6BSOCIALSERV","Social Services","","","REV","Revenue","R2157","Albert Road - Business and Finance Social Care","01-EMPLOYEES","Employees","01A","Direct employee expenses","4","Agency Staff - Pay","3138206","201103",10/06/2010 00:00:00,393,"31230","Employment & Recruitment Agencies","REDACTED DATA","ADECCO UK LIMITED","",,"232347975"
"London Borough of Redbridge","http://opendatacommunities.org/doc/london-borough-council/redbridge","3BLEACENTFND","LEA Centrally Held School Funds","3CSCHSTRATMG","Schools Strategic Management","REV","Revenue","R3007","Client and Resources","01-EMPLOYEES","Employees","01A","Direct employee expenses","4","Agency Staff - Pay","3138206","201103",10/06/2010 00:00:00,392,"31230","Employment & Recruitment Agencies","REDACTED DATA","ADECCO UK LIMITED","",,"232347975"
"London Borough of Redbridge","http://opendatacommunities.org/doc/london-borough-council/redbridge","1BOTHEROPI&E","Other Operating Income & Expenditure","1CTRADSURDEF","Trading Account Surpluses & Deficits","REV","Revenue","R9356","Business Support (Legal)","01-EMPLOYEES","Employees","01A","Direct employee expenses","4","Agency Staff - Pay","3138206","201103",10/06/2010 00:00:00,391,"31230","Employment & Recruitment Agencies","REDACTED DATA","ADECCO UK LIMITED","",,"232347975"
"London Borough of Redbridge","http://opendatacommunities.org/doc/london-borough-council/redbridge","1BOTHEROPI&E","Other Operating Income & Expenditure","1CTRADSURDEF","Trading Account Surpluses & Deficits","REV","Revenue","R9460","Human Resources misc","01-EMPLOYEES","Employees","01A","Direct employee expenses","4","Agency Staff - Pay","3138206","201103",10/06/2010 00:00:00,388,"31230","Employment & Recruitment Agencies","REDACTED DATA","ADECCO UK LIMITED","",,"232347975"
"London Borough of Redbridge","http://opendatacommunities.org/doc/london-borough-council/redbridge","1BCENTRALPUB","Central Services to the Public","","","REV","Revenue","R5770","Income Assessment","01-EMPLOYEES","Employees","01A","Direct employee expenses","4","Agency Staff - Pay","3138206","201103",10/06/2010 00:00:00,387,"31230","Employment & Recruitment Agencies","REDACTED DATA","ADECCO UK LIMITED","",,"232347975"
"London Borough of Redbridge","http://opendatacommunities.org/doc/london-borough-council/redbridge","3BNONSCHFUND","Non-School Funding","","","REV","Revenue","R2041","South Childrens Centre","01-EMPLOYEES","Employees","01A","Direct employee expenses","4","Agency Staff - Pay","3138206","201103",10/06/2010 00:00:00,387,"31230","Employment & Recruitment Agencies","REDACTED DATA","ADECCO UK LIMITED","",,"232347975"
"London Borough of Redbridge","http://opendatacommunities.org/doc/london-borough-council/redbridge","3BNONSCHFUND","Non-School Funding","","","REV","Revenue","R2041","South Childrens Centre","01-EMPLOYEES","Employees","01A","Direct employee expenses","4","Agency Staff - Pay","3138206","201103",10/06/2010 00:00:00,386,"31230","Employment & Recruitment Agencies","REDACTED DATA","ADECCO UK LIMITED","",,"232347975"
"London Borough of Redbridge","http://opendatacommunities.org/doc/london-borough-council/redbridge","3BLEACENTFND","LEA Centrally Held School Funds","3CSCHSTRATMG","Schools Strategic Management","REV","Revenue","R3507","Sch Admissions Sectio","01-EMPLOYEES","Employees","01A","Direct employee expenses","4","Agency Staff - Pay","3138206","201103",10/06/2010 00:00:00,386,"31230","Employment & Recruitment Agencies","REDACTED DATA","ADECCO UK LIMITED","",,"232347975"
"London Borough of Redbridge","http://opendatacommunities.org/doc/london-borough-council/redbridge","5BGFHOUSING","General Fund Housing","","","REV","Revenue","R5500","Housing Advice Centre","01-EMPLOYEES","Employees","01A","Direct employee expenses","4","Agency Staff - Pay","3138206","201103",10/06/2010 00:00:00,385,"31230","Employment & Recruitment Agencies","REDACTED DATA","ADECCO UK LIMITED","",,"232347975"
"London Borough of Redbridge","http://opendatacommunities.org/doc/london-borough-council/redbridge","5BGFHOUSING","General Fund Housing","","","REV","Revenue","R5529","HAC Assessment","01-EMPLOYEES","Employees","01A","Direct employee expenses","4","Agency Staff - Pay","3138206","201103",10/06/2010 00:00:00,383,"31230","Employment & Recruitment Agencies","REDACTED DATA","ADECCO UK LIMITED","",,"232347975"
"London Borough of Redbridge","http://opendatacommunities.org/doc/london-borough-council/redbridge","1BCENTRALPUB","Central Services to the Public","","","REV","Revenue","R5753","Cashiers","01-EMPLOYEES","Employees","01A","Direct employee expenses","4","Agency Staff - Pay","3138206","201103",10/06/2010 00:00:00,383,"31230","Employment & Recruitment Agencies","REDACTED DATA","ADECCO UK LIMITED","",,"232347975"
"London Borough of Redbridge","http://opendatacommunities.org/doc/london-borough-council/redbridge","3BNONSCHFUND","Non-School Funding","","","REV","Revenue","R2041","South Childrens Centre","01-EMPLOYEES","Employees","01A","Direct employee expenses","4","Agency Staff - Pay","3138206","201103",10/06/2010 00:00:00,382,"31230","Employment & Recruitment Agencies","REDACTED DATA","ADECCO UK LIMITED","",,"232347975"
"London Borough of Redbridge","http://opendatacommunities.org/doc/london-borough-council/redbridge","5BGFHOUSING","General Fund Housing","","","REV","Revenue","R5500","Housing Advice Centre","01-EMPLOYEES","Employees","01A","Direct employee expenses","4","Agency Staff - Pay","3138206","201103",10/06/2010 00:00:00,382,"31230","Employment & Recruitment Agencies","REDACTED DATA","ADECCO UK LIMITED","",,"232347975"
"London Borough of Redbridge","http://opendatacommunities.org/doc/london-borough-council/redbridge","3BNONSCHFUND","Non-School Funding","","","REV","Revenue","R2041","South Childrens Centre","01-EMPLOYEES","Employees","01A","Direct employee expenses","4","Agency Staff - Pay","3138206","201103",10/06/2010 00:00:00,382,"31230","Employment & Recruitment Agencies","REDACTED DATA","ADECCO UK LIMITED","",,"232347975"
"London Borough of Redbridge","http://opendatacommunities.org/doc/london-borough-council/redbridge","4BTRANSPORT","Transport Planning, Policy & Strategy","4CMANGT&SUPP","Management & Support Services","REV","Revenue","R7000","Highways Executive","01-EMPLOYEES","Employees","01A","Direct employee expenses","4","Agency Staff - Pay","3138206","201103",10/06/2010 00:00:00,382,"31230","Employment & Recruitment Agencies","REDACTED DATA","ADECCO UK LIMITED","",,"232347975"
"London Borough of Redbridge","http://opendatacommunities.org/doc/london-borough-council/redbridge","6BSOCIALSERV","Social Services","6CSERVSTRAT","Service Strategy","REV","Revenue","R2136","CQ and F - Quality Assurance Safeguarding Children","01-EMPLOYEES","Employees","01A","Direct employee expenses","4","Agency Staff - Pay","3138206","201103",10/06/2010 00:00:00,382,"31230","Employment & Recruitment Agencies","REDACTED DATA","ADECCO UK LIMITED","",,"232347975"
"London Borough of Redbridge","http://opendatacommunities.org/doc/london-borough-council/redbridge","1BCENTRALPUB","Central Services to the Public","1CLOCALTAXCO","Local Tax Collection","REV","Revenue","R5760","Council Tax Collection","01-EMPLOYEES","Employees","01A","Direct employee expenses","4","Agency Staff - Pay","3138206","201103",10/06/2010 00:00:00,382,"31230","Employment & Recruitment Agencies","REDACTED DATA","ADECCO UK LIMITED","",,"232347975"
"London Borough of Redbridge","http://opendatacommunities.org/doc/london-borough-council/redbridge","1BCENTRALPUB","Central Services to the Public","1CLOCALTAXCO","Local Tax Collection","REV","Revenue","R5760","Council Tax Collection","01-EMPLOYEES","Employees","01A","Direct employee expenses","4","Agency Staff - Pay","3138206","201103",10/06/2010 00:00:00,382,"31230","Employment & Recruitment Agencies","REDACTED DATA","ADECCO UK LIMITED","",,"232347975"
"London Borough of Redbridge","http://opendatacommunities.org/doc/london-borough-council/redbridge","3BLEACENTFND","LEA Centrally Held School Funds","3CSCHSTRATMG","Schools Strategic Management","REV","Revenue","R3507","Sch Admissions Sectio","01-EMPLOYEES","Employees","01A","Direct employee expenses","4","Agency Staff - Pay","3138206","201103",10/06/2010 00:00:00,382,"31230","Employment & Recruitment Agencies","REDACTED DATA","ADECCO UK LIMITED","",,"232347975"
"London Borough of Redbridge","http://opendatacommunities.org/doc/london-borough-council/redbridge","3BLEACENTFND","LEA Centrally Held School Funds","3CSCHSTRATMG","Schools Strategic Management","REV","Revenue","R3507","Sch Admissions Sectio","01-EMPLOYEES","Employees","01A","Direct employee expenses","4","Agency Staff - Pay","3138206","201103",10/06/2010 00:00:00,382,"31230","Employment & Recruitment Agencies","REDACTED DATA","ADECCO UK LIMITED","",,"232347975"
"London Borough of Redbridge","http://opendatacommunities.org/doc/london-borough-council/redbridge","3BLEACENTFND","LEA Centrally Held School Funds","3CSCHSTRATMG","Schools Strategic Management","REV","Revenue","R3507","Sch Admissions Sectio","01-EMPLOYEES","Employees","01A","Direct employee expenses","4","Agency Staff - Pay","3138206","201103",10/06/2010 00:00:00,382,"31230","Employment & Recruitment Agencies","REDACTED DATA","ADECCO UK LIMITED","",,"232347975"
"London Borough of Redbridge","http://opendatacommunities.org/doc/london-borough-council/redbridge","3BLEACENTFND","LEA Centrally Held School Funds","3CSCHSTRATMG","Schools Strategic Management","REV","Revenue","R3507","Sch Admissions Sectio","01-EMPLOYEES","Employees","01A","Direct employee expenses","4","Agency Staff - Pay","3138206","201103",10/06/2010 00:00:00,382,"31230","Employment & Recruitment Agencies","REDACTED DATA","ADECCO UK LIMITED","",,"232347975"
"London Borough of Redbridge","http://opendatacommunities.org/doc/london-borough-council/redbridge","6BSOCIALSERV","Social Services","6COTHC&FSERV","Other Children's & Families' Services","REV","Revenue","R2167","Albert Road - Increased Social Worker Establishment","01-EMPLOYEES","Employees","01A","Direct employee expenses","4","Agency Staff - Pay","3138206","201103",10/06/2010 00:00:00,382,"31230","Employment & Recruitment Agencies","REDACTED DATA","ADECCO UK LIMITED","",,"232347975"
"London Borough of Redbridge","http://opendatacommunities.org/doc/london-borough-council/redbridge","3BNONSCHFUND","Non-School Funding","","","REV","Revenue","R2047","Sure Start Centre DSG","01-EMPLOYEES","Employees","01A","Direct employee expenses","4","Agency Staff - Pay","3138206","201103",10/06/2010 00:00:00,382,"31230","Employment & Recruitment Agencies","REDACTED DATA","ADECCO UK LIMITED","",,"232347975"
"London Borough of Redbridge","http://opendatacommunities.org/doc/london-borough-council/redbridge","3BOPTIONHLDG","Optional Holding Accounts","3CYOUTH","Youth Service","REV","Revenue","R3367","Youth Crime Prevention Team","01-EMPLOYEES","Employees","01A","Direct employee expenses","4","Agency Staff - Pay","3138206","201103",10/06/2010 00:00:00,377,"31230","Employment & Recruitment Agencies","REDACTED DATA","ADECCO UK LIMITED","",,"232347975"
"London Borough of Redbridge","http://opendatacommunities.org/doc/london-borough-council/redbridge","3BNONSCHFUND","Non-School Funding","","","REV","Revenue","R2041","South Childrens Centre","01-EMPLOYEES","Employees","01A","Direct employee expenses","4","Agency Staff - Pay","3138206","201103",10/06/2010 00:00:00,377,"31230","Employment & Recruitment Agencies","REDACTED DATA","ADECCO UK LIMITED","",,"232347975"
"London Borough of Redbridge","http://opendatacommunities.org/doc/london-borough-council/redbridge","6BSOCIALSERV","Social Services","","","REV","Revenue","R2110","SEN and CD - Business and Finance Social Care","01-EMPLOYEES","Employees","01A","Direct employee expenses","4","Agency Staff - Pay","3138206","201103",10/06/2010 00:00:00,376,"31230","Employment & Recruitment Agencies","REDACTED DATA","ADECCO UK LIMITED","",,"232347975"
"London Borough of Redbridge","http://opendatacommunities.org/doc/london-borough-council/redbridge","1BOTHEROPI&E","Other Operating Income & Expenditure","1CTRADSURDEF","Trading Account Surpluses & Deficits","REV","Revenue","R9152","Financial Services","01-EMPLOYEES","Employees","01A","Direct employee expenses","4","Agency Staff - Pay","3138206","201103",10/06/2010 00:00:00,375,"31230","Employment & Recruitment Agencies","REDACTED DATA","ADECCO UK LIMITED","",,"232347975"
"London Borough of Redbridge","http://opendatacommunities.org/doc/london-borough-council/redbridge","5BGFHOUSING","General Fund Housing","","","REV","Revenue","R5501","Housing Service Admin","01-EMPLOYEES","Employees","01A","Direct employee expenses","4","Agency Staff - Pay","3138206","201103",10/06/2010 00:00:00,374,"31230","Employment & Recruitment Agencies","REDACTED DATA","ADECCO UK LIMITED","",,"232347975"
"London Borough of Redbridge","http://opendatacommunities.org/doc/london-borough-council/redbridge","3BNONSCHFUND","Non-School Funding","","","REV","Revenue","R2041","South Childrens Centre","01-EMPLOYEES","Employees","01A","Direct employee expenses","4","Agency Staff - Pay","3138206","201103",10/06/2010 00:00:00,372,"31230","Employment & Recruitment Agencies","REDACTED DATA","ADECCO UK LIMITED","",,"232347975"
"London Borough of Redbridge","http://opendatacommunities.org/doc/london-borough-council/redbridge","1BCENTRALPUB","Central Services to the Public","1CLOCALTAXCO","Local Tax Collection","REV","Revenue","R5760","Council Tax Collection","01-EMPLOYEES","Employees","01A","Direct employee expenses","4","Agency Staff - Pay","3138206","201103",10/06/2010 00:00:00,371,"31230","Employment & Recruitment Agencies","REDACTED DATA","ADECCO UK LIMITED","",,"232347975"
"London Borough of Redbridge","http://opendatacommunities.org/doc/london-borough-council/redbridge","3BLEACENTFND","LEA Centrally Held School Funds","3CSCHSTRATMG","Schools Strategic Management","REV","Revenue","R3507","Sch Admissions Sectio","01-EMPLOYEES","Employees","01A","Direct employee expenses","4","Agency Staff - Pay","3138206","201103",10/06/2010 00:00:00,371,"31230","Employment & Recruitment Agencies","REDACTED DATA","ADECCO UK LIMITED","",,"232347975"
"London Borough of Redbridge","http://opendatacommunities.org/doc/london-borough-council/redbridge","3BLEACENTFND","LEA Centrally Held School Funds","3CSCHSTRATMG","Schools Strategic Management","REV","Revenue","R3507","Sch Admissions Sectio","01-EMPLOYEES","Employees","01A","Direct employee expenses","4","Agency Staff - Pay","3138206","201103",10/06/2010 00:00:00,371,"31230","Employment & Recruitment Agencies","REDACTED DATA","ADECCO UK LIMITED","",,"232347975"
"London Borough of Redbridge","http://opendatacommunities.org/doc/london-borough-council/redbridge","3BLEACENTFND","LEA Centrally Held School Funds","3CSCHSTRATMG","Schools Strategic Management","REV","Revenue","R3507","Sch Admissions Sectio","01-EMPLOYEES","Employees","01A","Direct employee expenses","4","Agency Staff - Pay","3138206","201103",10/06/2010 00:00:00,371,"31230","Employment & Recruitment Agencies","REDACTED DATA","ADECCO UK LIMITED","",,"232347975"
"London Borough of Redbridge","http://opendatacommunities.org/doc/london-borough-council/redbridge","6BSOCIALSERV","Social Services","","","REV","Revenue","R2157","Albert Road - Business and Finance Social Care","01-EMPLOYEES","Employees","01A","Direct employee expenses","4","Agency Staff - Pay","3138206","201103",10/06/2010 00:00:00,371,"31230","Employment & Recruitment Agencies","REDACTED DATA","ADECCO UK LIMITED","",,"232347975"
"London Borough of Redbridge","http://opendatacommunities.org/doc/london-borough-council/redbridge","6BSOCIALSERV","Social Services","6COTHC&FSERV","Other Children's & Families' Services","REV","Revenue","R2167","Albert Road - Increased Social Worker Establishment","01-EMPLOYEES","Employees","01A","Direct employee expenses","4","Agency Staff - Pay","3138206","201103",10/06/2010 00:00:00,371,"31230","Employment & Recruitment Agencies","REDACTED DATA","ADECCO UK LIMITED","",,"232347975"
"London Borough of Redbridge","http://opendatacommunities.org/doc/london-borough-council/redbridge","6BSOCIALSERV","Social Services","6CFAMSUPPSER","Family Support Services","REV","Revenue","R2161","Albert Road - Outreach South - Albert Road","01-EMPLOYEES","Employees","01A","Direct employee expenses","4","Agency Staff - Pay","3138206","201103",10/06/2010 00:00:00,371,"31230","Employment & Recruitment Agencies","REDACTED DATA","ADECCO UK LIMITED","",,"232347975"
"London Borough of Redbridge","http://opendatacommunities.org/doc/london-borough-council/redbridge","1BCENTRALPUB","Central Services to the Public","","","REV","Revenue","R5754","Income","01-EMPLOYEES","Employees","01A","Direct employee expenses","4","Agency Staff - Pay","3138206","201103",10/06/2010 00:00:00,370,"31230","Employment & Recruitment Agencies","REDACTED DATA","ADECCO UK LIMITED","",,"232347975"
"London Borough of Redbridge","http://opendatacommunities.org/doc/london-borough-council/redbridge","2BCULTUR&REL","Cultural & Related Services","2COPENSPACES","Open Spaces","REV","Revenue","R6313","Parks Operational","01-EMPLOYEES","Employees","01A","Direct employee expenses","4","Agency Staff - Pay","3138206","201103",10/06/2010 00:00:00,369,"31230","Employment & Recruitment Agencies","REDACTED DATA","ADECCO UK LIMITED","",,"232347975"
"London Borough of Redbridge","http://opendatacommunities.org/doc/london-borough-council/redbridge","4BTRANSPORT","Transport Planning, Policy & Strategy","4CMANGT&SUPP","Management & Support Services","REV","Revenue","R7000","Highways Executive","01-EMPLOYEES","Employees","01A","Direct employee expenses","4","Agency Staff - Pay","3138206","201103",10/06/2010 00:00:00,367,"31230","Employment & Recruitment Agencies","REDACTED DATA","ADECCO UK LIMITED","",,"232347975"
"London Borough of Redbridge","http://opendatacommunities.org/doc/london-borough-council/redbridge","2BENVIRONMEN","Environmental Services","2CSERVMGTSUP","Service Management & Support Services","REV","Revenue","R6799","Service Planning","01-EMPLOYEES","Employees","01A","Direct employee expenses","4","Agency Staff - Pay","3138206","201103",10/06/2010 00:00:00,366,"31230","Employment & Recruitment Agencies","REDACTED DATA","ADECCO UK LIMITED","",,"232347975"
"London Borough of Redbridge","http://opendatacommunities.org/doc/london-borough-council/redbridge","6BSOCIALSERV","Social Services","","","REV","Revenue","R2110","SEN and CD - Business and Finance Social Care","01-EMPLOYEES","Employees","01A","Direct employee expenses","4","Agency Staff - Pay","3138206","201103",10/06/2010 00:00:00,366,"31230","Employment & Recruitment Agencies","REDACTED DATA","ADECCO UK LIMITED","",,"232347975"
"London Borough of Redbridge","http://opendatacommunities.org/doc/london-borough-council/redbridge","1BOTHEROPI&E","Other Operating Income & Expenditure","1CELECTIONS","Elections","REV","Revenue","R9362","Electoral Registration","01-EMPLOYEES","Employees","01A","Direct employee expenses","4","Agency Staff - Pay","3138206","201103",10/06/2010 00:00:00,365,"31230","Employment & Recruitment Agencies","REDACTED DATA","ADECCO UK LIMITED","",,"232347975"
"London Borough of Redbridge","http://opendatacommunities.org/doc/london-borough-council/redbridge","2BCULTUR&REL","Cultural & Related Services","2COPENSPACES","Open Spaces","REV","Revenue","R6313","Parks Operational","01-EMPLOYEES","Employees","01A","Direct employee expenses","4","Agency Staff - Pay","3138206","201103",10/06/2010 00:00:00,363,"31230","Employment & Recruitment Agencies","REDACTED DATA","ADECCO UK LIMITED","",,"232347975"
"London Borough of Redbridge","http://opendatacommunities.org/doc/london-borough-council/redbridge","2BPLAN&DEVEL","Planning & Development Services","","","REV","Revenue","R6510","Dev Control Tech","01-EMPLOYEES","Employees","01A","Direct employee expenses","4","Agency Staff - Pay","3138206","201103",10/06/2010 00:00:00,361,"31230","Employment & Recruitment Agencies","REDACTED DATA","ADECCO UK LIMITED","",,"232347975"
"London Borough of Redbridge","http://opendatacommunities.org/doc/london-borough-council/redbridge","1BCENTRALPUB","Central Services to the Public","","","REV","Revenue","R5754","Income","01-EMPLOYEES","Employees","01A","Direct employee expenses","4","Agency Staff - Pay","3138206","201103",10/06/2010 00:00:00,359,"31230","Employment & Recruitment Agencies","REDACTED DATA","ADECCO UK LIMITED","",,"232347975"
"London Borough of Redbridge","http://opendatacommunities.org/doc/london-borough-council/redbridge","6BADULTSOCIA","Adult Social Care","6CCHILLOOKED","Children Looked After","REV","Revenue","R2118","CLAFH - 2-4 Bathurst Road","01-EMPLOYEES","Employees","01A","Direct employee expenses","4","Agency Staff - Pay","3138206","201103",10/06/2010 00:00:00,358,"31230","Employment & Recruitment Agencies","REDACTED DATA","ADECCO UK LIMITED","",,"232347975"
"London Borough of Redbridge","http://opendatacommunities.org/doc/london-borough-council/redbridge","3BNONSCHFUND","Non-School Funding","","","REV","Revenue","R2041","South Childrens Centre","01-EMPLOYEES","Employees","01A","Direct employee expenses","4","Agency Staff - Pay","3138206","201103",10/06/2010 00:00:00,357,"31230","Employment & Recruitment Agencies","REDACTED DATA","ADECCO UK LIMITED","",,"232347975"
"London Borough of Redbridge","http://opendatacommunities.org/doc/london-borough-council/redbridge","3BNONSCHFUND","Non-School Funding","","","REV","Revenue","R2041","South Childrens Centre","01-EMPLOYEES","Employees","01A","Direct employee expenses","4","Agency Staff - Pay","3138206","201103",10/06/2010 00:00:00,357,"31230","Employment & Recruitment Agencies","REDACTED DATA","ADECCO UK LIMITED","",,"232347975"
"London Borough of Redbridge","http://opendatacommunities.org/doc/london-borough-council/redbridge","6BSOCIALSERV","Social Services","6CSERVSTRAT","Service Strategy","REV","Revenue","R2136","CQ and F - Quality Assurance Safeguarding Children","01-EMPLOYEES","Employees","01A","Direct employee expenses","4","Agency Staff - Pay","3138206","201103",10/06/2010 00:00:00,357,"31230","Employment & Recruitment Agencies","REDACTED DATA","ADECCO UK LIMITED","",,"232347975"
"London Borough of Redbridge","http://opendatacommunities.org/doc/london-borough-council/redbridge","3BLEACENTFND","LEA Centrally Held School Funds","3CSCHSTRATMG","Schools Strategic Management","REV","Revenue","R3271","Teachers Centre Deleg","01-EMPLOYEES","Employees","01A","Direct employee expenses","4","Agency Staff - Pay","3138206","201103",10/06/2010 00:00:00,354,"31230","Employment & Recruitment Agencies","REDACTED DATA","ADECCO UK LIMITED","",,"232347975"
"London Borough of Redbridge","http://opendatacommunities.org/doc/london-borough-council/redbridge","6BSOCIALSERV","Social Services","","","REV","Revenue","R2157","Albert Road - Business and Finance Social Care","01-EMPLOYEES","Employees","01A","Direct employee expenses","4","Agency Staff - Pay","3138206","201103",10/06/2010 00:00:00,352,"31230","Employment & Recruitment Agencies","REDACTED DATA","ADECCO UK LIMITED","",,"232347975"
"London Borough of Redbridge","http://opendatacommunities.org/doc/london-borough-council/redbridge","1BOTHEROPI&E","Other Operating Income & Expenditure","1CTRADSURDEF","Trading Account Surpluses & Deficits","REV","Revenue","R9460","Human Resources misc","01-EMPLOYEES","Employees","01A","Direct employee expenses","4","Agency Staff - Pay","3138206","201103",10/06/2010 00:00:00,351,"31230","Employment & Recruitment Agencies","REDACTED DATA","ADECCO UK LIMITED","",,"232347975"
"London Borough of Redbridge","http://opendatacommunities.org/doc/london-borough-council/redbridge","1BOTHEROPI&E","Other Operating Income & Expenditure","1CTRADSURDEF","Trading Account Surpluses & Deficits","REV","Revenue","R9460","Human Resources misc","01-EMPLOYEES","Employees","01A","Direct employee expenses","4","Agency Staff - Pay","3138206","201103",10/06/2010 00:00:00,350,"31230","Employment & Recruitment Agencies","REDACTED DATA","ADECCO UK LIMITED","",,"232347975"
"London Borough of Redbridge","http://opendatacommunities.org/doc/london-borough-council/redbridge","5BGFHOUSING","General Fund Housing","5CHOUSADVICE","Housing Advice","REV","Revenue","R5530","HAC Temporary Accomodation","01-EMPLOYEES","Employees","01A","Direct employee expenses","4","Agency Staff - Pay","3138206","201103",10/06/2010 00:00:00,349,"31230","Employment & Recruitment Agencies","REDACTED DATA","ADECCO UK LIMITED","",,"232347975"
"London Borough of Redbridge","http://opendatacommunities.org/doc/london-borough-council/redbridge","5BGFHOUSING","General Fund Housing","5CHOUSADVICE","Housing Advice","REV","Revenue","R5530","HAC Temporary Accomodation","01-EMPLOYEES","Employees","01A","Direct employee expenses","4","Agency Staff - Pay","3138206","201103",10/06/2010 00:00:00,349,"31230","Employment & Recruitment Agencies","REDACTED DATA","ADECCO UK LIMITED","",,"232347975"
"London Borough of Redbridge","http://opendatacommunities.org/doc/london-borough-council/redbridge","5BGFHOUSING","General Fund Housing","5CHOUSADVICE","Housing Advice","REV","Revenue","R5530","HAC Temporary Accomodation","01-EMPLOYEES","Employees","01A","Direct employee expenses","4","Agency Staff - Pay","3138206","201103",10/06/2010 00:00:00,349,"31230","Employment & Recruitment Agencies","REDACTED DATA","ADECCO UK LIMITED","",,"232347975"
"London Borough of Redbridge","http://opendatacommunities.org/doc/london-borough-council/redbridge","1BCENTRALPUB","Central Services to the Public","1CLOCALTAXCO","Local Tax Collection","REV","Revenue","R5760","Council Tax Collection","01-EMPLOYEES","Employees","01A","Direct employee expenses","4","Agency Staff - Pay","3138206","201103",10/06/2010 00:00:00,347,"31230","Employment & Recruitment Agencies","REDACTED DATA","ADECCO UK LIMITED","",,"232347975"
"London Borough of Redbridge","http://opendatacommunities.org/doc/london-borough-council/redbridge","3BLEACENTFND","LEA Centrally Held School Funds","3CSCHSTRATMG","Schools Strategic Management","REV","Revenue","R3507","Sch Admissions Sectio","01-EMPLOYEES","Employees","01A","Direct employee expenses","4","Agency Staff - Pay","3138206","201103",10/06/2010 00:00:00,347,"31230","Employment & Recruitment Agencies","REDACTED DATA","ADECCO UK LIMITED","",,"232347975"
"London Borough of Redbridge","http://opendatacommunities.org/doc/london-borough-council/redbridge","3BLEACENTFND","LEA Centrally Held School Funds","3CSCHSTRATMG","Schools Strategic Management","REV","Revenue","R3507","Sch Admissions Sectio","01-EMPLOYEES","Employees","01A","Direct employee expenses","4","Agency Staff - Pay","3138206","201103",10/06/2010 00:00:00,347,"31230","Employment & Recruitment Agencies","REDACTED DATA","ADECCO UK LIMITED","",,"232347975"
"London Borough of Redbridge","http://opendatacommunities.org/doc/london-borough-council/redbridge","3BNONSCHFUND","Non-School Funding","","","REV","Revenue","R2041","South Childrens Centre","01-EMPLOYEES","Employees","01A","Direct employee expenses","4","Agency Staff - Pay","3138206","201103",10/06/2010 00:00:00,347,"31230","Employment & Recruitment Agencies","REDACTED DATA","ADECCO UK LIMITED","",,"232347975"
"London Borough of Redbridge","http://opendatacommunities.org/doc/london-borough-council/redbridge","6BSOCIALSERV","Social Services","6COTHC&FSERV","Other Children's & Families' Services","REV","Revenue","R2167","Albert Road - Increased Social Worker Establishment","01-EMPLOYEES","Employees","01A","Direct employee expenses","4","Agency Staff - Pay","3138206","201103",10/06/2010 00:00:00,347,"31230","Employment & Recruitment Agencies","REDACTED DATA","ADECCO UK LIMITED","",,"232347975"
"London Borough of Redbridge","http://opendatacommunities.org/doc/london-borough-council/redbridge","1BCENTRALPUB","Central Services to the Public","1CLOCALTAXCO","Local Tax Collection","REV","Revenue","R5760","Council Tax Collection","01-EMPLOYEES","Employees","01A","Direct employee expenses","4","Agency Staff - Pay","3138206","201103",10/06/2010 00:00:00,345,"31230","Employment & Recruitment Agencies","REDACTED DATA","ADECCO UK LIMITED","",,"232347975"
"London Borough of Redbridge","http://opendatacommunities.org/doc/london-borough-council/redbridge","1BOTHEROPI&E","Other Operating Income & Expenditure","1CTRADSURDEF","Trading Account Surpluses & Deficits","REV","Revenue","R9356","Business Support (Legal)","01-EMPLOYEES","Employees","01A","Direct employee expenses","4","Agency Staff - Pay","3138206","201103",10/06/2010 00:00:00,345,"31230","Employment & Recruitment Agencies","REDACTED DATA","ADECCO UK LIMITED","",,"232347975"
"London Borough of Redbridge","http://opendatacommunities.org/doc/london-borough-council/redbridge","1BOTHEROPI&E","Other Operating Income & Expenditure","1CTRADSURDEF","Trading Account Surpluses & Deficits","REV","Revenue","R9356","Business Support (Legal)","01-EMPLOYEES","Employees","01A","Direct employee expenses","4","Agency Staff - Pay","3138206","201103",10/06/2010 00:00:00,345,"31230","Employment & Recruitment Agencies","REDACTED DATA","ADECCO UK LIMITED","",,"232347975"
"London Borough of Redbridge","http://opendatacommunities.org/doc/london-borough-council/redbridge","5BGFHOUSING","General Fund Housing","","","REV","Revenue","R5529","HAC Assessment","01-EMPLOYEES","Employees","01A","Direct employee expenses","4","Agency Staff - Pay","3138206","201103",10/06/2010 00:00:00,344,"31230","Employment & Recruitment Agencies","REDACTED DATA","ADECCO UK LIMITED","",,"232347975"
"London Borough of Redbridge","http://opendatacommunities.org/doc/london-borough-council/redbridge","1BOTHEROPI&E","Other Operating Income & Expenditure","1CTRADSURDEF","Trading Account Surpluses & Deficits","REV","Revenue","R9460","Human Resources misc","01-EMPLOYEES","Employees","01A","Direct employee expenses","4","Agency Staff - Pay","3138206","201103",10/06/2010 00:00:00,343,"31230","Employment & Recruitment Agencies","REDACTED DATA","ADECCO UK LIMITED","",,"232347975"
"London Borough of Redbridge","http://opendatacommunities.org/doc/london-borough-council/redbridge","1BOTHEROPI&E","Other Operating Income & Expenditure","1CTRADSURDEF","Trading Account Surpluses & Deficits","REV","Revenue","R9460","Human Resources misc","01-EMPLOYEES","Employees","01A","Direct employee expenses","4","Agency Staff - Pay","3138206","201103",10/06/2010 00:00:00,343,"31230","Employment & Recruitment Agencies","REDACTED DATA","ADECCO UK LIMITED","",,"232347975"
"London Borough of Redbridge","http://opendatacommunities.org/doc/london-borough-council/redbridge","6BADULTSOCIA","Adult Social Care","6CCHILLOOKED","Children Looked After","REV","Revenue","R2118","CLAFH - 2-4 Bathurst Road","01-EMPLOYEES","Employees","01A","Direct employee expenses","4","Agency Staff - Pay","3138206","201103",10/06/2010 00:00:00,343,"31230","Employment & Recruitment Agencies","REDACTED DATA","ADECCO UK LIMITED","",,"232347975"
"London Borough of Redbridge","http://opendatacommunities.org/doc/london-borough-council/redbridge","4BTRANSPORT","Transport Planning, Policy & Strategy","4CMANGT&SUPP","Management & Support Services","REV","Revenue","R7000","Highways Executive","01-EMPLOYEES","Employees","01A","Direct employee expenses","4","Agency Staff - Pay","3138206","201103",10/06/2010 00:00:00,342,"31230","Employment & Recruitment Agencies","REDACTED DATA","ADECCO UK LIMITED","",,"232347975"
"London Borough of Redbridge","http://opendatacommunities.org/doc/london-borough-council/redbridge","1BCENTRALPUB","Central Services to the Public","","","REV","Revenue","R5753","Cashiers","01-EMPLOYEES","Employees","01A","Direct employee expenses","4","Agency Staff - Pay","3138206","201103",10/06/2010 00:00:00,338,"31230","Employment & Recruitment Agencies","REDACTED DATA","ADECCO UK LIMITED","",,"232347975"
"London Borough of Redbridge","http://opendatacommunities.org/doc/london-borough-council/redbridge","6BADULTSOCIA","Adult Social Care","6CCHILLOOKED","Children Looked After","REV","Revenue","R2118","CLAFH - 2-4 Bathurst Road","01-EMPLOYEES","Employees","01A","Direct employee expenses","4","Agency Staff - Pay","3138206","201103",10/06/2010 00:00:00,337,"31230","Employment & Recruitment Agencies","REDACTED DATA","ADECCO UK LIMITED","",,"232347975"
"London Borough of Redbridge","http://opendatacommunities.org/doc/london-borough-council/redbridge","6BADULTSOCIA","Adult Social Care","6CCHILLOOKED","Children Looked After","REV","Revenue","R2118","CLAFH - 2-4 Bathurst Road","01-EMPLOYEES","Employees","01A","Direct employee expenses","4","Agency Staff - Pay","3138206","201103",10/06/2010 00:00:00,337,"31230","Employment & Recruitment Agencies","REDACTED DATA","ADECCO UK LIMITED","",,"232347975"
"London Borough of Redbridge","http://opendatacommunities.org/doc/london-borough-council/redbridge","2BCULTUR&REL","Cultural & Related Services","2COPENSPACES","Open Spaces","REV","Revenue","R6313","Parks Operational","01-EMPLOYEES","Employees","01A","Direct employee expenses","4","Agency Staff - Pay","3138206","201103",10/06/2010 00:00:00,337,"31230","Employment & Recruitment Agencies","REDACTED DATA","ADECCO UK LIMITED","",,"232347975"
"London Borough of Redbridge","http://opendatacommunities.org/doc/london-borough-council/redbridge","1BCENTRALPUB","Central Services to the Public","","","REV","Revenue","R5753","Cashiers","01-EMPLOYEES","Employees","01A","Direct employee expenses","4","Agency Staff - Pay","3138206","201103",10/06/2010 00:00:00,337,"31230","Employment & Recruitment Agencies","REDACTED DATA","ADECCO UK LIMITED","",,"232347975"
"London Borough of Redbridge","http://opendatacommunities.org/doc/london-borough-council/redbridge","1BOTHEROPI&E","Other Operating Income & Expenditure","1CTRADSURDEF","Trading Account Surpluses & Deficits","REV","Revenue","R9003","One Stop Shop","01-EMPLOYEES","Employees","01A","Direct employee expenses","4","Agency Staff - Pay","3138206","201103",10/06/2010 00:00:00,337,"31230","Employment & Recruitment Agencies","REDACTED DATA","ADECCO UK LIMITED","",,"232347975"
"London Borough of Redbridge","http://opendatacommunities.org/doc/london-borough-council/redbridge","1BCENTRALPUB","Central Services to the Public","","","REV","Revenue","R5770","Income Assessment","01-EMPLOYEES","Employees","01A","Direct employee expenses","4","Agency Staff - Pay","3138206","201103",10/06/2010 00:00:00,331,"31230","Employment & Recruitment Agencies","REDACTED DATA","ADECCO UK LIMITED","",,"232347975"
"London Borough of Redbridge","http://opendatacommunities.org/doc/london-borough-council/redbridge","1BCENTRALPUB","Central Services to the Public","","","REV","Revenue","R5753","Cashiers","01-EMPLOYEES","Employees","01A","Direct employee expenses","4","Agency Staff - Pay","3138206","201103",10/06/2010 00:00:00,331,"31230","Employment & Recruitment Agencies","REDACTED DATA","ADECCO UK LIMITED","",,"232347975"
"London Borough of Redbridge","http://opendatacommunities.org/doc/london-borough-council/redbridge","1BOTHEROPI&E","Other Operating Income & Expenditure","1CTRADSURDEF","Trading Account Surpluses & Deficits","REV","Revenue","R9152","Financial Services","01-EMPLOYEES","Employees","01A","Direct employee expenses","4","Agency Staff - Pay","3138206","201103",10/06/2010 00:00:00,331,"31230","Employment & Recruitment Agencies","REDACTED DATA","ADECCO UK LIMITED","",,"232347975"
"London Borough of Redbridge","http://opendatacommunities.org/doc/london-borough-council/redbridge","1BOTHEROPI&E","Other Operating Income & Expenditure","1CTRADSURDEF","Trading Account Surpluses & Deficits","REV","Revenue","R9460","Human Resources misc","01-EMPLOYEES","Employees","01A","Direct employee expenses","4","Agency Staff - Pay","3138206","201103",10/06/2010 00:00:00,331,"31230","Employment & Recruitment Agencies","REDACTED DATA","ADECCO UK LIMITED","",,"232347975"
"London Borough of Redbridge","http://opendatacommunities.org/doc/london-borough-council/redbridge","3BLEACENTFND","LEA Centrally Held School Funds","3CSCHSTRATMG","Schools Strategic Management","REV","Revenue","R3507","Sch Admissions Sectio","01-EMPLOYEES","Employees","01A","Direct employee expenses","4","Agency Staff - Pay","3138206","201103",10/06/2010 00:00:00,331,"31230","Employment & Recruitment Agencies","REDACTED DATA","ADECCO UK LIMITED","",,"232347975"
"London Borough of Redbridge","http://opendatacommunities.org/doc/london-borough-council/redbridge","3BLEACENTFND","LEA Centrally Held School Funds","3CSCHSTRATMG","Schools Strategic Management","REV","Revenue","R3507","Sch Admissions Sectio","01-EMPLOYEES","Employees","01A","Direct employee expenses","4","Agency Staff - Pay","3138206","201103",10/06/2010 00:00:00,331,"31230","Employment & Recruitment Agencies","REDACTED DATA","ADECCO UK LIMITED","",,"232347975"
"London Borough of Redbridge","http://opendatacommunities.org/doc/london-borough-council/redbridge","3BLEACENTFND","LEA Centrally Held School Funds","3CSCHSTRATMG","Schools Strategic Management","REV","Revenue","R3006","Management Support Team","01-EMPLOYEES","Employees","01A","Direct employee expenses","4","Agency Staff - Pay","3138206","201103",10/06/2010 00:00:00,331,"31230","Employment & Recruitment Agencies","REDACTED DATA","ADECCO UK LIMITED","",,"232347975"
"London Borough of Redbridge","http://opendatacommunities.org/doc/london-borough-council/redbridge","6BSOCIALSERV","Social Services","","","REV","Revenue","R2140","CQ and F - Safeguarding and Care Planning Soc Care","01-EMPLOYEES","Employees","01A","Direct employee expenses","4","Agency Staff - Pay","3138206","201103",10/06/2010 00:00:00,330,"31230","Employment & Recruitment Agencies","REDACTED DATA","ADECCO UK LIMITED","",,"232347975"
"London Borough of Redbridge","http://opendatacommunities.org/doc/london-borough-council/redbridge","2BENVIRONMEN","Environmental Services","2CSERVMGTSUP","Service Management & Support Services","REV","Revenue","R6799","Service Planning","01-EMPLOYEES","Employees","01A","Direct employee expenses","4","Agency Staff - Pay","3138206","201103",10/06/2010 00:00:00,329,"31230","Employment & Recruitment Agencies","REDACTED DATA","ADECCO UK LIMITED","",,"232347975"
"London Borough of Redbridge","http://opendatacommunities.org/doc/london-borough-council/redbridge","3BNONSCHFUND","Non-School Funding","","","REV","Revenue","R2041","South Childrens Centre","01-EMPLOYEES","Employees","01A","Direct employee expenses","4","Agency Staff - Pay","3138206","201103",10/06/2010 00:00:00,327,"31230","Employment & Recruitment Agencies","REDACTED DATA","ADECCO UK LIMITED","",,"232347975"
"London Borough of Redbridge","http://opendatacommunities.org/doc/london-borough-council/redbridge","3BOPTIONHLDG","Optional Holding Accounts","3CYOUTH","Youth Service","REV","Revenue","R3367","Youth Crime Prevention Team","01-EMPLOYEES","Employees","01A","Direct employee expenses","4","Agency Staff - Pay","3138206","201103",10/06/2010 00:00:00,326,"31230","Employment & Recruitment Agencies","REDACTED DATA","ADECCO UK LIMITED","",,"232347975"
"London Borough of Redbridge","http://opendatacommunities.org/doc/london-borough-council/redbridge","6BSOCIALSERV","Social Services","","","REV","Revenue","R2140","CQ and F - Safeguarding and Care Planning Soc Care","01-EMPLOYEES","Employees","01A","Direct employee expenses","4","Agency Staff - Pay","3138206","201103",10/06/2010 00:00:00,325,"31230","Employment & Recruitment Agencies","REDACTED DATA","ADECCO UK LIMITED","",,"232347975"
"London Borough of Redbridge","http://opendatacommunities.org/doc/london-borough-council/redbridge","1BOTHEROPI&E","Other Operating Income & Expenditure","1CTRADSURDEF","Trading Account Surpluses & Deficits","REV","Revenue","R9460","Human Resources misc","01-EMPLOYEES","Employees","01A","Direct employee expenses","4","Agency Staff - Pay","3138206","201103",10/06/2010 00:00:00,325,"31230","Employment & Recruitment Agencies","REDACTED DATA","ADECCO UK LIMITED","",,"232347975"
"London Borough of Redbridge","http://opendatacommunities.org/doc/london-borough-council/redbridge","2BCULTUR&REL","Cultural & Related Services","2COPENSPACES","Open Spaces","REV","Revenue","R6313","Parks Operational","01-EMPLOYEES","Employees","01A","Direct employee expenses","4","Agency Staff - Pay","3138206","201103",10/06/2010 00:00:00,324,"31230","Employment & Recruitment Agencies","REDACTED DATA","ADECCO UK LIMITED","",,"232347975"
"London Borough of Redbridge","http://opendatacommunities.org/doc/london-borough-council/redbridge","5BGFHOUSING","General Fund Housing","5CHOUSADVICE","Housing Advice","REV","Revenue","R5530","HAC Temporary Accomodation","01-EMPLOYEES","Employees","01A","Direct employee expenses","4","Agency Staff - Pay","3138206","201103",10/06/2010 00:00:00,322,"31230","Employment & Recruitment Agencies","REDACTED DATA","ADECCO UK LIMITED","",,"232347975"
"London Borough of Redbridge","http://opendatacommunities.org/doc/london-borough-council/redbridge","3BNONSCHFUND","Non-School Funding","","","REV","Revenue","R2041","South Childrens Centre","01-EMPLOYEES","Employees","01A","Direct employee expenses","4","Agency Staff - Pay","3138206","201103",10/06/2010 00:00:00,318,"31230","Employment & Recruitment Agencies","REDACTED DATA","ADECCO UK LIMITED","",,"232347975"
"London Borough of Redbridge","http://opendatacommunities.org/doc/london-borough-council/redbridge","3BNONSCHFUND","Non-School Funding","","","REV","Revenue","R2041","South Childrens Centre","01-EMPLOYEES","Employees","01A","Direct employee expenses","4","Agency Staff - Pay","3138206","201103",10/06/2010 00:00:00,318,"31230","Employment & Recruitment Agencies","REDACTED DATA","ADECCO UK LIMITED","",,"232347975"
"London Borough of Redbridge","http://opendatacommunities.org/doc/london-borough-council/redbridge","6BSOCIALSERV","Social Services","6CSERVSTRAT","Service Strategy","REV","Revenue","R2136","CQ and F - Quality Assurance Safeguarding Children","01-EMPLOYEES","Employees","01A","Direct employee expenses","4","Agency Staff - Pay","3138206","201103",10/06/2010 00:00:00,316,"31230","Employment & Recruitment Agencies","REDACTED DATA","ADECCO UK LIMITED","",,"232347975"
"London Borough of Redbridge","http://opendatacommunities.org/doc/london-borough-council/redbridge","3BNONSCHFUND","Non-School Funding","","","REV","Revenue","R2041","South Childrens Centre","01-EMPLOYEES","Employees","01A","Direct employee expenses","4","Agency Staff - Pay","3138206","201103",10/06/2010 00:00:00,315,"31230","Employment & Recruitment Agencies","REDACTED DATA","ADECCO UK LIMITED","",,"232347975"
"London Borough of Redbridge","http://opendatacommunities.org/doc/london-borough-council/redbridge","1BOTHEROPI&E","Other Operating Income & Expenditure","1CTRADSURDEF","Trading Account Surpluses & Deficits","REV","Revenue","R9460","Human Resources misc","01-EMPLOYEES","Employees","01A","Direct employee expenses","4","Agency Staff - Pay","3138206","201103",10/06/2010 00:00:00,315,"31230","Employment & Recruitment Agencies","REDACTED DATA","ADECCO UK LIMITED","",,"232347975"
"London Borough of Redbridge","http://opendatacommunities.org/doc/london-borough-council/redbridge","3BNONSCHFUND","Non-School Funding","","","REV","Revenue","R2047","Sure Start Centre DSG","01-EMPLOYEES","Employees","01A","Direct employee expenses","4","Agency Staff - Pay","3138206","201103",10/06/2010 00:00:00,314,"31230","Employment & Recruitment Agencies","REDACTED DATA","ADECCO UK LIMITED","",,"232347975"
"London Borough of Redbridge","http://opendatacommunities.org/doc/london-borough-council/redbridge","6BSOCIALSERV","Social Services","","","REV","Revenue","R2140","CQ and F - Safeguarding and Care Planning Soc Care","01-EMPLOYEES","Employees","01A","Direct employee expenses","4","Agency Staff - Pay","3138206","201103",10/06/2010 00:00:00,314,"31230","Employment & Recruitment Agencies","REDACTED DATA","ADECCO UK LIMITED","",,"232347975"
"London Borough of Redbridge","http://opendatacommunities.org/doc/london-borough-council/redbridge","3BLEACENTFND","LEA Centrally Held School Funds","3CSCHSTRATMG","Schools Strategic Management","REV","Revenue","R3006","Management Support Team","01-EMPLOYEES","Employees","01A","Direct employee expenses","4","Agency Staff - Pay","3138206","201103",10/06/2010 00:00:00,314,"31230","Employment & Recruitment Agencies","REDACTED DATA","ADECCO UK LIMITED","",,"232347975"
"London Borough of Redbridge","http://opendatacommunities.org/doc/london-borough-council/redbridge","6BSOCIALSERV","Social Services","6CSERVSTRAT","Service Strategy","REV","Revenue","R2136","CQ and F - Quality Assurance Safeguarding Children","01-EMPLOYEES","Employees","01A","Direct employee expenses","4","Agency Staff - Pay","3138206","201103",10/06/2010 00:00:00,313,"31230","Employment & Recruitment Agencies","REDACTED DATA","ADECCO UK LIMITED","",,"232347975"
"London Borough of Redbridge","http://opendatacommunities.org/doc/london-borough-council/redbridge","3BLEACENTFND","LEA Centrally Held School Funds","3CSCHSTRATMG","Schools Strategic Management","REV","Revenue","R3507","Sch Admissions Sectio","01-EMPLOYEES","Employees","01A","Direct employee expenses","4","Agency Staff - Pay","3138206","201103",10/06/2010 00:00:00,312,"31230","Employment & Recruitment Agencies","REDACTED DATA","ADECCO UK LIMITED","",,"232347975"
"London Borough of Redbridge","http://opendatacommunities.org/doc/london-borough-council/redbridge","3BNONSCHFUND","Non-School Funding","","","REV","Revenue","R2041","South Childrens Centre","01-EMPLOYEES","Employees","01A","Direct employee expenses","4","Agency Staff - Pay","3138206","201103",10/06/2010 00:00:00,310,"31230","Employment & Recruitment Agencies","REDACTED DATA","ADECCO UK LIMITED","",,"232347975"
"London Borough of Redbridge","http://opendatacommunities.org/doc/london-borough-council/redbridge","9BNONBVO","Outside the BVACOP Objective Structure","9CNONBVO","Outside the BVACOP Objective Structure","REV","Revenue","R7602","Routine Sweeping DSO","01-EMPLOYEES","Employees","01A","Direct employee expenses","4","Agency Staff - Pay","3138206","201103",10/06/2010 00:00:00,310,"31230","Employment & Recruitment Agencies","REDACTED DATA","ADECCO UK LIMITED","",,"232347975"
"London Borough of Redbridge","http://opendatacommunities.org/doc/london-borough-council/redbridge","3BNONSCHFUND","Non-School Funding","","","REV","Revenue","R2041","South Childrens Centre","01-EMPLOYEES","Employees","01A","Direct employee expenses","4","Agency Staff - Pay","3138206","201103",10/06/2010 00:00:00,305,"31230","Employment & Recruitment Agencies","REDACTED DATA","ADECCO UK LIMITED","",,"232347975"
"London Borough of Redbridge","http://opendatacommunities.org/doc/london-borough-council/redbridge","6BSOCIALSERV","Social Services","6COTHC&FSERV","Other Children's & Families' Services","REV","Revenue","R2167","Albert Road - Increased Social Worker Establishment","01-EMPLOYEES","Employees","01A","Direct employee expenses","4","Agency Staff - Pay","3138206","201103",10/06/2010 00:00:00,305,"31230","Employment & Recruitment Agencies","REDACTED DATA","ADECCO UK LIMITED","",,"232347975"
"London Borough of Redbridge","http://opendatacommunities.org/doc/london-borough-council/redbridge","6BSOCIALSERV","Social Services","6COTHC&FSERV","Other Children's & Families' Services","REV","Revenue","R2167","Albert Road - Increased Social Worker Establishment","01-EMPLOYEES","Employees","01A","Direct employee expenses","4","Agency Staff - Pay","3138206","201103",10/06/2010 00:00:00,305,"31230","Employment & Recruitment Agencies","REDACTED DATA","ADECCO UK LIMITED","",,"232347975"
"London Borough of Redbridge","http://opendatacommunities.org/doc/london-borough-council/redbridge","1BCENTRALPUB","Central Services to the Public","","","REV","Revenue","R5754","Income","01-EMPLOYEES","Employees","01A","Direct employee expenses","4","Agency Staff - Pay","3138206","201103",10/06/2010 00:00:00,304,"31230","Employment & Recruitment Agencies","REDACTED DATA","ADECCO UK LIMITED","",,"232347975"
"London Borough of Redbridge","http://opendatacommunities.org/doc/london-borough-council/redbridge","6BSOCIALSERV","Social Services","","","REV","Revenue","R2157","Albert Road - Business and Finance Social Care","01-EMPLOYEES","Employees","01A","Direct employee expenses","4","Agency Staff - Pay","3138206","201103",10/06/2010 00:00:00,302,"31230","Employment & Recruitment Agencies","REDACTED DATA","ADECCO UK LIMITED","",,"232347975"
"London Borough of Redbridge","http://opendatacommunities.org/doc/london-borough-council/redbridge","6BADULTSOCIA","Adult Social Care","6CADLEARNDIS","Adults Under 65 with Learning Disabilities","REV","Revenue","R4070","Head of Learning Disability","01-EMPLOYEES","Employees","01A","Direct employee expenses","4","Agency Staff - Pay","3138206","201103",10/06/2010 00:00:00,298,"31230","Employment & Recruitment Agencies","REDACTED DATA","ADECCO UK LIMITED","",,"232347975"
"London Borough of Redbridge","http://opendatacommunities.org/doc/london-borough-council/redbridge","3BNONSCHFUND","Non-School Funding","","","REV","Revenue","R2041","South Childrens Centre","01-EMPLOYEES","Employees","01A","Direct employee expenses","4","Agency Staff - Pay","3138206","201103",10/06/2010 00:00:00,297,"31230","Employment & Recruitment Agencies","REDACTED DATA","ADECCO UK LIMITED","",,"232347975"
"London Borough of Redbridge","http://opendatacommunities.org/doc/london-borough-council/redbridge","1BCENTRALPUB","Central Services to the Public","1CLOCALTAXCO","Local Tax Collection","REV","Revenue","R5760","Council Tax Collection","01-EMPLOYEES","Employees","01A","Direct employee expenses","4","Agency Staff - Pay","3138206","201103",10/06/2010 00:00:00,297,"31230","Employment & Recruitment Agencies","REDACTED DATA","ADECCO UK LIMITED","",,"232347975"
"London Borough of Redbridge","http://opendatacommunities.org/doc/london-borough-council/redbridge","1BCENTRALPUB","Central Services to the Public","1CLOCALTAXCO","Local Tax Collection","REV","Revenue","R5760","Council Tax Collection","01-EMPLOYEES","Employees","01A","Direct employee expenses","4","Agency Staff - Pay","3138206","201103",10/06/2010 00:00:00,297,"31230","Employment & Recruitment Agencies","REDACTED DATA","ADECCO UK LIMITED","",,"232347975"
"London Borough of Redbridge","http://opendatacommunities.org/doc/london-borough-council/redbridge","3BLEACENTFND","LEA Centrally Held School Funds","3CSCHSTRATMG","Schools Strategic Management","REV","Revenue","R3507","Sch Admissions Sectio","01-EMPLOYEES","Employees","01A","Direct employee expenses","4","Agency Staff - Pay","3138206","201103",10/06/2010 00:00:00,297,"31230","Employment & Recruitment Agencies","REDACTED DATA","ADECCO UK LIMITED","",,"232347975"
"London Borough of Redbridge","http://opendatacommunities.org/doc/london-borough-council/redbridge","3BLEACENTFND","LEA Centrally Held School Funds","3CSCHSTRATMG","Schools Strategic Management","REV","Revenue","R3507","Sch Admissions Sectio","01-EMPLOYEES","Employees","01A","Direct employee expenses","4","Agency Staff - Pay","3138206","201103",10/06/2010 00:00:00,297,"31230","Employment & Recruitment Agencies","REDACTED DATA","ADECCO UK LIMITED","",,"232347975"
"London Borough of Redbridge","http://opendatacommunities.org/doc/london-borough-council/redbridge","3BLEACENTFND","LEA Centrally Held School Funds","3CSCHSTRATMG","Schools Strategic Management","REV","Revenue","R3507","Sch Admissions Sectio","01-EMPLOYEES","Employees","01A","Direct employee expenses","4","Agency Staff - Pay","3138206","201103",10/06/2010 00:00:00,297,"31230","Employment & Recruitment Agencies","REDACTED DATA","ADECCO UK LIMITED","",,"232347975"
"London Borough of Redbridge","http://opendatacommunities.org/doc/london-borough-council/redbridge","3BLEACENTFND","LEA Centrally Held School Funds","3CSCHSTRATMG","Schools Strategic Management","REV","Revenue","R3507","Sch Admissions Sectio","01-EMPLOYEES","Employees","01A","Direct employee expenses","4","Agency Staff - Pay","3138206","201103",10/06/2010 00:00:00,297,"31230","Employment & Recruitment Agencies","REDACTED DATA","ADECCO UK LIMITED","",,"232347975"
"London Borough of Redbridge","http://opendatacommunities.org/doc/london-borough-council/redbridge","6BSOCIALSERV","Social Services","6COTHC&FSERV","Other Children's & Families' Services","REV","Revenue","R2167","Albert Road - Increased Social Worker Establishment","01-EMPLOYEES","Employees","01A","Direct employee expenses","4","Agency Staff - Pay","3138206","201103",10/06/2010 00:00:00,297,"31230","Employment & Recruitment Agencies","REDACTED DATA","ADECCO UK LIMITED","",,"232347975"
"London Borough of Redbridge","http://opendatacommunities.org/doc/london-borough-council/redbridge","1BCENTRALPUB","Central Services to the Public","1CLOCALTAXCO","Local Tax Collection","REV","Revenue","R5760","Council Tax Collection","01-EMPLOYEES","Employees","01A","Direct employee expenses","4","Agency Staff - Pay","3138206","201103",10/06/2010 00:00:00,292,"31230","Employment & Recruitment Agencies","REDACTED DATA","ADECCO UK LIMITED","",,"232347975"
"London Borough of Redbridge","http://opendatacommunities.org/doc/london-borough-council/redbridge","2BENVIRONMEN","Environmental Services","2CSERVMGTSUP","Service Management & Support Services","REV","Revenue","R6799","Service Planning","01-EMPLOYEES","Employees","01A","Direct employee expenses","4","Agency Staff - Pay","3138206","201103",10/06/2010 00:00:00,287,"31230","Employment & Recruitment Agencies","REDACTED DATA","ADECCO UK LIMITED","",,"232347975"
"London Borough of Redbridge","http://opendatacommunities.org/doc/london-borough-council/redbridge","6BSOCIALSERV","Social Services","6COTHC&FSERV","Other Children's & Families' Services","REV","Revenue","R2167","Albert Road - Increased Social Worker Establishment","01-EMPLOYEES","Employees","01A","Direct employee expenses","4","Agency Staff - Pay","3138206","201103",10/06/2010 00:00:00,286,"31230","Employment & Recruitment Agencies","REDACTED DATA","ADECCO UK LIMITED","",,"232347975"
"London Borough of Redbridge","http://opendatacommunities.org/doc/london-borough-council/redbridge","3BLEACENTFND","LEA Centrally Held School Funds","3CSCHSTRATMG","Schools Strategic Management","REV","Revenue","R3271","Teachers Centre Deleg","01-EMPLOYEES","Employees","01A","Direct employee expenses","4","Agency Staff - Pay","3138206","201103",10/06/2010 00:00:00,285,"31230","Employment & Recruitment Agencies","REDACTED DATA","ADECCO UK LIMITED","",,"232347975"
"London Borough of Redbridge","http://opendatacommunities.org/doc/london-borough-council/redbridge","1BOTHEROPI&E","Other Operating Income & Expenditure","1CTRADSURDEF","Trading Account Surpluses & Deficits","REV","Revenue","R9252","IT Services","01-EMPLOYEES","Employees","01A","Direct employee expenses","4","Agency Staff - Pay","3138206","201103",10/06/2010 00:00:00,285,"31230","Employment & Recruitment Agencies","REDACTED DATA","ADECCO UK LIMITED","",,"232347975"
"London Borough of Redbridge","http://opendatacommunities.org/doc/london-borough-council/redbridge","6BSOCIALSERV","Social Services","","","REV","Revenue","R2140","CQ and F - Safeguarding and Care Planning Soc Care","01-EMPLOYEES","Employees","01A","Direct employee expenses","4","Agency Staff - Pay","3138206","201103",10/06/2010 00:00:00,283,"31230","Employment & Recruitment Agencies","REDACTED DATA","ADECCO UK LIMITED","",,"232347975"
"London Borough of Redbridge","http://opendatacommunities.org/doc/london-borough-council/redbridge","4BTRANSPORT","Transport Planning, Policy & Strategy","4CMANGT&SUPP","Management & Support Services","REV","Revenue","R7000","Highways Executive","01-EMPLOYEES","Employees","01A","Direct employee expenses","4","Agency Staff - Pay","3138206","201103",10/06/2010 00:00:00,282,"31230","Employment & Recruitment Agencies","REDACTED DATA","ADECCO UK LIMITED","",,"232347975"
"London Borough of Redbridge","http://opendatacommunities.org/doc/london-borough-council/redbridge","2BENVIRONMEN","Environmental Services","2CSERVMGTSUP","Service Management & Support Services","REV","Revenue","R6799","Service Planning","01-EMPLOYEES","Employees","01A","Direct employee expenses","4","Agency Staff - Pay","3138206","201103",10/06/2010 00:00:00,282,"31230","Employment & Recruitment Agencies","REDACTED DATA","ADECCO UK LIMITED","",,"232347975"
"London Borough of Redbridge","http://opendatacommunities.org/doc/london-borough-council/redbridge","7BCDC","Corporate & Democratic Core","7CCORPMGT","Corporate Management","REV","Revenue","R9810","Scrutiny Unit","01-EMPLOYEES","Employees","01A","Direct employee expenses","4","Agency Staff - Pay","3138206","201103",10/06/2010 00:00:00,281,"31230","Employment & Recruitment Agencies","REDACTED DATA","ADECCO UK LIMITED","",,"232347975"
"London Borough of Redbridge","http://opendatacommunities.org/doc/london-borough-council/redbridge","1BOTHEROPI&E","Other Operating Income & Expenditure","1CTRADSURDEF","Trading Account Surpluses & Deficits","REV","Revenue","R9460","Human Resources misc","01-EMPLOYEES","Employees","01A","Direct employee expenses","4","Agency Staff - Pay","3138206","201103",10/06/2010 00:00:00,280,"31230","Employment & Recruitment Agencies","REDACTED DATA","ADECCO UK LIMITED","",,"232347975"
"London Borough of Redbridge","http://opendatacommunities.org/doc/london-borough-council/redbridge","4BTRANSPORT","Transport Planning, Policy & Strategy","4CMANGT&SUPP","Management & Support Services","REV","Revenue","R7000","Highways Executive","01-EMPLOYEES","Employees","01A","Direct employee expenses","4","Agency Staff - Pay","3138206","201103",10/06/2010 00:00:00,279,"31230","Employment & Recruitment Agencies","REDACTED DATA","ADECCO UK LIMITED","",,"232347975"
"London Borough of Redbridge","http://opendatacommunities.org/doc/london-borough-council/redbridge","3BLEACENTFND","LEA Centrally Held School Funds","3CSCHSTRATMG","Schools Strategic Management","REV","Revenue","R3271","Teachers Centre Deleg","01-EMPLOYEES","Employees","01A","Direct employee expenses","4","Agency Staff - Pay","3138206","201103",10/06/2010 00:00:00,278,"31230","Employment & Recruitment Agencies","REDACTED DATA","ADECCO UK LIMITED","",,"232347975"
"London Borough of Redbridge","http://opendatacommunities.org/doc/london-borough-council/redbridge","3BLEACENTFND","LEA Centrally Held School Funds","3CSCHSTRATMG","Schools Strategic Management","REV","Revenue","R3507","Sch Admissions Sectio","01-EMPLOYEES","Employees","01A","Direct employee expenses","4","Agency Staff - Pay","3138206","201103",10/06/2010 00:00:00,277,"31230","Employment & Recruitment Agencies","REDACTED DATA","ADECCO UK LIMITED","",,"232347975"
"London Borough of Redbridge","http://opendatacommunities.org/doc/london-borough-council/redbridge","6BSOCIALSERV","Social Services","6COTHC&FSERV","Other Children's & Families' Services","REV","Revenue","R2167","Albert Road - Increased Social Worker Establishment","01-EMPLOYEES","Employees","01A","Direct employee expenses","4","Agency Staff - Pay","3138206","201103",10/06/2010 00:00:00,277,"31230","Employment & Recruitment Agencies","REDACTED DATA","ADECCO UK LIMITED","",,"232347975"
"London Borough of Redbridge","http://opendatacommunities.org/doc/london-borough-council/redbridge","6BSOCIALSERV","Social Services","6COTHC&FSERV","Other Children's & Families' Services","REV","Revenue","R2167","Albert Road - Increased Social Worker Establishment","01-EMPLOYEES","Employees","01A","Direct employee expenses","4","Agency Staff - Pay","3138206","201103",10/06/2010 00:00:00,277,"31230","Employment & Recruitment Agencies","REDACTED DATA","ADECCO UK LIMITED","",,"232347975"
"London Borough of Redbridge","http://opendatacommunities.org/doc/london-borough-council/redbridge","1BOTHEROPI&E","Other Operating Income & Expenditure","1CTRADSURDEF","Trading Account Surpluses & Deficits","REV","Revenue","R9252","IT Services","01-EMPLOYEES","Employees","01A","Direct employee expenses","4","Agency Staff - Pay","3138206","201103",10/06/2010 00:00:00,277,"31230","Employment & Recruitment Agencies","REDACTED DATA","ADECCO UK LIMITED","",,"232347975"
"London Borough of Redbridge","http://opendatacommunities.org/doc/london-borough-council/redbridge","1BOTHEROPI&E","Other Operating Income & Expenditure","1CTRADSURDEF","Trading Account Surpluses & Deficits","REV","Revenue","R9252","IT Services","01-EMPLOYEES","Employees","01A","Direct employee expenses","4","Agency Staff - Pay","3138206","201103",10/06/2010 00:00:00,277,"31230","Employment & Recruitment Agencies","REDACTED DATA","ADECCO UK LIMITED","",,"232347975"
"London Borough of Redbridge","http://opendatacommunities.org/doc/london-borough-council/redbridge","6BADULTSOCIA","Adult Social Care","6CCHILLOOKED","Children Looked After","REV","Revenue","R2118","CLAFH - 2-4 Bathurst Road","01-EMPLOYEES","Employees","01A","Direct employee expenses","4","Agency Staff - Pay","3138206","201103",10/06/2010 00:00:00,276,"31230","Employment & Recruitment Agencies","REDACTED DATA","ADECCO UK LIMITED","",,"232347975"
"London Borough of Redbridge","http://opendatacommunities.org/doc/london-borough-council/redbridge","7BCDC","Corporate & Democratic Core","7CCORPMGT","Corporate Management","REV","Revenue","R9810","Scrutiny Unit","01-EMPLOYEES","Employees","01A","Direct employee expenses","4","Agency Staff - Pay","3138206","201103",10/06/2010 00:00:00,273,"31230","Employment & Recruitment Agencies","REDACTED DATA","ADECCO UK LIMITED","",,"232347975"
"London Borough of Redbridge","http://opendatacommunities.org/doc/london-borough-council/redbridge","7BCDC","Corporate & Democratic Core","7CCORPMGT","Corporate Management","REV","Revenue","R9810","Scrutiny Unit","01-EMPLOYEES","Employees","01A","Direct employee expenses","4","Agency Staff - Pay","3138206","201103",10/06/2010 00:00:00,273,"31230","Employment & Recruitment Agencies","REDACTED DATA","ADECCO UK LIMITED","",,"232347975"
"London Borough of Redbridge","http://opendatacommunities.org/doc/london-borough-council/redbridge","6BADULTSOCIA","Adult Social Care","6CCHILLOOKED","Children Looked After","REV","Revenue","R2118","CLAFH - 2-4 Bathurst Road","01-EMPLOYEES","Employees","01A","Direct employee expenses","4","Agency Staff - Pay","3138206","201103",10/06/2010 00:00:00,269,"31230","Employment & Recruitment Agencies","REDACTED DATA","ADECCO UK LIMITED","",,"232347975"
"London Borough of Redbridge","http://opendatacommunities.org/doc/london-borough-council/redbridge","3BNONSCHFUND","Non-School Funding","","","REV","Revenue","R2047","Sure Start Centre DSG","01-EMPLOYEES","Employees","01A","Direct employee expenses","4","Agency Staff - Pay","3138206","201103",10/06/2010 00:00:00,269,"31230","Employment & Recruitment Agencies","REDACTED DATA","ADECCO UK LIMITED","",,"232347975"
"London Borough of Redbridge","http://opendatacommunities.org/doc/london-borough-council/redbridge","3BOPTIONHLDG","Optional Holding Accounts","3CYOUTH","Youth Service","REV","Revenue","R3437","Information","01-EMPLOYEES","Employees","01A","Direct employee expenses","4","Agency Staff - Pay","3138206","201103",10/06/2010 00:00:00,267,"31230","Employment & Recruitment Agencies","REDACTED DATA","ADECCO UK LIMITED","",,"232347975"
"London Borough of Redbridge","http://opendatacommunities.org/doc/london-borough-council/redbridge","5BGFHOUSING","General Fund Housing","","","REV","Revenue","R5501","Housing Service Admin","01-EMPLOYEES","Employees","01A","Direct employee expenses","4","Agency Staff - Pay","3138206","201103",10/06/2010 00:00:00,264,"31230","Employment & Recruitment Agencies","REDACTED DATA","ADECCO UK LIMITED","",,"232347975"
"London Borough of Redbridge","http://opendatacommunities.org/doc/london-borough-council/redbridge","3BLEACENTFND","LEA Centrally Held School Funds","3CSCHSTRATMG","Schools Strategic Management","REV","Revenue","R3006","Management Support Team","01-EMPLOYEES","Employees","01A","Direct employee expenses","4","Agency Staff - Pay","3138206","201103",10/06/2010 00:00:00,263,"31230","Employment & Recruitment Agencies","REDACTED DATA","ADECCO UK LIMITED","",,"232347975"
"London Borough of Redbridge","http://opendatacommunities.org/doc/london-borough-council/redbridge","1BOTHEROPI&E","Other Operating Income & Expenditure","1CTRADSURDEF","Trading Account Surpluses & Deficits","REV","Revenue","R9460","Human Resources misc","01-EMPLOYEES","Employees","01A","Direct employee expenses","4","Agency Staff - Pay","3138206","201103",10/06/2010 00:00:00,259,"31230","Employment & Recruitment Agencies","REDACTED DATA","ADECCO UK LIMITED","",,"232347975"
"London Borough of Redbridge","http://opendatacommunities.org/doc/london-borough-council/redbridge","7BCDC","Corporate & Democratic Core","7CCORPMGT","Corporate Management","REV","Revenue","R9810","Scrutiny Unit","01-EMPLOYEES","Employees","01A","Direct employee expenses","4","Agency Staff - Pay","3138206","201103",10/06/2010 00:00:00,255,"31230","Employment & Recruitment Agencies","REDACTED DATA","ADECCO UK LIMITED","",,"232347975"
"London Borough of Redbridge","http://opendatacommunities.org/doc/london-borough-council/redbridge","1BCENTRALPUB","Central Services to the Public","","","REV","Revenue","R5754","Income","01-EMPLOYEES","Employees","01A","Direct employee expenses","4","Agency Staff - Pay","3138206","201103",10/06/2010 00:00:00,254,"31230","Employment & Recruitment Agencies","REDACTED DATA","ADECCO UK LIMITED","",,"232347975"
"London Borough of Redbridge","http://opendatacommunities.org/doc/london-borough-council/redbridge","6BADULTSOCIA","Adult Social Care","6CADLEARNDIS","Adults Under 65 with Learning Disabilities","REV","Revenue","R4070","Head of Learning Disability","01-EMPLOYEES","Employees","01A","Direct employee expenses","4","Agency Staff - Pay","3138206","201103",10/06/2010 00:00:00,251,"31230","Employment & Recruitment Agencies","REDACTED DATA","ADECCO UK LIMITED","",,"232347975"
"London Borough of Redbridge","http://opendatacommunities.org/doc/london-borough-council/redbridge","5BGFHOUSING","General Fund Housing","","","REV","Revenue","R5501","Housing Service Admin","01-EMPLOYEES","Employees","01A","Direct employee expenses","4","Agency Staff - Pay","3138206","201103",10/06/2010 00:00:00,250,"31230","Employment & Recruitment Agencies","REDACTED DATA","ADECCO UK LIMITED","",,"232347975"
"London Borough of Redbridge","http://opendatacommunities.org/doc/london-borough-council/redbridge","1BOTHEROPI&E","Other Operating Income & Expenditure","1CTRADSURDEF","Trading Account Surpluses & Deficits","REV","Revenue","R9460","Human Resources misc","01-EMPLOYEES","Employees","01A","Direct employee expenses","4","Agency Staff - Pay","3138206","201103",10/06/2010 00:00:00,248,"31230","Employment & Recruitment Agencies","REDACTED DATA","ADECCO UK LIMITED","",,"232347975"
"London Borough of Redbridge","http://opendatacommunities.org/doc/london-borough-council/redbridge","1BOTHEROPI&E","Other Operating Income & Expenditure","1CTRADSURDEF","Trading Account Surpluses & Deficits","REV","Revenue","R9003","One Stop Shop","01-EMPLOYEES","Employees","01A","Direct employee expenses","4","Agency Staff - Pay","3138206","201103",10/06/2010 00:00:00,247,"31230","Employment & Recruitment Agencies","REDACTED DATA","ADECCO UK LIMITED","",,"232347975"
"London Borough of Redbridge","http://opendatacommunities.org/doc/london-borough-council/redbridge","3BLEACENTFND","LEA Centrally Held School Funds","3CFACILIMPRO","Facilitating School Improvement","REV","Revenue","R3877","Recruitment Services","01-EMPLOYEES","Employees","01A","Direct employee expenses","4","Agency Staff - Pay","3138206","201103",10/06/2010 00:00:00,243,"31230","Employment & Recruitment Agencies","REDACTED DATA","ADECCO UK LIMITED","",,"232347975"
"London Borough of Redbridge","http://opendatacommunities.org/doc/london-borough-council/redbridge","3BLEACENTFND","LEA Centrally Held School Funds","3CFACILIMPRO","Facilitating School Improvement","REV","Revenue","R3877","Recruitment Services","01-EMPLOYEES","Employees","01A","Direct employee expenses","4","Agency Staff - Pay","3138206","201103",10/06/2010 00:00:00,237,"31230","Employment & Recruitment Agencies","REDACTED DATA","ADECCO UK LIMITED","",,"232347975"
"London Borough of Redbridge","http://opendatacommunities.org/doc/london-borough-council/redbridge","6BSOCIALSERV","Social Services","","","REV","Revenue","R2140","CQ and F - Safeguarding and Care Planning Soc Care","01-EMPLOYEES","Employees","01A","Direct employee expenses","4","Agency Staff - Pay","3138206","201103",10/06/2010 00:00:00,234,"31230","Employment & Recruitment Agencies","REDACTED DATA","ADECCO UK LIMITED","",,"232347975"
"London Borough of Redbridge","http://opendatacommunities.org/doc/london-borough-council/redbridge","5BGFHOUSING","General Fund Housing","","","REV","Revenue","R5500","Housing Advice Centre","01-EMPLOYEES","Employees","01A","Direct employee expenses","4","Agency Staff - Pay","3138206","201103",10/06/2010 00:00:00,232,"31230","Employment & Recruitment Agencies","REDACTED DATA","ADECCO UK LIMITED","",,"232347975"
"London Borough of Redbridge","http://opendatacommunities.org/doc/london-borough-council/redbridge","1BOTHEROPI&E","Other Operating Income & Expenditure","1CTRADSURDEF","Trading Account Surpluses & Deficits","REV","Revenue","R9460","Human Resources misc","01-EMPLOYEES","Employees","01A","Direct employee expenses","4","Agency Staff - Pay","3138206","201103",10/06/2010 00:00:00,232,"31230","Employment & Recruitment Agencies","REDACTED DATA","ADECCO UK LIMITED","",,"232347975"
"London Borough of Redbridge","http://opendatacommunities.org/doc/london-borough-council/redbridge","1BOTHEROPI&E","Other Operating Income & Expenditure","1CTRADSURDEF","Trading Account Surpluses & Deficits","REV","Revenue","R9460","Human Resources misc","01-EMPLOYEES","Employees","01A","Direct employee expenses","4","Agency Staff - Pay","3138206","201103",10/06/2010 00:00:00,228,"31230","Employment & Recruitment Agencies","REDACTED DATA","ADECCO UK LIMITED","",,"232347975"
"London Borough of Redbridge","http://opendatacommunities.org/doc/london-borough-council/redbridge","1BOTHEROPI&E","Other Operating Income & Expenditure","1CTRADSURDEF","Trading Account Surpluses & Deficits","REV","Revenue","R9460","Human Resources misc","01-EMPLOYEES","Employees","01A","Direct employee expenses","4","Agency Staff - Pay","3138206","201103",10/06/2010 00:00:00,225,"31230","Employment & Recruitment Agencies","REDACTED DATA","ADECCO UK LIMITED","",,"232347975"
"London Borough of Redbridge","http://opendatacommunities.org/doc/london-borough-council/redbridge","3BNONSCHFUND","Non-School Funding","","","REV","Revenue","R2047","Sure Start Centre DSG","01-EMPLOYEES","Employees","01A","Direct employee expenses","4","Agency Staff - Pay","3138206","201103",10/06/2010 00:00:00,225,"31230","Employment & Recruitment Agencies","REDACTED DATA","ADECCO UK LIMITED","",,"232347975"
"London Borough of Redbridge","http://opendatacommunities.org/doc/london-borough-council/redbridge","3BLEACENTFND","LEA Centrally Held School Funds","3CSCHSTRATMG","Schools Strategic Management","REV","Revenue","R3507","Sch Admissions Sectio","01-EMPLOYEES","Employees","01A","Direct employee expenses","4","Agency Staff - Pay","3138206","201103",10/06/2010 00:00:00,223,"31230","Employment & Recruitment Agencies","REDACTED DATA","ADECCO UK LIMITED","",,"232347975"
"London Borough of Redbridge","http://opendatacommunities.org/doc/london-borough-council/redbridge","6BSOCIALSERV","Social Services","6COTHC&FSERV","Other Children's & Families' Services","REV","Revenue","R2167","Albert Road - Increased Social Worker Establishment","01-EMPLOYEES","Employees","01A","Direct employee expenses","4","Agency Staff - Pay","3138206","201103",10/06/2010 00:00:00,223,"31230","Employment & Recruitment Agencies","REDACTED DATA","ADECCO UK LIMITED","",,"232347975"
"London Borough of Redbridge","http://opendatacommunities.org/doc/london-borough-council/redbridge","6BSOCIALSERV","Social Services","6COTHC&FSERV","Other Children's & Families' Services","REV","Revenue","R2167","Albert Road - Increased Social Worker Establishment","01-EMPLOYEES","Employees","01A","Direct employee expenses","4","Agency Staff - Pay","3138206","201103",10/06/2010 00:00:00,223,"31230","Employment & Recruitment Agencies","REDACTED DATA","ADECCO UK LIMITED","",,"232347975"
"London Borough of Redbridge","http://opendatacommunities.org/doc/london-borough-council/redbridge","6BSOCIALSERV","Social Services","6COTHC&FSERV","Other Children's & Families' Services","REV","Revenue","R2167","Albert Road - Increased Social Worker Establishment","01-EMPLOYEES","Employees","01A","Direct employee expenses","4","Agency Staff - Pay","3138206","201103",10/06/2010 00:00:00,223,"31230","Employment & Recruitment Agencies","REDACTED DATA","ADECCO UK LIMITED","",,"232347975"
"London Borough of Redbridge","http://opendatacommunities.org/doc/london-borough-council/redbridge","9BNONBVO","Outside the BVACOP Objective Structure","9CNONBVO","Outside the BVACOP Objective Structure","REV","Revenue","R7602","Routine Sweeping DSO","01-EMPLOYEES","Employees","01A","Direct employee expenses","4","Agency Staff - Pay","3138206","201103",10/06/2010 00:00:00,223,"31230","Employment & Recruitment Agencies","REDACTED DATA","ADECCO UK LIMITED","",,"232347975"
"London Borough of Redbridge","http://opendatacommunities.org/doc/london-borough-council/redbridge","3BLEACENTFND","LEA Centrally Held School Funds","3CFACILIMPRO","Facilitating School Improvement","REV","Revenue","R3877","Recruitment Services","01-EMPLOYEES","Employees","01A","Direct employee expenses","4","Agency Staff - Pay","3138206","201103",10/06/2010 00:00:00,221,"31230","Employment & Recruitment Agencies","REDACTED DATA","ADECCO UK LIMITED","",,"232347975"
"London Borough of Redbridge","http://opendatacommunities.org/doc/london-borough-council/redbridge","9BNONBVO","Outside the BVACOP Objective Structure","9CNONBVO","Outside the BVACOP Objective Structure","REV","Revenue","R7602","Routine Sweeping DSO","01-EMPLOYEES","Employees","01A","Direct employee expenses","4","Agency Staff - Pay","3138206","201103",10/06/2010 00:00:00,219,"31230","Employment & Recruitment Agencies","REDACTED DATA","ADECCO UK LIMITED","",,"232347975"
"London Borough of Redbridge","http://opendatacommunities.org/doc/london-borough-council/redbridge","1BOTHEROPI&E","Other Operating Income & Expenditure","1CTRADSURDEF","Trading Account Surpluses & Deficits","REV","Revenue","R9460","Human Resources misc","01-EMPLOYEES","Employees","01A","Direct employee expenses","4","Agency Staff - Pay","3138206","201103",10/06/2010 00:00:00,219,"31230","Employment & Recruitment Agencies","REDACTED DATA","ADECCO UK LIMITED","",,"232347975"
"London Borough of Redbridge","http://opendatacommunities.org/doc/london-borough-council/redbridge","1BOTHEROPI&E","Other Operating Income & Expenditure","1CTRADSURDEF","Trading Account Surpluses & Deficits","REV","Revenue","R9460","Human Resources misc","01-EMPLOYEES","Employees","01A","Direct employee expenses","4","Agency Staff - Pay","3138206","201103",10/06/2010 00:00:00,219,"31230","Employment & Recruitment Agencies","REDACTED DATA","ADECCO UK LIMITED","",,"232347975"
"London Borough of Redbridge","http://opendatacommunities.org/doc/london-borough-council/redbridge","3BOPTIONHLDG","Optional Holding Accounts","3CYOUTH","Youth Service","REV","Revenue","R3437","Information","01-EMPLOYEES","Employees","01A","Direct employee expenses","4","Agency Staff - Pay","3138206","201103",10/06/2010 00:00:00,219,"31230","Employment & Recruitment Agencies","REDACTED DATA","ADECCO UK LIMITED","",,"232347975"
"London Borough of Redbridge","http://opendatacommunities.org/doc/london-borough-council/redbridge","5BGFHOUSING","General Fund Housing","","","REV","Revenue","R5501","Housing Service Admin","01-EMPLOYEES","Employees","01A","Direct employee expenses","4","Agency Staff - Pay","3138206","201103",10/06/2010 00:00:00,218,"31230","Employment & Recruitment Agencies","REDACTED DATA","ADECCO UK LIMITED","",,"232347975"
"London Borough of Redbridge","http://opendatacommunities.org/doc/london-borough-council/redbridge","3BLEACENTFND","LEA Centrally Held School Funds","3CSCHSTRATMG","Schools Strategic Management","REV","Revenue","R3006","Management Support Team","01-EMPLOYEES","Employees","01A","Direct employee expenses","4","Agency Staff - Pay","3138206","201103",10/06/2010 00:00:00,211,"31230","Employment & Recruitment Agencies","REDACTED DATA","ADECCO UK LIMITED","",,"232347975"
"London Borough of Redbridge","http://opendatacommunities.org/doc/london-borough-council/redbridge","2BCULTUR&REL","Cultural & Related Services","2COPENSPACES","Open Spaces","REV","Revenue","R6313","Parks Operational","01-EMPLOYEES","Employees","01A","Direct employee expenses","4","Agency Staff - Pay","3138206","201103",10/06/2010 00:00:00,207,"31230","Employment & Recruitment Agencies","REDACTED DATA","ADECCO UK LIMITED","",,"232347975"
"London Borough of Redbridge","http://opendatacommunities.org/doc/london-borough-council/redbridge","3BLEACENTFND","LEA Centrally Held School Funds","3CSCHSTRATMG","Schools Strategic Management","REV","Revenue","R3271","Teachers Centre Deleg","01-EMPLOYEES","Employees","01A","Direct employee expenses","4","Agency Staff - Pay","3138206","201103",10/06/2010 00:00:00,207,"31230","Employment & Recruitment Agencies","REDACTED DATA","ADECCO UK LIMITED","",,"232347975"
"London Borough of Redbridge","http://opendatacommunities.org/doc/london-borough-council/redbridge","6BADULTSOCIA","Adult Social Care","6CCHILLOOKED","Children Looked After","REV","Revenue","R2118","CLAFH - 2-4 Bathurst Road","01-EMPLOYEES","Employees","01A","Direct employee expenses","4","Agency Staff - Pay","3138206","201103",10/06/2010 00:00:00,206,"31230","Employment & Recruitment Agencies","REDACTED DATA","ADECCO UK LIMITED","",,"232347975"
"London Borough of Redbridge","http://opendatacommunities.org/doc/london-borough-council/redbridge","5BGFHOUSING","General Fund Housing","","","REV","Revenue","R5501","Housing Service Admin","01-EMPLOYEES","Employees","01A","Direct employee expenses","4","Agency Staff - Pay","3138206","201103",10/06/2010 00:00:00,205,"31230","Employment & Recruitment Agencies","REDACTED DATA","ADECCO UK LIMITED","",,"232347975"
"London Borough of Redbridge","http://opendatacommunities.org/doc/london-borough-council/redbridge","1BOTHEROPI&E","Other Operating Income & Expenditure","1CTRADSURDEF","Trading Account Surpluses & Deficits","REV","Revenue","R9460","Human Resources misc","01-EMPLOYEES","Employees","01A","Direct employee expenses","4","Agency Staff - Pay","3138206","201103",10/06/2010 00:00:00,204,"31230","Employment & Recruitment Agencies","REDACTED DATA","ADECCO UK LIMITED","",,"232347975"
"London Borough of Redbridge","http://opendatacommunities.org/doc/london-borough-council/redbridge","3BNONSCHFUND","Non-School Funding","","","REV","Revenue","R2041","South Childrens Centre","01-EMPLOYEES","Employees","01A","Direct employee expenses","4","Agency Staff - Pay","3138206","201103",10/06/2010 00:00:00,202,"31230","Employment & Recruitment Agencies","REDACTED DATA","ADECCO UK LIMITED","",,"232347975"
"London Borough of Redbridge","http://opendatacommunities.org/doc/london-borough-council/redbridge","1BOTHEROPI&E","Other Operating Income & Expenditure","1CTRADSURDEF","Trading Account Surpluses & Deficits","REV","Revenue","R9252","IT Services","01-EMPLOYEES","Employees","01A","Direct employee expenses","4","Agency Staff - Pay","3138206","201103",10/06/2010 00:00:00,200,"31230","Employment & Recruitment Agencies","REDACTED DATA","ADECCO UK LIMITED","",,"232347975"
"London Borough of Redbridge","http://opendatacommunities.org/doc/london-borough-council/redbridge","1BCENTRALPUB","Central Services to the Public","","","REV","Revenue","R5770","Income Assessment","01-EMPLOYEES","Employees","01A","Direct employee expenses","4","Agency Staff - Pay","3138206","201103",10/06/2010 00:00:00,196,"31230","Employment & Recruitment Agencies","REDACTED DATA","ADECCO UK LIMITED","",,"232347975"
"London Borough of Redbridge","http://opendatacommunities.org/doc/london-borough-council/redbridge","3BLEACENTFND","LEA Centrally Held School Funds","3CSCHSTRATMG","Schools Strategic Management","REV","Revenue","R3507","Sch Admissions Sectio","01-EMPLOYEES","Employees","01A","Direct employee expenses","4","Agency Staff - Pay","3138206","201103",10/06/2010 00:00:00,196,"31230","Employment & Recruitment Agencies","REDACTED DATA","ADECCO UK LIMITED","",,"232347975"
"London Borough of Redbridge","http://opendatacommunities.org/doc/london-borough-council/redbridge","1BCENTRALPUB","Central Services to the Public","","","REV","Revenue","R5770","Income Assessment","01-EMPLOYEES","Employees","01A","Direct employee expenses","4","Agency Staff - Pay","3138206","201103",10/06/2010 00:00:00,191,"31230","Employment & Recruitment Agencies","REDACTED DATA","ADECCO UK LIMITED","",,"232347975"
"London Borough of Redbridge","http://opendatacommunities.org/doc/london-borough-council/redbridge","3BLEACENTFND","LEA Centrally Held School Funds","3CFACILIMPRO","Facilitating School Improvement","REV","Revenue","R3877","Recruitment Services","01-EMPLOYEES","Employees","01A","Direct employee expenses","4","Agency Staff - Pay","3138206","201103",10/06/2010 00:00:00,189,"31230","Employment & Recruitment Agencies","REDACTED DATA","ADECCO UK LIMITED","",,"232347975"
"London Borough of Redbridge","http://opendatacommunities.org/doc/london-borough-council/redbridge","1BOTHEROPI&E","Other Operating Income & Expenditure","1CTRADSURDEF","Trading Account Surpluses & Deficits","REV","Revenue","R9252","IT Services","01-EMPLOYEES","Employees","01A","Direct employee expenses","4","Agency Staff - Pay","3138206","201103",10/06/2010 00:00:00,188,"31230","Employment & Recruitment Agencies","REDACTED DATA","ADECCO UK LIMITED","",,"232347975"
"London Borough of Redbridge","http://opendatacommunities.org/doc/london-borough-council/redbridge","2BCULTUR&REL","Cultural & Related Services","2COPENSPACES","Open Spaces","REV","Revenue","R6313","Parks Operational","01-EMPLOYEES","Employees","01A","Direct employee expenses","4","Agency Staff - Pay","3138206","201103",10/06/2010 00:00:00,185,"31230","Employment & Recruitment Agencies","REDACTED DATA","ADECCO UK LIMITED","",,"232347975"
"London Borough of Redbridge","http://opendatacommunities.org/doc/london-borough-council/redbridge","3BNONSCHFUND","Non-School Funding","","","REV","Revenue","R2047","Sure Start Centre DSG","01-EMPLOYEES","Employees","01A","Direct employee expenses","4","Agency Staff - Pay","3138206","201103",10/06/2010 00:00:00,185,"31230","Employment & Recruitment Agencies","REDACTED DATA","ADECCO UK LIMITED","",,"232347975"
"London Borough of Redbridge","http://opendatacommunities.org/doc/london-borough-council/redbridge","3BNONSCHFUND","Non-School Funding","","","REV","Revenue","R2047","Sure Start Centre DSG","01-EMPLOYEES","Employees","01A","Direct employee expenses","4","Agency Staff - Pay","3138206","201103",10/06/2010 00:00:00,185,"31230","Employment & Recruitment Agencies","REDACTED DATA","ADECCO UK LIMITED","",,"232347975"
"London Borough of Redbridge","http://opendatacommunities.org/doc/london-borough-council/redbridge","3BNONSCHFUND","Non-School Funding","","","REV","Revenue","R2047","Sure Start Centre DSG","01-EMPLOYEES","Employees","01A","Direct employee expenses","4","Agency Staff - Pay","3138206","201103",10/06/2010 00:00:00,185,"31230","Employment & Recruitment Agencies","REDACTED DATA","ADECCO UK LIMITED","",,"232347975"
"London Borough of Redbridge","http://opendatacommunities.org/doc/london-borough-council/redbridge","5BGFHOUSING","General Fund Housing","","","REV","Revenue","R5529","HAC Assessment","01-EMPLOYEES","Employees","01A","Direct employee expenses","4","Agency Staff - Pay","3138206","201103",10/06/2010 00:00:00,183,"31230","Employment & Recruitment Agencies","REDACTED DATA","ADECCO UK LIMITED","",,"232347975"
"London Borough of Redbridge","http://opendatacommunities.org/doc/london-borough-council/redbridge","1BCENTRALPUB","Central Services to the Public","","","REV","Revenue","R5770","Income Assessment","01-EMPLOYEES","Employees","01A","Direct employee expenses","4","Agency Staff - Pay","3138206","201103",10/06/2010 00:00:00,178,"31230","Employment & Recruitment Agencies","REDACTED DATA","ADECCO UK LIMITED","",,"232347975"
"London Borough of Redbridge","http://opendatacommunities.org/doc/london-borough-council/redbridge","2BCULTUR&REL","Cultural & Related Services","2COPENSPACES","Open Spaces","REV","Revenue","R6313","Parks Operational","01-EMPLOYEES","Employees","01A","Direct employee expenses","4","Agency Staff - Pay","3138206","201103",10/06/2010 00:00:00,178,"31230","Employment & Recruitment Agencies","REDACTED DATA","ADECCO UK LIMITED","",,"232347975"
"London Borough of Redbridge","http://opendatacommunities.org/doc/london-borough-council/redbridge","1BCENTRALPUB","Central Services to the Public","","","REV","Revenue","R5754","Income","01-EMPLOYEES","Employees","01A","Direct employee expenses","4","Agency Staff - Pay","3138206","201103",10/06/2010 00:00:00,177,"31230","Employment & Recruitment Agencies","REDACTED DATA","ADECCO UK LIMITED","",,"232347975"
"London Borough of Redbridge","http://opendatacommunities.org/doc/london-borough-council/redbridge","3BNONSCHFUND","Non-School Funding","3CADULT","Adult Education","REV","Revenue","R3364","Mildmay House","01-EMPLOYEES","Employees","01A","Direct employee expenses","4","Agency Staff - Pay","3138206","201103",10/06/2010 00:00:00,170,"31230","Employment & Recruitment Agencies","REDACTED DATA","ADECCO UK LIMITED","",,"232347975"
"London Borough of Redbridge","http://opendatacommunities.org/doc/london-borough-council/redbridge","3BNONSCHFUND","Non-School Funding","3CADULT","Adult Education","REV","Revenue","R3364","Mildmay House","01-EMPLOYEES","Employees","01A","Direct employee expenses","4","Agency Staff - Pay","3138206","201103",10/06/2010 00:00:00,170,"31230","Employment & Recruitment Agencies","REDACTED DATA","ADECCO UK LIMITED","",,"232347975"
"London Borough of Redbridge","http://opendatacommunities.org/doc/london-borough-council/redbridge","3BNONSCHFUND","Non-School Funding","3CADULT","Adult Education","REV","Revenue","R3364","Mildmay House","01-EMPLOYEES","Employees","01A","Direct employee expenses","4","Agency Staff - Pay","3138206","201103",10/06/2010 00:00:00,170,"31230","Employment & Recruitment Agencies","REDACTED DATA","ADECCO UK LIMITED","",,"232347975"
"London Borough of Redbridge","http://opendatacommunities.org/doc/london-borough-council/redbridge","1BOTHEROPI&E","Other Operating Income & Expenditure","1CTRADSURDEF","Trading Account Surpluses & Deficits","REV","Revenue","R9460","Human Resources misc","01-EMPLOYEES","Employees","01A","Direct employee expenses","4","Agency Staff - Pay","3138206","201103",10/06/2010 00:00:00,169,"31230","Employment & Recruitment Agencies","REDACTED DATA","ADECCO UK LIMITED","",,"232347975"
"London Borough of Redbridge","http://opendatacommunities.org/doc/london-borough-council/redbridge","2BCULTUR&REL","Cultural & Related Services","2COPENSPACES","Open Spaces","REV","Revenue","R6313","Parks Operational","01-EMPLOYEES","Employees","01A","Direct employee expenses","4","Agency Staff - Pay","3138206","201103",10/06/2010 00:00:00,162,"31230","Employment & Recruitment Agencies","REDACTED DATA","ADECCO UK LIMITED","",,"232347975"
"London Borough of Redbridge","http://opendatacommunities.org/doc/london-borough-council/redbridge","3BNONSCHFUND","Non-School Funding","","","REV","Revenue","R2041","South Childrens Centre","01-EMPLOYEES","Employees","01A","Direct employee expenses","4","Agency Staff - Pay","3138206","201103",10/06/2010 00:00:00,162,"31230","Employment & Recruitment Agencies","REDACTED DATA","ADECCO UK LIMITED","",,"232347975"
"London Borough of Redbridge","http://opendatacommunities.org/doc/london-borough-council/redbridge","5BGFHOUSING","General Fund Housing","","","REV","Revenue","R5500","Housing Advice Centre","01-EMPLOYEES","Employees","01A","Direct employee expenses","4","Agency Staff - Pay","3138206","201103",10/06/2010 00:00:00,160,"31230","Employment & Recruitment Agencies","REDACTED DATA","ADECCO UK LIMITED","",,"232347975"
"London Borough of Redbridge","http://opendatacommunities.org/doc/london-borough-council/redbridge","3BNONSCHFUND","Non-School Funding","","","REV","Revenue","R2041","South Childrens Centre","01-EMPLOYEES","Employees","01A","Direct employee expenses","4","Agency Staff - Pay","3138206","201103",10/06/2010 00:00:00,158,"31230","Employment & Recruitment Agencies","REDACTED DATA","ADECCO UK LIMITED","",,"232347975"
"London Borough of Redbridge","http://opendatacommunities.org/doc/london-borough-council/redbridge","3BNONSCHFUND","Non-School Funding","","","REV","Revenue","R2041","South Childrens Centre","01-EMPLOYEES","Employees","01A","Direct employee expenses","4","Agency Staff - Pay","3138206","201103",10/06/2010 00:00:00,158,"31230","Employment & Recruitment Agencies","REDACTED DATA","ADECCO UK LIMITED","",,"232347975"
"London Borough of Redbridge","http://opendatacommunities.org/doc/london-borough-council/redbridge","2BCULTUR&REL","Cultural & Related Services","2COPENSPACES","Open Spaces","REV","Revenue","R6313","Parks Operational","01-EMPLOYEES","Employees","01A","Direct employee expenses","4","Agency Staff - Pay","3138206","201103",10/06/2010 00:00:00,156,"31230","Employment & Recruitment Agencies","REDACTED DATA","ADECCO UK LIMITED","",,"232347975"
"London Borough of Redbridge","http://opendatacommunities.org/doc/london-borough-council/redbridge","3BOPTIONHLDG","Optional Holding Accounts","3CYOUTH","Youth Service","REV","Revenue","R3437","Information","01-EMPLOYEES","Employees","01A","Direct employee expenses","4","Agency Staff - Pay","3138206","201103",10/06/2010 00:00:00,153,"31230","Employment & Recruitment Agencies","REDACTED DATA","ADECCO UK LIMITED","",,"232347975"
"London Borough of Redbridge","http://opendatacommunities.org/doc/london-borough-council/redbridge","3BNONSCHFUND","Non-School Funding","","","REV","Revenue","R2041","South Childrens Centre","01-EMPLOYEES","Employees","01A","Direct employee expenses","4","Agency Staff - Pay","3138206","201103",10/06/2010 00:00:00,149,"31230","Employment & Recruitment Agencies","REDACTED DATA","ADECCO UK LIMITED","",,"232347975"
"London Borough of Redbridge","http://opendatacommunities.org/doc/london-borough-council/redbridge","3BNONSCHFUND","Non-School Funding","","","REV","Revenue","R2041","South Childrens Centre","01-EMPLOYEES","Employees","01A","Direct employee expenses","4","Agency Staff - Pay","3138206","201103",10/06/2010 00:00:00,149,"31230","Employment & Recruitment Agencies","REDACTED DATA","ADECCO UK LIMITED","",,"232347975"
"London Borough of Redbridge","http://opendatacommunities.org/doc/london-borough-council/redbridge","6BADULTSOCIA","Adult Social Care","6CCHILLOOKED","Children Looked After","REV","Revenue","R2118","CLAFH - 2-4 Bathurst Road","01-EMPLOYEES","Employees","01A","Direct employee expenses","4","Agency Staff - Pay","3138206","201103",10/06/2010 00:00:00,137,"31230","Employment & Recruitment Agencies","REDACTED DATA","ADECCO UK LIMITED","",,"232347975"
"London Borough of Redbridge","http://opendatacommunities.org/doc/london-borough-council/redbridge","3BOPTIONHLDG","Optional Holding Accounts","3CYOUTH","Youth Service","REV","Revenue","R3437","Information","01-EMPLOYEES","Employees","01A","Direct employee expenses","4","Agency Staff - Pay","3138206","201103",10/06/2010 00:00:00,130,"31230","Employment & Recruitment Agencies","REDACTED DATA","ADECCO UK LIMITED","",,"232347975"
"London Borough of Redbridge","http://opendatacommunities.org/doc/london-borough-council/redbridge","5BGFHOUSING","General Fund Housing","5CREGSOCLAND","Registered Social Landlords","REV","Revenue","R5518","Development","01-EMPLOYEES","Employees","01A","Direct employee expenses","4","Agency Staff - Pay","3138206","201103",10/06/2010 00:00:00,128,"31230","Employment & Recruitment Agencies","REDACTED DATA","ADECCO UK LIMITED","",,"232347975"
"London Borough of Redbridge","http://opendatacommunities.org/doc/london-borough-council/redbridge","6BADULTSOCIA","Adult Social Care","6CCHILLOOKED","Children Looked After","REV","Revenue","R2118","CLAFH - 2-4 Bathurst Road","01-EMPLOYEES","Employees","01A","Direct employee expenses","4","Agency Staff - Pay","3138206","201103",10/06/2010 00:00:00,126,"31230","Employment & Recruitment Agencies","REDACTED DATA","ADECCO UK LIMITED","",,"232347975"
"London Borough of Redbridge","http://opendatacommunities.org/doc/london-borough-council/redbridge","6BSOCIALSERV","Social Services","","","REV","Revenue","R2110","SEN and CD - Business and Finance Social Care","01-EMPLOYEES","Employees","01A","Direct employee expenses","4","Agency Staff - Pay","3138206","201103",10/06/2010 00:00:00,104,"31230","Employment & Recruitment Agencies","REDACTED DATA","ADECCO UK LIMITED","",,"232347975"
"London Borough of Redbridge","http://opendatacommunities.org/doc/london-borough-council/redbridge","5BGFHOUSING","General Fund Housing","5CREGSOCLAND","Registered Social Landlords","REV","Revenue","R5518","Development","01-EMPLOYEES","Employees","01A","Direct employee expenses","4","Agency Staff - Pay","3138206","201103",10/06/2010 00:00:00,102,"31230","Employment & Recruitment Agencies","REDACTED DATA","ADECCO UK LIMITED","",,"232347975"
"London Borough of Redbridge","http://opendatacommunities.org/doc/london-borough-council/redbridge","1BCENTRALPUB","Central Services to the Public","","","REV","Revenue","R5770","Income Assessment","01-EMPLOYEES","Employees","01A","Direct employee expenses","4","Agency Staff - Pay","3138206","201103",10/06/2010 00:00:00,101,"31230","Employment & Recruitment Agencies","REDACTED DATA","ADECCO UK LIMITED","",,"232347975"
"London Borough of Redbridge","http://opendatacommunities.org/doc/london-borough-council/redbridge","3BLEACENTFND","LEA Centrally Held School Funds","3CSCHSTRATMG","Schools Strategic Management","REV","Revenue","R3271","Teachers Centre Deleg","01-EMPLOYEES","Employees","01A","Direct employee expenses","4","Agency Staff - Pay","3138206","201103",10/06/2010 00:00:00,87,"31230","Employment & Recruitment Agencies","REDACTED DATA","ADECCO UK LIMITED","",,"232347975"
"London Borough of Redbridge","http://opendatacommunities.org/doc/london-borough-council/redbridge","2BCULTUR&REL","Cultural & Related Services","2CREC&SPORT","Recreation & Sport","REV","Revenue","R6272","Childrens Theatre","01-EMPLOYEES","Employees","01A","Direct employee expenses","4","Agency Staff - Pay","3138206","201103",10/06/2010 00:00:00,87,"31230","Employment & Recruitment Agencies","REDACTED DATA","ADECCO UK LIMITED","",,"232347975"
"London Borough of Redbridge","http://opendatacommunities.org/doc/london-borough-council/redbridge","3BNONSCHFUND","Non-School Funding","","","REV","Revenue","R2065","Childrens Centre Ethnic Diversity","01-EMPLOYEES","Employees","01A","Direct employee expenses","4","Agency Staff - Pay","3138206","201103",10/06/2010 00:00:00,83,"31230","Employment & Recruitment Agencies","REDACTED DATA","ADECCO UK LIMITED","",,"232347975"
